Workbook

Sheet Input
G2: INPUTS | AI2: CLICK THE BUTTON
I4: Key Inputs | U4: Additional Inputs
I6: Age | U6: Start Year for Analysis | Z6: 2012
I7: Target Retirement Income % | N7: 0.8
I8: % Target Savings | N8: 0.1 | U8: Pre-Ret Investment Return
I9: Saving for How Many Prior Yrs | U9: Post-Ret Investment Return
I10: Compensation Growth Rate | N10: 0.05
AI13: Note: videos require an Internet connection
G14: RESULTS
AI18: Current Income Levels & Projected Retirement Income by Source
AI20: ='Individual Calculations '!BG13 -> 50000 | AJ20: ='Individual Calculations '!BG14 -> 100000 | AK20: ='Individual Calculations '!BG15 -> 250000 | AL20: ='Individual Calculations '!BG16 -> 500000 | AM20: ='Individual Calculations '!BG17 -> 750000
AE21: Soc Sec | AI21: ='Individual Calculations '!BH21 -> 0.3836453202 | AJ21: ='Individual Calculations '!BH22 -> 0.2785221675 | AK21: ='Individual Calculations '!BH23 -> 0.1230147783 | AL21: ='Individual Calculations '!BH24 -> 0.06150738916 | AM21: ='Individual Calculations '!BH25 -> 0.04100492611
AE22: 403(b) | AI22: ='Individual Calculations '!BI21 -> 0.2289794605 | AJ22: ='Individual Calculations '!BI22 -> 0.2289794605 | AK22: ='Individual Calculations '!BI23 -> 0.1490784974 | AL22: ='Individual Calculations '!BI24 -> 0.07453924869 | AM22: ='Individual Calculations '!BI25 -> 0.04969283246
AE23: 457(b) | AI23: ='Individual Calculations '!BJ21 -> 0 | AJ23: ='Individual Calculations '!BJ22 -> 0 | AK23: ='Individual Calculations '!BJ23 -> 0.0639207705 | AL23: ='Individual Calculations '!BJ24 -> 0.05149174943 | AM23: ='Individual Calculations '!BJ25 -> 0.03432783296
AE24: Total | AI24: =SUM(AI21:AI23) -> 0.6126247807 | AJ24: =SUM(AJ21:AJ23) -> 0.507501628 | AK24: =SUM(AK21:AK23) -> 0.3360140462 | AL24: =SUM(AL21:AL23) -> 0.1875383873 | AM24: =SUM(AM21:AM23) -> 0.1250255915
AE26: GAP | AI26: =MAX(0,RetIncTarget-AI24) -> 0.1873752193 | AJ26: =MAX(0,RetIncTarget-AJ24) -> 0.292498372 | AK26: =MAX(0,RetIncTarget-AK24) -> 0.4639859538 | AL26: =MAX(0,RetIncTarget-AL24) -> 0.6124616127 | AM26: =MAX(0,RetIncTarget-AM24) -> 0.6749744085
AV34: Last Age on Exhibits | AX34: 90
AV35: Set Rows | AW35: ="<="&TEXT((SetLastAge),"0") -> <=90 | AX35: SetRows
AX37: =-AnnRet403bAT-AnnRet403bERMatchAT -> 66109.04486 | AY37: =-AnnRet457bAT -> 45668.16051 | AZ37: =-AnnRetATSavingsAT -> 52860.55686
AX38: 403(b) Plan | AY38: 457(b) Plan | AZ38: After Tax Savings
AV39: 1 | AW39: =RetAge -> 65 | AX39: =IF($AV39<=BenPmtsYears,AX$37,0) -> 66109.04486 | AY39: 45668.16051 | AZ39: 52860.55686 | BB39: =StartYr -> 2014 | BC39: CheckChg1
AV40: =AV39+1 -> 2 | AX40: 66109.04486 | AY40: 45668.16051 | AZ40: 52860.55686 | BB40: =Age -> 40 | BC40: CheckChg2
AV41: =AV40+1 -> 3 | AX41: 66109.04486 | AY41: 45668.16051 | AZ41: 52860.55686 | BB41: =RetAge -> 65 | BC41: CheckChg3
AV42: 4 | AX42: 66109.04486 | AY42: 45668.16051 | AZ42: 52860.55686 | BB42: =BenPmtsYears -> 25 | BC42: CheckChg4
AV43: 5 | AX43: 66109.04486 | AY43: 45668.16051 | AZ43: 52860.55686 | BB43: =AcctBalGrowthNum -> 2 | BC43: CheckChg5
AV44: 6 | AW44: =AW39+5 -> 70 | AX44: 66109.04486 | AY44: 45668.16051 | AZ44: 52860.55686
AV45: 7 | AX45: 66109.04486 | AY45: 45668.16051 | AZ45: 52860.55686
AV46: 8 | AX46: 66109.04486 | AY46: 45668.16051 | AZ46: 52860.55686
AV47: 9 | AX47: 66109.04486 | AY47: 45668.16051 | AZ47: 52860.55686
AV48: 10 | AX48: 66109.04486 | AY48: 45668.16051 | AZ48: 52860.55686
AV49: 11 | AW49: =AW44+5 -> 75 | AX49: 66109.04486 | AY49: 45668.16051 | AZ49: 52860.55686
AV50: 12 | AX50: 66109.04486 | AY50: 45668.16051 | AZ50: 52860.55686
AV51: 13 | AX51: 66109.04486 | AY51: 45668.16051 | AZ51: 52860.55686
AV52: 14 | AX52: 66109.04486 | AY52: 45668.16051 | AZ52: 52860.55686
AV53: 15 | AX53: 66109.04486 | AY53: 45668.16051 | AZ53: 52860.55686
AV54: 16 | AW54: =AW49+5 -> 80 | AX54: 66109.04486 | AY54: 45668.16051 | AZ54: 52860.55686
AV55: 17 | AX55: 66109.04486 | AY55: 45668.16051 | AZ55: 52860.55686
AV56: 18 | AX56: 66109.04486 | AY56: 45668.16051 | AZ56: 52860.55686
AV57: 19 | AX57: 66109.04486 | AY57: 45668.16051 | AZ57: 52860.55686
AV58: 20 | AW58: =AW54+4 -> 84 | AX58: 66109.04486 | AY58: 45668.16051 | AZ58: 52860.55686

Sheet Current Plans
A1: Retirement Benefit using Current 403(b) Plan and 457(b) Plan
A2: ="Plan Participant - Age "&Age -> Plan Participant - Age 40
L3: Pretax Retmnt Income | M3: % of Final Comp
I4: Current Comp (Use Drop to Change)==> | L4: =-MIN(L13:L87) -> 120198.2634 | M4: =L4/'Individual Calculations '!$BH$12 -> 0.07453924869 | N4: <==403(b)
I5: Projected Final Comp==> | J5: ='Individual Calculations '!BH12 -> 1612549.972 | L5: =-MIN(Q13:Q87) -> 83033.0191 | M5: =L5/'Individual Calculations '!$BH$12 -> 0.05149174943 | N5: <==457(b)
I6: Target Retirement %==> | J6: =RetIncTarget -> 0.8 | L6: ='Individual Calculations '!BH6 -> 99183.73866 | M6: =L6/'Individual Calculations '!$BH$12 -> 0.06150738916 | N6: <==Social Security
I7: Target Retirement Income==> | J7: =J5*J6 -> 1290039.977 | L7: =SUM(L4:L6) -> 302415.0211 | M7: =L7/'Individual Calculations '!$BH$12 -> 0.1875383873 | N7: <==Projected Retirement Income
J8: RETIREMENT GAP==> | K8: =MAX(0,RetIncTarget-M7) -> 0.6124616127
E10: -1 | F10: =E10-1 -> -2 | H10: =F10-1 -> -3 | I10: =H10-1 -> -4 | J10: -5 | K10: -6 | L10: -7 | M10: -8 | N10: -9 | P10: =N10-1 -> -10 | Q10: =P10-1 -> -11 | R10: =Q10-1 -> -12 | S10: =R10-1 -> -13 | U10: =S10-1 -> -14
E11: Compensation | H11: 403(b) Plan | P11: 457(b) Plan | U11: [2-3-4-10]
A12: Year | C12: Age | E12: ="Projected Comp ("&TEXT(CompGrowthRate,"0.0%")&" Growth)" -> Projected Comp (5.0% Growth) | F12: ="Exec's Target Savings"&IF(TargetMethod1=1," ("&TEXT(TargetContribPercent,"0.0%")&")",IF(TargetMethod2=1," ("&TEXT(TargetContribDollarAmt,"$0,000")&")"," (Max IRS Limit)")) -> Exec's Target Savings (10.0%) | H12: Executive Contribution | I12: Catch-up Contribution | J12: ="Employer Match @ "&TEXT(MachtingERCont,"0.0%") -> Employer Match @ 25.0% | K12: Total 403(b) Contributions | L12: Pretax Retirement Distribution | M12: ="Investment Earnings @ "&TEXT(AcctBalGrowth,"0.00%")&" / "&TEXT(PostRetGrowth,"0.00%") -> Investment Earnings @ 6.00% / 4.00% | N12: End of Yr Account Balance | P12: Executive Contribution | Q12: Pretax Retirement Distribution | R12: ="Investment Earnings @ "&TEXT(AcctBalGrowth,"0.00%")&" / "&TEXT(PostRetGrowth,"0.00%") -> Investment Earnings @ 6.00% / 4.00% | S12: End of Yr Account Balance | U12: Excluded Contributions
A13: 1 | B13: ='Individual Calculations '!B13 -> 2014 | C13: ='Individual Calculations '!C13 -> 40 | E13: ='Individual Calculations '!G13 -> 500000 | F13: =IF(TargetMethod3=1,"NA",'Individual Calculations '!R13) -> 50000 | H13: =IF(TargetMethod3=1,'Individual Calculations '!I13,'Individual Calculations '!S13) -> 17500 | I13: =IF(TargetMethod3=1,'Individual Calculations '!J13,'Individual Calculations '!T13) -> 0 | J13: =IF(TargetMethod3=1,'Individual Calculations '!K13,'Individual Calculations '!U13) -> 4375 | K13: =IF(TargetMethod3=1,'Individual Calculations '!N13,'Individual Calculations '!V13) -> 21875 | L13: ='Individual Calculations '!AB13+'Individual Calculations '!AI13 -> 0 | M13: ='Individual Calculations '!AE13+'Individual Calculations '!AL13 -> 1312.5 | N13: ='Individual Calculations '!AF13+'Individual Calculations '!AM13 -> 23187.5 | P13: =IF(TargetMethod3=1,'Individual Calculations '!O13,'Individual Calculations '!W13) -> 17500 | Q13: ='Individual Calculations '!AQ13 -> 0 | R13: ='Individual Calculations '!AT13 -> 1050 | S13: ='Individual Calculations '!AU13 -> 18550 | U13: ='Individual Calculations '!AX13 -> 15000
A14: =A13+1 -> 2 | B14: ='Individual Calculations '!B14 -> 2015 | C14: =IF(A14="","",+C13+1) -> 41 | E14: ='Individual Calculations '!G14 -> 525000 | F14: =IF(TargetMethod3=1,"NA",'Individual Calculations '!R14) -> 52500 | H14: =IF(TargetMethod3=1,'Individual Calculations '!I14,'Individual Calculations '!S14) -> 18000 | I14: =IF(TargetMethod3=1,'Individual Calculations '!J14,'Individual Calculations '!T14) -> 0 | J14: =IF(TargetMethod3=1,'Individual Calculations '!K14,'Individual Calculations '!U14) -> 4500 | K14: =IF(TargetMethod3=1,'Individual Calculations '!N14,'Individual Calculations '!V14) -> 22500 | L14: ='Individual Calculations '!AB14+'Individual Calculations '!AI14 -> 0 | M14: ='Individual Calculations '!AE14+'Individual Calculations '!AL14 -> 2741.25 | N14: ='Individual Calculations '!AF14+'Individual Calculations '!AM14 -> 48428.75 | P14: =IF(TargetMethod3=1,'Individual Calculations '!O14,'Individual Calculations '!W14) -> 18000 | Q14: ='Individual Calculations '!AQ14 -> 0 | R14: ='Individual Calculations '!AT14 -> 2193 | S14: ='Individual Calculations '!AU14 -> 38743 | U14: ='Individual Calculations '!AX14 -> 16500
A15: =A14+1 -> 3 | B15: ='Individual Calculations '!B15 -> 2016 | C15: =IF(A15="","",+C14+1) -> 42 | E15: ='Individual Calculations '!G15 -> 551250 | F15: =IF(TargetMethod3=1,"NA",'Individual Calculations '!R15) -> 55125 | H15: =IF(TargetMethod3=1,'Individual Calculations '!I15,'Individual Calculations '!S15) -> 18500 | I15: =IF(TargetMethod3=1,'Individual Calculations '!J15,'Individual Calculations '!T15) -> 0 | J15: =IF(TargetMethod3=1,'Individual Calculations '!K15,'Individual Calculations '!U15) -> 4625 | K15: =IF(TargetMethod3=1,'Individual Calculations '!N15,'Individual Calculations '!V15) -> 23125 | L15: ='Individual Calculations '!AB15+'Individual Calculations '!AI15 -> 0 | M15: ='Individual Calculations '!AE15+'Individual Calculations '!AL15 -> 4293.225 | N15: ='Individual Calculations '!AF15+'Individual Calculations '!AM15 -> 75846.975 | P15: =IF(TargetMethod3=1,'Individual Calculations '!O15,'Individual Calculations '!W15) -> 18500 | Q15: ='Individual Calculations '!AQ15 -> 0 | R15: ='Individual Calculations '!AT15 -> 3434.58 | S15: ='Individual Calculations '!AU15 -> 60677.58 | U15: ='Individual Calculations '!AX15 -> 18125
A16: 4 | B16: ='Individual Calculations '!B16 -> 2017 | C16: 43 | E16: ='Individual Calculations '!G16 -> 578812.5 | F16: =IF(TargetMethod3=1,"NA",'Individual Calculations '!R16) -> 57881.25 | H16: =IF(TargetMethod3=1,'Individual Calculations '!I16,'Individual Calculations '!S16) -> 19000 | I16: =IF(TargetMethod3=1,'Individual Calculations '!J16,'Individual Calculations '!T16) -> 0 | J16: =IF(TargetMethod3=1,'Individual Calculations '!K16,'Individual Calculations '!U16) -> 4750 | K16: =IF(TargetMethod3=1,'Individual Calculations '!N16,'Individual Calculations '!V16) -> 23750 | L16: ='Individual Calculations '!AB16+'Individual Calculations '!AI16 -> 0 | M16: ='Individual Calculations '!AE16+'Individual Calculations '!AL16 -> 5975.8185 | N16: ='Individual Calculations '!AF16+'Individual Calculations '!AM16 -> 105572.7935 | P16: =IF(TargetMethod3=1,'Individual Calculations '!O16,'Individual Calculations '!W16) -> 19000 | Q16: ='Individual Calculations '!AQ16 -> 0 | R16: ='Individual Calculations '!AT16 -> 4780.6548 | S16: ='Individual Calculations '!AU16 -> 84458.2348 | U16: ='Individual Calculations '!AX16 -> 19881.25
A17: 5 | B17: ='Individual Calculations '!B17 -> 2018 | C17: 44 | E17: ='Individual Calculations '!G17 -> 607753.125 | F17: =IF(TargetMethod3=1,"NA",'Individual Calculations '!R17) -> 60775.3125 | H17: =IF(TargetMethod3=1,'Individual Calculations '!I17,'Individual Calculations '!S17) -> 19500 | I17: =IF(TargetMethod3=1,'Individual Calculations '!J17,'Individual Calculations '!T17) -> 0 | J17: =IF(TargetMethod3=1,'Individual Calculations '!K17,'Individual Calculations '!U17) -> 4875 | K17: =IF(TargetMethod3=1,'Individual Calculations '!N17,'Individual Calculations '!V17) -> 24375 | L17: ='Individual Calculations '!AB17+'Individual Calculations '!AI17 -> 0 | M17: ='Individual Calculations '!AE17+'Individual Calculations '!AL17 -> 7796.86761 | N17: ='Individual Calculations '!AF17+'Individual Calculations '!AM17 -> 137744.6611 | P17: =IF(TargetMethod3=1,'Individual Calculations '!O17,'Individual Calculations '!W17) -> 19500 | Q17: ='Individual Calculations '!AQ17 -> 0 | R17: ='Individual Calculations '!AT17 -> 6237.494088 | S17: ='Individual Calculations '!AU17 -> 110195.7289 | U17: ='Individual Calculations '!AX17 -> 21775.3125
A18: 6 | B18: ='Individual Calculations '!B18 -> 2019 | C18: 45 | E18: ='Individual Calculations '!G18 -> 638140.7812 | F18: =IF(TargetMethod3=1,"NA",'Individual Calculations '!R18) -> 63814.07812 | H18: =IF(TargetMethod3=1,'Individual Calculations '!I18,'Individual Calculations '!S18) -> 20000 | I18: =IF(TargetMethod3=1,'Individual Calculations '!J18,'Individual Calculations '!T18) -> 0 | J18: =IF(TargetMethod3=1,'Individual Calculations '!K18,'Individual Calculations '!U18) -> 5000 | K18: =IF(TargetMethod3=1,'Individual Calculations '!N18,'Individual Calculations '!V18) -> 25000 | L18: ='Individual Calculations '!AB18+'Individual Calculations '!AI18 -> 0 | M18: ='Individual Calculations '!AE18+'Individual Calculations '!AL18 -> 9764.679667 | N18: ='Individual Calculations '!AF18+'Individual Calculations '!AM18 -> 172509.3408 | P18: =IF(TargetMethod3=1,'Individual Calculations '!O18,'Individual Calculations '!W18) -> 20000 | Q18: ='Individual Calculations '!AQ18 -> 0 | R18: ='Individual Calculations '!AT18 -> 7811.743733 | S18: ='Individual Calculations '!AU18 -> 138007.4726 | U18: ='Individual Calculations '!AX18 -> 23814.07812
A19: 7 | B19: ='Individual Calculations '!B19 -> 2020 | C19: 46 | E19: ='Individual Calculations '!G19 -> 670047.8203 | F19: =IF(TargetMethod3=1,"NA",'Individual Calculations '!R19) -> 67004.78203 | H19: =IF(TargetMethod3=1,'Individual Calculations '!I19,'Individual Calculations '!S19) -> 20500 | I19: =IF(TargetMethod3=1,'Individual Calculations '!J19,'Individual Calculations '!T19) -> 0 | J19: =IF(TargetMethod3=1,'Individual Calculations '!K19,'Individual Calculations '!U19) -> 5125 | K19: =IF(TargetMethod3=1,'Individual Calculations '!N19,'Individual Calculations '!V19) -> 25625 | L19: ='Individual Calculations '!AB19+'Individual Calculations '!AI19 -> 0 | M19: ='Individual Calculations '!AE19+'Individual Calculations '!AL19 -> 11888.06045 | N19: ='Individual Calculations '!AF19+'Individual Calculations '!AM19 -> 210022.4012 | P19: =IF(TargetMethod3=1,'Individual Calculations '!O19,'Individual Calculations '!W19) -> 20500 | Q19: ='Individual Calculations '!AQ19 -> 0 | R19: ='Individual Calculations '!AT19 -> 9510.448357 | S19: ='Individual Calculations '!AU19 -> 168017.921 | U19: ='Individual Calculations '!AX19 -> 26004.78203
A20: 8 | B20: ='Individual Calculations '!B20 -> 2021 | C20: 47 | E20: ='Individual Calculations '!G20 -> 703550.2113 | F20: =IF(TargetMethod3=1,"NA",'Individual Calculations '!R20) -> 70355.02113 | H20: =IF(TargetMethod3=1,'Individual Calculations '!I20,'Individual Calculations '!S20) -> 21500 | I20: =IF(TargetMethod3=1,'Individual Calculations '!J20,'Individual Calculations '!T20) -> 0 | J20: =IF(TargetMethod3=1,'Individual Calculations '!K20,'Individual Calculations '!U20) -> 5375 | K20: =IF(TargetMethod3=1,'Individual Calculations '!N20,'Individual Calculations '!V20) -> 26875 | L20: ='Individual Calculations '!AB20+'Individual Calculations '!AI20 -> 0 | M20: ='Individual Calculations '!AE20+'Individual Calculations '!AL20 -> 14213.84407 | N20: ='Individual Calculations '!AF20+'Individual Calculations '!AM20 -> 251111.2453 | P20: =IF(TargetMethod3=1,'Individual Calculations '!O20,'Individual Calculations '!W20) -> 21500 | Q20: ='Individual Calculations '!AQ20 -> 0 | R20: ='Individual Calculations '!AT20 -> 11371.07526 | S20: ='Individual Calculations '!AU20 -> 200888.9962 | U20: ='Individual Calculations '!AX20 -> 27355.02113
A21: 9 | B21: ='Individual Calculations '!B21 -> 2022 | C21: 48 | E21: ='Individual Calculations '!G21 -> 738727.7219 | F21: =IF(TargetMethod3=1,"NA",'Individual Calculations '!R21) -> 73872.77219 | H21: =IF(TargetMethod3=1,'Individual Calculations '!I21,'Individual Calculations '!S21) -> 22000 | I21: =IF(TargetMethod3=1,'Individual Calculations '!J21,'Individual Calculations '!T21) -> 0 | J21: =IF(TargetMethod3=1,'Individual Calculations '!K21,'Individual Calculations '!U21) -> 5500 | K21: =IF(TargetMethod3=1,'Individual Calculations '!N21,'Individual Calculations '!V21) -> 27500 | L21: ='Individual Calculations '!AB21+'Individual Calculations '!AI21 -> 0 | M21: ='Individual Calculations '!AE21+'Individual Calculations '!AL21 -> 16716.67472 | N21: ='Individual Calculations '!AF21+'Individual Calculations '!AM21 -> 295327.92 | P21: =IF(TargetMethod3=1,'Individual Calculations '!O21,'Individual Calculations '!W21) -> 22000 | Q21: ='Individual Calculations '!AQ21 -> 0 | R21: ='Individual Calculations '!AT21 -> 13373.33977 | S21: ='Individual Calculations '!AU21 -> 236262.336 | U21: ='Individual Calculations '!AX21 -> 29872.77219
A22: 10 | B22: ='Individual Calculations '!B22 -> 2023 | C22: 49 | E22: ='Individual Calculations '!G22 -> 775664.108 | F22: =IF(TargetMethod3=1,"NA",'Individual Calculations '!R22) -> 77566.4108 | H22: =IF(TargetMethod3=1,'Individual Calculations '!I22,'Individual Calculations '!S22) -> 22500 | I22: =IF(TargetMethod3=1,'Individual Calculations '!J22,'Individual Calculations '!T22) -> 0 | J22: =IF(TargetMethod3=1,'Individual Calculations '!K22,'Individual Calculations '!U22) -> 5625 | K22: =IF(TargetMethod3=1,'Individual Calculations '!N22,'Individual Calculations '!V22) -> 28125 | L22: ='Individual Calculations '!AB22+'Individual Calculations '!AI22 -> 0 | M22: ='Individual Calculations '!AE22+'Individual Calculations '!AL22 -> 19407.1752 | N22: ='Individual Calculations '!AF22+'Individual Calculations '!AM22 -> 342860.0952 | P22: =IF(TargetMethod3=1,'Individual Calculations '!O22,'Individual Calculations '!W22) -> 22500 | Q22: ='Individual Calculations '!AQ22 -> 0 | R22: ='Individual Calculations '!AT22 -> 15525.74016 | S22: ='Individual Calculations '!AU22 -> 274288.0762 | U22: ='Individual Calculations '!AX22 -> 32566.4108
A23: 11 | B23: ='Individual Calculations '!B23 -> 2024 | C23: 50 | E23: ='Individual Calculations '!G23 -> 814447.3134 | F23: =IF(TargetMethod3=1,"NA",'Individual Calculations '!R23) -> 81444.73134 | H23: =IF(TargetMethod3=1,'Individual Calculations '!I23,'Individual Calculations '!S23) -> 23500 | I23: =IF(TargetMethod3=1,'Individual Calculations '!J23,'Individual Calculations '!T23) -> 7000 | J23: =IF(TargetMethod3=1,'Individual Calculations '!K23,'Individual Calculations '!U23) -> 7625 | K23: =IF(TargetMethod3=1,'Individual Calculations '!N23,'Individual Calculations '!V23) -> 38125 | L23: ='Individual Calculations '!AB23+'Individual Calculations '!AI23 -> 0 | M23: ='Individual Calculations '!AE23+'Individual Calculations '!AL23 -> 22859.10571 | N23: ='Individual Calculations '!AF23+'Individual Calculations '!AM23 -> 403844.2009 | P23: =IF(TargetMethod3=1,'Individual Calculations '!O23,'Individual Calculations '!W23) -> 23500 | Q23: ='Individual Calculations '!AQ23 -> 0 | R23: ='Individual Calculations '!AT23 -> 17867.28457 | S23: ='Individual Calculations '!AU23 -> 315655.3607 | U23: ='Individual Calculations '!AX23 -> 27444.73134
A24: 12 | B24: ='Individual Calculations '!B24 -> 2025 | C24: 51 | E24: ='Individual Calculations '!G24 -> 855169.6791 | F24: =IF(TargetMethod3=1,"NA",'Individual Calculations '!R24) -> 85516.96791 | H24: =IF(TargetMethod3=1,'Individual Calculations '!I24,'Individual Calculations '!S24) -> 24000 | I24: =IF(TargetMethod3=1,'Individual Calculations '!J24,'Individual Calculations '!T24) -> 7500 | J24: =IF(TargetMethod3=1,'Individual Calculations '!K24,'Individual Calculations '!U24) -> 7875 | K24: =IF(TargetMethod3=1,'Individual Calculations '!N24,'Individual Calculations '!V24) -> 39375 | L24: ='Individual Calculations '!AB24+'Individual Calculations '!AI24 -> 0 | M24: ='Individual Calculations '!AE24+'Individual Calculations '!AL24 -> 26593.15206 | N24: ='Individual Calculations '!AF24+'Individual Calculations '!AM24 -> 469812.353 | P24: =IF(TargetMethod3=1,'Individual Calculations '!O24,'Individual Calculations '!W24) -> 24000 | Q24: ='Individual Calculations '!AQ24 -> 0 | R24: ='Individual Calculations '!AT24 -> 20379.32164 | S24: ='Individual Calculations '!AU24 -> 360034.6824 | U24: ='Individual Calculations '!AX24 -> 30016.96791
A25: 13 | B25: ='Individual Calculations '!B25 -> 2026 | C25: 52 | E25: ='Individual Calculations '!G25 -> 897928.163 | F25: =IF(TargetMethod3=1,"NA",'Individual Calculations '!R25) -> 89792.8163 | H25: =IF(TargetMethod3=1,'Individual Calculations '!I25,'Individual Calculations '!S25) -> 24500 | I25: =IF(TargetMethod3=1,'Individual Calculations '!J25,'Individual Calculations '!T25) -> 7500 | J25: =IF(TargetMethod3=1,'Individual Calculations '!K25,'Individual Calculations '!U25) -> 8000 | K25: =IF(TargetMethod3=1,'Individual Calculations '!N25,'Individual Calculations '!V25) -> 40000 | L25: ='Individual Calculations '!AB25+'Individual Calculations '!AI25 -> 0 | M25: ='Individual Calculations '!AE25+'Individual Calculations '!AL25 -> 30588.74118 | N25: ='Individual Calculations '!AF25+'Individual Calculations '!AM25 -> 540401.0942 | P25: =IF(TargetMethod3=1,'Individual Calculations '!O25,'Individual Calculations '!W25) -> 24500 | Q25: ='Individual Calculations '!AQ25 -> 0 | R25: ='Individual Calculations '!AT25 -> 23072.08094 | S25: ='Individual Calculations '!AU25 -> 407606.7633 | U25: ='Individual Calculations '!AX25 -> 33292.8163
A26: 14 | B26: ='Individual Calculations '!B26 -> 2027 | C26: 53 | E26: ='Individual Calculations '!G26 -> 942824.5712 | F26: =IF(TargetMethod3=1,"NA",'Individual Calculations '!R26) -> 94282.45712 | H26: =IF(TargetMethod3=1,'Individual Calculations '!I26,'Individual Calculations '!S26) -> 25500 | I26: =IF(TargetMethod3=1,'Individual Calculations '!J26,'Individual Calculations '!T26) -> 8000 | J26: =IF(TargetMethod3=1,'Individual Calculations '!K26,'Individual Calculations '!U26) -> 8375 | K26: =IF(TargetMethod3=1,'Individual Calculations '!N26,'Individual Calculations '!V26) -> 41875 | L26: ='Individual Calculations '!AB26+'Individual Calculations '!AI26 -> 0 | M26: ='Individual Calculations '!AE26+'Individual Calculations '!AL26 -> 34936.56565 | N26: ='Individual Calculations '!AF26+'Individual Calculations '!AM26 -> 617212.6598 | P26: =IF(TargetMethod3=1,'Individual Calculations '!O26,'Individual Calculations '!W26) -> 25500 | Q26: ='Individual Calculations '!AQ26 -> 0 | R26: ='Individual Calculations '!AT26 -> 25986.4058 | S26: ='Individual Calculations '!AU26 -> 459093.1691 | U26: ='Individual Calculations '!AX26 -> 35282.45712
A27: 15 | B27: ='Individual Calculations '!B27 -> 2028 | C27: 54 | E27: ='Individual Calculations '!G27 -> 989965.7997 | F27: =IF(TargetMethod3=1,"NA",'Individual Calculations '!R27) -> 98996.57997 | H27: =IF(TargetMethod3=1,'Individual Calculations '!I27,'Individual Calculations '!S27) -> 26000 | I27: =IF(TargetMethod3=1,'Individual Calculations '!J27,'Individual Calculations '!T27) -> 8000 | J27: =IF(TargetMethod3=1,'Individual Calculations '!K27,'Individual Calculations '!U27) -> 8500 | K27: =IF(TargetMethod3=1,'Individual Calculations '!N27,'Individual Calculations '!V27) -> 42500 | L27: ='Individual Calculations '!AB27+'Individual Calculations '!AI27 -> 0 | M27: ='Individual Calculations '!AE27+'Individual Calculations '!AL27 -> 39582.75959 | N27: ='Individual Calculations '!AF27+'Individual Calculations '!AM27 -> 699295.4194 | P27: =IF(TargetMethod3=1,'Individual Calculations '!O27,'Individual Calculations '!W27) -> 26000 | Q27: ='Individual Calculations '!AQ27 -> 0 | R27: ='Individual Calculations '!AT27 -> 29105.59015 | S27: ='Individual Calculations '!AU27 -> 514198.7593 | U27: ='Individual Calculations '!AX27 -> 38996.57997
A28: 16 | B28: ='Individual Calculations '!B28 -> 2029 | C28: 55 | E28: ='Individual Calculations '!G28 -> 1039464.09 | F28: =IF(TargetMethod3=1,"NA",'Individual Calculations '!R28) -> 103946.409 | H28: =IF(TargetMethod3=1,'Individual Calculations '!I28,'Individual Calculations '!S28) -> 27000 | I28: =IF(TargetMethod3=1,'Individual Calculations '!J28,'Individual Calculations '!T28) -> 8500 | J28: =IF(TargetMethod3=1,'Individual Calculations '!K28,'Individual Calculations '!U28) -> 8875 | K28: =IF(TargetMethod3=1,'Individual Calculations '!N28,'Individual Calculations '!V28) -> 44375 | L28: ='Individual Calculations '!AB28+'Individual Calculations '!AI28 -> 0 | M28: ='Individual Calculations '!AE28+'Individual Calculations '!AL28 -> 44620.22516 | N28: ='Individual Calculations '!AF28+'Individual Calculations '!AM28 -> 788290.6446 | P28: =IF(TargetMethod3=1,'Individual Calculations '!O28,'Individual Calculations '!W28) -> 27000 | Q28: ='Individual Calculations '!AQ28 -> 0 | R28: ='Individual Calculations '!AT28 -> 32471.92556 | S28: ='Individual Calculations '!AU28 -> 573670.6848 | U28: ='Individual Calculations '!AX28 -> 41446.40897
A29: 17 | B29: ='Individual Calculations '!B29 -> 2030 | C29: 56 | E29: ='Individual Calculations '!G29 -> 1091437.294 | F29: =IF(TargetMethod3=1,"NA",'Individual Calculations '!R29) -> 109143.7294 | H29: =IF(TargetMethod3=1,'Individual Calculations '!I29,'Individual Calculations '!S29) -> 28000 | I29: =IF(TargetMethod3=1,'Individual Calculations '!J29,'Individual Calculations '!T29) -> 8500 | J29: =IF(TargetMethod3=1,'Individual Calculations '!K29,'Individual Calculations '!U29) -> 9125 | K29: =IF(TargetMethod3=1,'Individual Calculations '!N29,'Individual Calculations '!V29) -> 45625 | L29: ='Individual Calculations '!AB29+'Individual Calculations '!AI29 -> 0 | M29: ='Individual Calculations '!AE29+'Individual Calculations '!AL29 -> 50034.93867 | N29: ='Individual Calculations '!AF29+'Individual Calculations '!AM29 -> 883950.5832 | P29: =IF(TargetMethod3=1,'Individual Calculations '!O29,'Individual Calculations '!W29) -> 28000 | Q29: ='Individual Calculations '!AQ29 -> 0 | R29: ='Individual Calculations '!AT29 -> 36100.24109 | S29: ='Individual Calculations '!AU29 -> 637770.9259 | U29: ='Individual Calculations '!AX29 -> 44643.72942
A30: 18 | B30: ='Individual Calculations '!B30 -> 2031 | C30: 57 | E30: ='Individual Calculations '!G30 -> 1146009.159 | F30: =IF(TargetMethod3=1,"NA",'Individual Calculations '!R30) -> 114600.9159 | H30: =IF(TargetMethod3=1,'Individual Calculations '!I30,'Individual Calculations '!S30) -> 28500 | I30: =IF(TargetMethod3=1,'Individual Calculations '!J30,'Individual Calculations '!T30) -> 9000 | J30: =IF(TargetMethod3=1,'Individual Calculations '!K30,'Individual Calculations '!U30) -> 9375 | K30: =IF(TargetMethod3=1,'Individual Calculations '!N30,'Individual Calculations '!V30) -> 46875 | L30: ='Individual Calculations '!AB30+'Individual Calculations '!AI30 -> 0 | M30: ='Individual Calculations '!AE30+'Individual Calculations '!AL30 -> 55849.53499 | N30: ='Individual Calculations '!AF30+'Individual Calculations '!AM30 -> 986675.1182 | P30: =IF(TargetMethod3=1,'Individual Calculations '!O30,'Individual Calculations '!W30) -> 28500 | Q30: ='Individual Calculations '!AQ30 -> 0 | R30: ='Individual Calculations '!AT30 -> 39976.25556 | S30: ='Individual Calculations '!AU30 -> 706247.1815 | U30: ='Individual Calculations '!AX30 -> 48600.91589
A31: 19 | B31: ='Individual Calculations '!B31 -> 2032 | C31: 58 | E31: ='Individual Calculations '!G31 -> 1203309.617 | F31: =IF(TargetMethod3=1,"NA",'Individual Calculations '!R31) -> 120330.9617 | H31: =IF(TargetMethod3=1,'Individual Calculations '!I31,'Individual Calculations '!S31) -> 29500 | I31: =IF(TargetMethod3=1,'Individual Calculations '!J31,'Individual Calculations '!T31) -> 9000 | J31: =IF(TargetMethod3=1,'Individual Calculations '!K31,'Individual Calculations '!U31) -> 9625 | K31: =IF(TargetMethod3=1,'Individual Calculations '!N31,'Individual Calculations '!V31) -> 48125 | L31: ='Individual Calculations '!AB31+'Individual Calculations '!AI31 -> 0 | M31: ='Individual Calculations '!AE31+'Individual Calculations '!AL31 -> 62088.00709 | N31: ='Individual Calculations '!AF31+'Individual Calculations '!AM31 -> 1096888.125 | P31: =IF(TargetMethod3=1,'Individual Calculations '!O31,'Individual Calculations '!W31) -> 29500 | Q31: ='Individual Calculations '!AQ31 -> 0 | R31: ='Individual Calculations '!AT31 -> 44144.83089 | S31: ='Individual Calculations '!AU31 -> 779892.0124 | U31: ='Individual Calculations '!AX31 -> 52330.96168
A32: 20 | B32: ='Individual Calculations '!B32 -> 2033 | C32: 59 | E32: ='Individual Calculations '!G32 -> 1263475.098 | F32: =IF(TargetMethod3=1,"NA",'Individual Calculations '!R32) -> 126347.5098 | H32: =IF(TargetMethod3=1,'Individual Calculations '!I32,'Individual Calculations '!S32) -> 30500 | I32: =IF(TargetMethod3=1,'Individual Calculations '!J32,'Individual Calculations '!T32) -> 9500 | J32: =IF(TargetMethod3=1,'Individual Calculations '!K32,'Individual Calculations '!U32) -> 10000 | K32: =IF(TargetMethod3=1,'Individual Calculations '!N32,'Individual Calculations '!V32) -> 50000 | L32: ='Individual Calculations '!AB32+'Individual Calculations '!AI32 -> 0 | M32: ='Individual Calculations '!AE32+'Individual Calculations '!AL32 -> 68813.28752 | N32: ='Individual Calculations '!AF32+'Individual Calculations '!AM32 -> 1215701.413 | P32: =IF(TargetMethod3=1,'Individual Calculations '!O32,'Individual Calculations '!W32) -> 30500 | Q32: ='Individual Calculations '!AQ32 -> 0 | R32: ='Individual Calculations '!AT32 -> 48623.52074 | S32: ='Individual Calculations '!AU32 -> 859015.5331 | U32: ='Individual Calculations '!AX32 -> 55847.50977
A33: 21 | B33: ='Individual Calculations '!B33 -> 2034 | C33: 60 | E33: ='Individual Calculations '!G33 -> 1326648.853 | F33: =IF(TargetMethod3=1,"NA",'Individual Calculations '!R33) -> 132664.8853 | H33: =IF(TargetMethod3=1,'Individual Calculations '!I33,'Individual Calculations '!S33) -> 31500 | I33: =IF(TargetMethod3=1,'Individual Calculations '!J33,'Individual Calculations '!T33) -> 9500 | J33: =IF(TargetMethod3=1,'Individual Calculations '!K33,'Individual Calculations '!U33) -> 10250 | K33: =IF(TargetMethod3=1,'Individual Calculations '!N33,'Individual Calculations '!V33) -> 51250 | L33: ='Individual Calculations '!AB33+'Individual Calculations '!AI33 -> 0 | M33: ='Individual Calculations '!AE33+'Individual Calculations '!AL33 -> 76017.08477 | N33: ='Individual Calculations '!AF33+'Individual Calculations '!AM33 -> 1342968.498 | P33: =IF(TargetMethod3=1,'Individual Calculations '!O33,'Individual Calculations '!W33) -> 31500 | Q33: ='Individual Calculations '!AQ33 -> 0 | R33: ='Individual Calculations '!AT33 -> 53430.93199 | S33: ='Individual Calculations '!AU33 -> 943946.4651 | U33: ='Individual Calculations '!AX33 -> 60164.88526
A34: 22 | B34: ='Individual Calculations '!B34 -> 2035 | C34: 61 | E34: ='Individual Calculations '!G34 -> 1392981.295 | F34: =IF(TargetMethod3=1,"NA",'Individual Calculations '!R34) -> 139298.1295 | H34: =IF(TargetMethod3=1,'Individual Calculations '!I34,'Individual Calculations '!S34) -> 32500 | I34: =IF(TargetMethod3=1,'Individual Calculations '!J34,'Individual Calculations '!T34) -> 10000 | J34: =IF(TargetMethod3=1,'Individual Calculations '!K34,'Individual Calculations '!U34) -> 10625 | K34: =IF(TargetMethod3=1,'Individual Calculations '!N34,'Individual Calculations '!V34) -> 53125 | L34: ='Individual Calculations '!AB34+'Individual Calculations '!AI34 -> 0 | M34: ='Individual Calculations '!AE34+'Individual Calculations '!AL34 -> 83765.60986 | N34: ='Individual Calculations '!AF34+'Individual Calculations '!AM34 -> 1479859.107 | P34: =IF(TargetMethod3=1,'Individual Calculations '!O34,'Individual Calculations '!W34) -> 32500 | Q34: ='Individual Calculations '!AQ34 -> 0 | R34: ='Individual Calculations '!AT34 -> 58586.78791 | S34: ='Individual Calculations '!AU34 -> 1035033.253 | U34: ='Individual Calculations '!AX34 -> 64298.12952
A35: 23 | B35: ='Individual Calculations '!B35 -> 2036 | C35: 62 | E35: ='Individual Calculations '!G35 -> 1462630.36 | F35: =IF(TargetMethod3=1,"NA",'Individual Calculations '!R35) -> 146263.036 | H35: =IF(TargetMethod3=1,'Individual Calculations '!I35,'Individual Calculations '!S35) -> 33500 | I35: =IF(TargetMethod3=1,'Individual Calculations '!J35,'Individual Calculations '!T35) -> 10500 | J35: =IF(TargetMethod3=1,'Individual Calculations '!K35,'Individual Calculations '!U35) -> 11000 | K35: =IF(TargetMethod3=1,'Individual Calculations '!N35,'Individual Calculations '!V35) -> 55000 | L35: ='Individual Calculations '!AB35+'Individual Calculations '!AI35 -> 0 | M35: ='Individual Calculations '!AE35+'Individual Calculations '!AL35 -> 92091.54645 | N35: ='Individual Calculations '!AF35+'Individual Calculations '!AM35 -> 1626950.654 | P35: =IF(TargetMethod3=1,'Individual Calculations '!O35,'Individual Calculations '!W35) -> 33500 | Q35: ='Individual Calculations '!AQ35 -> 0 | R35: ='Individual Calculations '!AT35 -> 64111.99518 | S35: ='Individual Calculations '!AU35 -> 1132645.248 | U35: ='Individual Calculations '!AX35 -> 68763.036
A36: 24 | B36: ='Individual Calculations '!B36 -> 2037 | C36: 63 | E36: ='Individual Calculations '!G36 -> 1535761.878 | F36: =IF(TargetMethod3=1,"NA",'Individual Calculations '!R36) -> 153576.1878 | H36: =IF(TargetMethod3=1,'Individual Calculations '!I36,'Individual Calculations '!S36) -> 34500 | I36: =IF(TargetMethod3=1,'Individual Calculations '!J36,'Individual Calculations '!T36) -> 10500 | J36: =IF(TargetMethod3=1,'Individual Calculations '!K36,'Individual Calculations '!U36) -> 11250 | K36: =IF(TargetMethod3=1,'Individual Calculations '!N36,'Individual Calculations '!V36) -> 56250 | L36: ='Individual Calculations '!AB36+'Individual Calculations '!AI36 -> 0 | M36: ='Individual Calculations '!AE36+'Individual Calculations '!AL36 -> 100992.0392 | N36: ='Individual Calculations '!AF36+'Individual Calculations '!AM36 -> 1784192.693 | P36: =IF(TargetMethod3=1,'Individual Calculations '!O36,'Individual Calculations '!W36) -> 34500 | Q36: ='Individual Calculations '!AQ36 -> 0 | R36: ='Individual Calculations '!AT36 -> 70028.71489 | S36: ='Individual Calculations '!AU36 -> 1237173.963 | U36: ='Individual Calculations '!AX36 -> 74076.1878
A37: 25 | B37: ='Individual Calculations '!B37 -> 2038 | C37: 64 | E37: ='Individual Calculations '!G37 -> 1612549.972 | F37: =IF(TargetMethod3=1,"NA",'Individual Calculations '!R37) -> 161254.9972 | H37: =IF(TargetMethod3=1,'Individual Calculations '!I37,'Individual Calculations '!S37) -> 35500 | I37: =IF(TargetMethod3=1,'Individual Calculations '!J37,'Individual Calculations '!T37) -> 11000 | J37: =IF(TargetMethod3=1,'Individual Calculations '!K37,'Individual Calculations '!U37) -> 11625 | K37: =IF(TargetMethod3=1,'Individual Calculations '!N37,'Individual Calculations '!V37) -> 58125 | L37: ='Individual Calculations '!AB37+'Individual Calculations '!AI37 -> 0 | M37: ='Individual Calculations '!AE37+'Individual Calculations '!AL37 -> 110539.0616 | N37: ='Individual Calculations '!AF37+'Individual Calculations '!AM37 -> 1952856.755 | P37: =IF(TargetMethod3=1,'Individual Calculations '!O37,'Individual Calculations '!W37) -> 35500 | Q37: ='Individual Calculations '!AQ37 -> 0 | R37: ='Individual Calculations '!AT37 -> 76360.43778 | S37: ='Individual Calculations '!AU37 -> 1349034.401 | U37: ='Individual Calculations '!AX37 -> 79254.99719
A38: 26 | B38: ='Individual Calculations '!B38 -> 2039 | C38: 65 | E38: ='Individual Calculations '!G38 -> 0 | F38: =IF(TargetMethod3=1,"NA",'Individual Calculations '!R38) -> 0 | H38: =IF(TargetMethod3=1,'Individual Calculations '!I38,'Individual Calculations '!S38) -> 0 | I38: =IF(TargetMethod3=1,'Individual Calculations '!J38,'Individual Calculations '!T38) -> 0 | J38: =IF(TargetMethod3=1,'Individual Calculations '!K38,'Individual Calculations '!U38) -> 0 | K38: =IF(TargetMethod3=1,'Individual Calculations '!N38,'Individual Calculations '!V38) -> 0 | L38: ='Individual Calculations '!AB38+'Individual Calculations '!AI38 -> -120198.2634 | M38: ='Individual Calculations '!AE38+'Individual Calculations '!AL38 -> 73306.33965 | N38: ='Individual Calculations '!AF38+'Individual Calculations '!AM38 -> 1905964.831 | P38: =IF(TargetMethod3=1,'Individual Calculations '!O38,'Individual Calculations '!W38) -> 0 | Q38: ='Individual Calculations '!AQ38 -> -83033.0191 | R38: ='Individual Calculations '!AT38 -> 50640.05527 | S38: ='Individual Calculations '!AU38 -> 1316641.437 | U38: ='Individual Calculations '!AX38 -> 0
A39: 27 | B39: ='Individual Calculations '!B39 -> 2040 | C39: 66 | E39: ='Individual Calculations '!G39 -> 0 | F39: =IF(TargetMethod3=1,"NA",'Individual Calculations '!R39) -> 0 | H39: =IF(TargetMethod3=1,'Individual Calculations '!I39,'Individual Calculations '!S39) -> 0 | I39: =IF(TargetMethod3=1,'Individual Calculations '!J39,'Individual Calculations '!T39) -> 0 | J39: =IF(TargetMethod3=1,'Individual Calculations '!K39,'Individual Calculations '!U39) -> 0 | K39: =IF(TargetMethod3=1,'Individual Calculations '!N39,'Individual Calculations '!V39) -> 0 | L39: ='Individual Calculations '!AB39+'Individual Calculations '!AI39 -> -120198.2634 | M39: ='Individual Calculations '!AE39+'Individual Calculations '!AL39 -> 71430.66271 | N39: ='Individual Calculations '!AF39+'Individual Calculations '!AM39 -> 1857197.23 | P39: =IF(TargetMethod3=1,'Individual Calculations '!O39,'Individual Calculations '!W39) -> 0 | Q39: ='Individual Calculations '!AQ39 -> -83033.0191 | R39: ='Individual Calculations '!AT39 -> 49344.33672 | S39: ='Individual Calculations '!AU39 -> 1282952.755 | U39: ='Individual Calculations '!AX39 -> 0
A40: 28 | B40: ='Individual Calculations '!B40 -> 2041 | C40: 67 | E40: ='Individual Calculations '!G40 -> 0 | F40: =IF(TargetMethod3=1,"NA",'Individual Calculations '!R40) -> 0 | H40: =IF(TargetMethod3=1,'Individual Calculations '!I40,'Individual Calculations '!S40) -> 0 | I40: =IF(TargetMethod3=1,'Individual Calculations '!J40,'Individual Calculations '!T40) -> 0 | J40: =IF(TargetMethod3=1,'Individual Calculations '!K40,'Individual Calculations '!U40) -> 0 | K40: =IF(TargetMethod3=1,'Individual Calculations '!N40,'Individual Calculations '!V40) -> 0 | L40: ='Individual Calculations '!AB40+'Individual Calculations '!AI40 -> -120198.2634 | M40: ='Individual Calculations '!AE40+'Individual Calculations '!AL40 -> 69479.95868 | N40: ='Individual Calculations '!AF40+'Individual Calculations '!AM40 -> 1806478.926 | P40: =IF(TargetMethod3=1,'Individual Calculations '!O40,'Individual Calculations '!W40) -> 0 | Q40: ='Individual Calculations '!AQ40 -> -83033.0191 | R40: ='Individual Calculations '!AT40 -> 47996.78942 | S40: ='Individual Calculations '!AU40 -> 1247916.525 | U40: ='Individual Calculations '!AX40 -> 0
A41: 29 | B41: ='Individual Calculations '!B41 -> 2042 | C41: 68 | E41: ='Individual Calculations '!G41 -> 0 | F41: =IF(TargetMethod3=1,"NA",'Individual Calculations '!R41) -> 0 | H41: =IF(TargetMethod3=1,'Individual Calculations '!I41,'Individual Calculations '!S41) -> 0 | I41: =IF(TargetMethod3=1,'Individual Calculations '!J41,'Individual Calculations '!T41) -> 0 | J41: =IF(TargetMethod3=1,'Individual Calculations '!K41,'Individual Calculations '!U41) -> 0 | K41: =IF(TargetMethod3=1,'Individual Calculations '!N41,'Individual Calculations '!V41) -> 0 | L41: ='Individual Calculations '!AB41+'Individual Calculations '!AI41 -> -120198.2634 | M41: ='Individual Calculations '!AE41+'Individual Calculations '!AL41 -> 67451.22649 | N41: ='Individual Calculations '!AF41+'Individual Calculations '!AM41 -> 1753731.889 | P41: =IF(TargetMethod3=1,'Individual Calculations '!O41,'Individual Calculations '!W41) -> 0 | Q41: ='Individual Calculations '!AQ41 -> -83033.0191 | R41: ='Individual Calculations '!AT41 -> 46595.34023 | S41: ='Individual Calculations '!AU41 -> 1211478.846 | U41: ='Individual Calculations '!AX41 -> 0
A42: 30 | B42: ='Individual Calculations '!B42 -> 2043 | C42: 69 | E42: ='Individual Calculations '!G42 -> 0 | F42: =IF(TargetMethod3=1,"NA",'Individual Calculations '!R42) -> 0 | H42: =IF(TargetMethod3=1,'Individual Calculations '!I42,'Individual Calculations '!S42) -> 0 | I42: =IF(TargetMethod3=1,'Individual Calculations '!J42,'Individual Calculations '!T42) -> 0 | J42: =IF(TargetMethod3=1,'Individual Calculations '!K42,'Individual Calculations '!U42) -> 0 | K42: =IF(TargetMethod3=1,'Individual Calculations '!N42,'Individual Calculations '!V42) -> 0 | L42: ='Individual Calculations '!AB42+'Individual Calculations '!AI42 -> -120198.2634 | M42: ='Individual Calculations '!AE42+'Individual Calculations '!AL42 -> 65341.34502 | N42: ='Individual Calculations '!AF42+'Individual Calculations '!AM42 -> 1698874.97 | P42: =IF(TargetMethod3=1,'Individual Calculations '!O42,'Individual Calculations '!W42) -> 0 | Q42: ='Individual Calculations '!AQ42 -> -83033.0191 | R42: ='Individual Calculations '!AT42 -> 45137.83308 | S42: ='Individual Calculations '!AU42 -> 1173583.66 | U42: ='Individual Calculations '!AX42 -> 0
A43: 31 | B43: ='Individual Calculations '!B43 -> 2044 | C43: 70 | E43: ='Individual Calculations '!G43 -> 0 | F43: =IF(TargetMethod3=1,"NA",'Individual Calculations '!R43) -> 0 | H43: =IF(TargetMethod3=1,'Individual Calculations '!I43,'Individual Calculations '!S43) -> 0 | I43: =IF(TargetMethod3=1,'Individual Calculations '!J43,'Individual Calculations '!T43) -> 0 | J43: =IF(TargetMethod3=1,'Individual Calculations '!K43,'Individual Calculations '!U43) -> 0 | K43: =IF(TargetMethod3=1,'Individual Calculations '!N43,'Individual Calculations '!V43) -> 0 | L43: ='Individual Calculations '!AB43+'Individual Calculations '!AI43 -> -120198.2634 | M43: ='Individual Calculations '!AE43+'Individual Calculations '!AL43 -> 63147.06828 | N43: ='Individual Calculations '!AF43+'Individual Calculations '!AM43 -> 1641823.775 | P43: =IF(TargetMethod3=1,'Individual Calculations '!O43,'Individual Calculations '!W43) -> 0 | Q43: ='Individual Calculations '!AQ43 -> -83033.0191 | R43: ='Individual Calculations '!AT43 -> 43622.02564 | S43: ='Individual Calculations '!AU43 -> 1134172.667 | U43: ='Individual Calculations '!AX43 -> 0
A44: 32 | B44: ='Individual Calculations '!B44 -> 2045 | C44: 71 | E44: ='Individual Calculations '!G44 -> 0 | F44: =IF(TargetMethod3=1,"NA",'Individual Calculations '!R44) -> 0 | H44: =IF(TargetMethod3=1,'Individual Calculations '!I44,'Individual Calculations '!S44) -> 0 | I44: =IF(TargetMethod3=1,'Individual Calculations '!J44,'Individual Calculations '!T44) -> 0 | J44: =IF(TargetMethod3=1,'Individual Calculations '!K44,'Individual Calculations '!U44) -> 0 | K44: =IF(TargetMethod3=1,'Individual Calculations '!N44,'Individual Calculations '!V44) -> 0 | L44: ='Individual Calculations '!AB44+'Individual Calculations '!AI44 -> -120198.2634 | M44: ='Individual Calculations '!AE44+'Individual Calculations '!AL44 -> 60865.02048 | N44: ='Individual Calculations '!AF44+'Individual Calculations '!AM44 -> 1582490.532 | P44: =IF(TargetMethod3=1,'Individual Calculations '!O44,'Individual Calculations '!W44) -> 0 | Q44: ='Individual Calculations '!AQ44 -> -83033.0191 | R44: ='Individual Calculations '!AT44 -> 42045.5859 | S44: ='Individual Calculations '!AU44 -> 1093185.233 | U44: ='Individual Calculations '!AX44 -> 0
A45: 33 | B45: ='Individual Calculations '!B45 -> 2046 | C45: 72 | E45: ='Individual Calculations '!G45 -> 0 | F45: =IF(TargetMethod3=1,"NA",'Individual Calculations '!R45) -> 0 | H45: =IF(TargetMethod3=1,'Individual Calculations '!I45,'Individual Calculations '!S45) -> 0 | I45: =IF(TargetMethod3=1,'Individual Calculations '!J45,'Individual Calculations '!T45) -> 0 | J45: =IF(TargetMethod3=1,'Individual Calculations '!K45,'Individual Calculations '!U45) -> 0 | K45: =IF(TargetMethod3=1,'Individual Calculations '!N45,'Individual Calculations '!V45) -> 0 | L45: ='Individual Calculations '!AB45+'Individual Calculations '!AI45 -> -120198.2634 | M45: ='Individual Calculations '!AE45+'Individual Calculations '!AL45 -> 58491.69076 | N45: ='Individual Calculations '!AF45+'Individual Calculations '!AM45 -> 1520783.96 | P45: =IF(TargetMethod3=1,'Individual Calculations '!O45,'Individual Calculations '!W45) -> 0 | Q45: ='Individual Calculations '!AQ45 -> -83033.0191 | R45: ='Individual Calculations '!AT45 -> 40406.08857 | S45: ='Individual Calculations '!AU45 -> 1050558.303 | U45: ='Individual Calculations '!AX45 -> 0
A46: 34 | B46: ='Individual Calculations '!B46 -> 2047 | C46: 73 | E46: ='Individual Calculations '!G46 -> 0 | F46: =IF(TargetMethod3=1,"NA",'Individual Calculations '!R46) -> 0 | H46: =IF(TargetMethod3=1,'Individual Calculations '!I46,'Individual Calculations '!S46) -> 0 | I46: =IF(TargetMethod3=1,'Individual Calculations '!J46,'Individual Calculations '!T46) -> 0 | J46: =IF(TargetMethod3=1,'Individual Calculations '!K46,'Individual Calculations '!U46) -> 0 | K46: =IF(TargetMethod3=1,'Individual Calculations '!N46,'Individual Calculations '!V46) -> 0 | L46: ='Individual Calculations '!AB46+'Individual Calculations '!AI46 -> -120198.2634 | M46: ='Individual Calculations '!AE46+'Individual Calculations '!AL46 -> 56023.42786 | N46: ='Individual Calculations '!AF46+'Individual Calculations '!AM46 -> 1456609.124 | P46: =IF(TargetMethod3=1,'Individual Calculations '!O46,'Individual Calculations '!W46) -> 0 | Q46: ='Individual Calculations '!AQ46 -> -83033.0191 | R46: ='Individual Calculations '!AT46 -> 38701.01135 | S46: ='Individual Calculations '!AU46 -> 1006226.295 | U46: ='Individual Calculations '!AX46 -> 0
A47: 35 | B47: ='Individual Calculations '!B47 -> 2048 | C47: 74 | E47: ='Individual Calculations '!G47 -> 0 | F47: =IF(TargetMethod3=1,"NA",'Individual Calculations '!R47) -> 0 | H47: =IF(TargetMethod3=1,'Individual Calculations '!I47,'Individual Calculations '!S47) -> 0 | I47: =IF(TargetMethod3=1,'Individual Calculations '!J47,'Individual Calculations '!T47) -> 0 | J47: =IF(TargetMethod3=1,'Individual Calculations '!K47,'Individual Calculations '!U47) -> 0 | K47: =IF(TargetMethod3=1,'Individual Calculations '!N47,'Individual Calculations '!V47) -> 0 | L47: ='Individual Calculations '!AB47+'Individual Calculations '!AI47 -> -120198.2634 | M47: ='Individual Calculations '!AE47+'Individual Calculations '!AL47 -> 53456.43444 | N47: ='Individual Calculations '!AF47+'Individual Calculations '!AM47 -> 1389867.295 | P47: =IF(TargetMethod3=1,'Individual Calculations '!O47,'Individual Calculations '!W47) -> 0 | Q47: ='Individual Calculations '!AQ47 -> -83033.0191 | R47: ='Individual Calculations '!AT47 -> 36927.73104 | S47: ='Individual Calculations '!AU47 -> 960121.0071 | U47: ='Individual Calculations '!AX47 -> 0
A48: 36 | B48: ='Individual Calculations '!B48 -> 2049 | C48: 75 | E48: ='Individual Calculations '!G48 -> 0 | F48: =IF(TargetMethod3=1,"NA",'Individual Calculations '!R48) -> 0 | H48: =IF(TargetMethod3=1,'Individual Calculations '!I48,'Individual Calculations '!S48) -> 0 | I48: =IF(TargetMethod3=1,'Individual Calculations '!J48,'Individual Calculations '!T48) -> 0 | J48: =IF(TargetMethod3=1,'Individual Calculations '!K48,'Individual Calculations '!U48) -> 0 | K48: =IF(TargetMethod3=1,'Individual Calculations '!N48,'Individual Calculations '!V48) -> 0 | L48: ='Individual Calculations '!AB48+'Individual Calculations '!AI48 -> -120198.2634 | M48: ='Individual Calculations '!AE48+'Individual Calculations '!AL48 -> 50786.76128 | N48: ='Individual Calculations '!AF48+'Individual Calculations '!AM48 -> 1320455.793 | P48: =IF(TargetMethod3=1,'Individual Calculations '!O48,'Individual Calculations '!W48) -> 0 | Q48: ='Individual Calculations '!AQ48 -> -83033.0191 | R48: ='Individual Calculations '!AT48 -> 35083.51952 | S48: ='Individual Calculations '!AU48 -> 912171.5075 | U48: ='Individual Calculations '!AX48 -> 0
A49: 37 | B49: ='Individual Calculations '!B49 -> 2050 | C49: 76 | E49: ='Individual Calculations '!G49 -> 0 | F49: =IF(TargetMethod3=1,"NA",'Individual Calculations '!R49) -> 0 | H49: =IF(TargetMethod3=1,'Individual Calculations '!I49,'Individual Calculations '!S49) -> 0 | I49: =IF(TargetMethod3=1,'Individual Calculations '!J49,'Individual Calculations '!T49) -> 0 | J49: =IF(TargetMethod3=1,'Individual Calculations '!K49,'Individual Calculations '!U49) -> 0 | K49: =IF(TargetMethod3=1,'Individual Calculations '!N49,'Individual Calculations '!V49) -> 0 | L49: ='Individual Calculations '!AB49+'Individual Calculations '!AI49 -> -120198.2634 | M49: ='Individual Calculations '!AE49+'Individual Calculations '!AL49 -> 48010.30119 | N49: ='Individual Calculations '!AF49+'Individual Calculations '!AM49 -> 1248267.831 | P49: =IF(TargetMethod3=1,'Individual Calculations '!O49,'Individual Calculations '!W49) -> 0 | Q49: ='Individual Calculations '!AQ49 -> -83033.0191 | R49: ='Individual Calculations '!AT49 -> 33165.53954 | S49: ='Individual Calculations '!AU49 -> 862304.0279 | U49: ='Individual Calculations '!AX49 -> 0
A50: 38 | B50: ='Individual Calculations '!B50 -> 2051 | C50: 77 | E50: ='Individual Calculations '!G50 -> 0 | F50: =IF(TargetMethod3=1,"NA",'Individual Calculations '!R50) -> 0 | H50: =IF(TargetMethod3=1,'Individual Calculations '!I50,'Individual Calculations '!S50) -> 0 | I50: =IF(TargetMethod3=1,'Individual Calculations '!J50,'Individual Calculations '!T50) -> 0 | J50: =IF(TargetMethod3=1,'Individual Calculations '!K50,'Individual Calculations '!U50) -> 0 | K50: =IF(TargetMethod3=1,'Individual Calculations '!N50,'Individual Calculations '!V50) -> 0 | L50: ='Individual Calculations '!AB50+'Individual Calculations '!AI50 -> -120198.2634 | M50: ='Individual Calculations '!AE50+'Individual Calculations '!AL50 -> 45122.78271 | N50: ='Individual Calculations '!AF50+'Individual Calculations '!AM50 -> 1173192.35 | P50: =IF(TargetMethod3=1,'Individual Calculations '!O50,'Individual Calculations '!W50) -> 0 | Q50: ='Individual Calculations '!AQ50 -> -83033.0191 | R50: ='Individual Calculations '!AT50 -> 31170.84035 | S50: ='Individual Calculations '!AU50 -> 810441.8492 | U50: ='Individual Calculations '!AX50 -> 0
A51: 39 | B51: ='Individual Calculations '!B51 -> 2052 | C51: 78 | E51: ='Individual Calculations '!G51 -> 0 | F51: =IF(TargetMethod3=1,"NA",'Individual Calculations '!R51) -> 0 | H51: =IF(TargetMethod3=1,'Individual Calculations '!I51,'Individual Calculations '!S51) -> 0 | I51: =IF(TargetMethod3=1,'Individual Calculations '!J51,'Individual Calculations '!T51) -> 0 | J51: =IF(TargetMethod3=1,'Individual Calculations '!K51,'Individual Calculations '!U51) -> 0 | K51: =IF(TargetMethod3=1,'Individual Calculations '!N51,'Individual Calculations '!V51) -> 0 | L51: ='Individual Calculations '!AB51+'Individual Calculations '!AI51 -> -120198.2634 | M51: ='Individual Calculations '!AE51+'Individual Calculations '!AL51 -> 42119.76348 | N51: ='Individual Calculations '!AF51+'Individual Calculations '!AM51 -> 1095113.85 | P51: =IF(TargetMethod3=1,'Individual Calculations '!O51,'Individual Calculations '!W51) -> 0 | Q51: ='Individual Calculations '!AQ51 -> -83033.0191 | R51: ='Individual Calculations '!AT51 -> 29096.3532 | S51: ='Individual Calculations '!AU51 -> 756505.1833 | U51: ='Individual Calculations '!AX51 -> 0
A52: 40 | B52: ='Individual Calculations '!B52 -> 2053 | C52: 79 | E52: ='Individual Calculations '!G52 -> 0 | F52: =IF(TargetMethod3=1,"NA",'Individual Calculations '!R52) -> 0 | H52: =IF(TargetMethod3=1,'Individual Calculations '!I52,'Individual Calculations '!S52) -> 0 | I52: =IF(TargetMethod3=1,'Individual Calculations '!J52,'Individual Calculations '!T52) -> 0 | J52: =IF(TargetMethod3=1,'Individual Calculations '!K52,'Individual Calculations '!U52) -> 0 | K52: =IF(TargetMethod3=1,'Individual Calculations '!N52,'Individual Calculations '!V52) -> 0 | L52: ='Individual Calculations '!AB52+'Individual Calculations '!AI52 -> -120198.2634 | M52: ='Individual Calculations '!AE52+'Individual Calculations '!AL52 -> 38996.62348 | N52: ='Individual Calculations '!AF52+'Individual Calculations '!AM52 -> 1013912.211 | P52: =IF(TargetMethod3=1,'Individual Calculations '!O52,'Individual Calculations '!W52) -> 0 | Q52: ='Individual Calculations '!AQ52 -> -83033.0191 | R52: ='Individual Calculations '!AT52 -> 26938.88657 | S52: ='Individual Calculations '!AU52 -> 700411.0507 | U52: ='Individual Calculations '!AX52 -> 0
A53: 41 | B53: ='Individual Calculations '!B53 -> 2054 | C53: 80 | E53: ='Individual Calculations '!G53 -> 0 | F53: =IF(TargetMethod3=1,"NA",'Individual Calculations '!R53) -> 0 | H53: =IF(TargetMethod3=1,'Individual Calculations '!I53,'Individual Calculations '!S53) -> 0 | I53: =IF(TargetMethod3=1,'Individual Calculations '!J53,'Individual Calculations '!T53) -> 0 | J53: =IF(TargetMethod3=1,'Individual Calculations '!K53,'Individual Calculations '!U53) -> 0 | K53: =IF(TargetMethod3=1,'Individual Calculations '!N53,'Individual Calculations '!V53) -> 0 | L53: ='Individual Calculations '!AB53+'Individual Calculations '!AI53 -> -120198.2634 | M53: ='Individual Calculations '!AE53+'Individual Calculations '!AL53 -> 35748.55789 | N53: ='Individual Calculations '!AF53+'Individual Calculations '!AM53 -> 929462.5051 | P53: =IF(TargetMethod3=1,'Individual Calculations '!O53,'Individual Calculations '!W53) -> 0 | Q53: ='Individual Calculations '!AQ53 -> -83033.0191 | R53: ='Individual Calculations '!AT53 -> 24695.12127 | S53: ='Individual Calculations '!AU53 -> 642073.1529 | U53: ='Individual Calculations '!AX53 -> 0
A54: 42 | B54: ='Individual Calculations '!B54 -> 2055 | C54: 81 | E54: ='Individual Calculations '!G54 -> 0 | F54: =IF(TargetMethod3=1,"NA",'Individual Calculations '!R54) -> 0 | H54: =IF(TargetMethod3=1,'Individual Calculations '!I54,'Individual Calculations '!S54) -> 0 | I54: =IF(TargetMethod3=1,'Individual Calculations '!J54,'Individual Calculations '!T54) -> 0 | J54: =IF(TargetMethod3=1,'Individual Calculations '!K54,'Individual Calculations '!U54) -> 0 | K54: =IF(TargetMethod3=1,'Individual Calculations '!N54,'Individual Calculations '!V54) -> 0 | L54: ='Individual Calculations '!AB54+'Individual Calculations '!AI54 -> -120198.2634 | M54: ='Individual Calculations '!AE54+'Individual Calculations '!AL54 -> 32370.56967 | N54: ='Individual Calculations '!AF54+'Individual Calculations '!AM54 -> 841634.8114 | P54: =IF(TargetMethod3=1,'Individual Calculations '!O54,'Individual Calculations '!W54) -> 0 | Q54: ='Individual Calculations '!AQ54 -> -83033.0191 | R54: ='Individual Calculations '!AT54 -> 22361.60535 | S54: ='Individual Calculations '!AU54 -> 581401.7392 | U54: ='Individual Calculations '!AX54 -> 0
A55: 43 | B55: ='Individual Calculations '!B55 -> 2056 | C55: 82 | E55: ='Individual Calculations '!G55 -> 0 | F55: =IF(TargetMethod3=1,"NA",'Individual Calculations '!R55) -> 0 | H55: =IF(TargetMethod3=1,'Individual Calculations '!I55,'Individual Calculations '!S55) -> 0 | I55: =IF(TargetMethod3=1,'Individual Calculations '!J55,'Individual Calculations '!T55) -> 0 | J55: =IF(TargetMethod3=1,'Individual Calculations '!K55,'Individual Calculations '!U55) -> 0 | K55: =IF(TargetMethod3=1,'Individual Calculations '!N55,'Individual Calculations '!V55) -> 0 | L55: ='Individual Calculations '!AB55+'Individual Calculations '!AI55 -> -120198.2634 | M55: ='Individual Calculations '!AE55+'Individual Calculations '!AL55 -> 28857.46192 | N55: ='Individual Calculations '!AF55+'Individual Calculations '!AM55 -> 750294.0099 | P55: =IF(TargetMethod3=1,'Individual Calculations '!O55,'Individual Calculations '!W55) -> 0 | Q55: ='Individual Calculations '!AQ55 -> -83033.0191 | R55: ='Individual Calculations '!AT55 -> 19934.7488 | S55: ='Individual Calculations '!AU55 -> 518303.4689 | U55: ='Individual Calculations '!AX55 -> 0
A56: 44 | B56: ='Individual Calculations '!B56 -> 2057 | C56: 83 | E56: ='Individual Calculations '!G56 -> 0 | F56: =IF(TargetMethod3=1,"NA",'Individual Calculations '!R56) -> 0 | H56: =IF(TargetMethod3=1,'Individual Calculations '!I56,'Individual Calculations '!S56) -> 0 | I56: =IF(TargetMethod3=1,'Individual Calculations '!J56,'Individual Calculations '!T56) -> 0 | J56: =IF(TargetMethod3=1,'Individual Calculations '!K56,'Individual Calculations '!U56) -> 0 | K56: =IF(TargetMethod3=1,'Individual Calculations '!N56,'Individual Calculations '!V56) -> 0 | L56: ='Individual Calculations '!AB56+'Individual Calculations '!AI56 -> -120198.2634 | M56: ='Individual Calculations '!AE56+'Individual Calculations '!AL56 -> 25203.82986 | N56: ='Individual Calculations '!AF56+'Individual Calculations '!AM56 -> 655299.5764 | P56: =IF(TargetMethod3=1,'Individual Calculations '!O56,'Individual Calculations '!W56) -> 0 | Q56: ='Individual Calculations '!AQ56 -> -83033.0191 | R56: ='Individual Calculations '!AT56 -> 17410.81799 | S56: ='Individual Calculations '!AU56 -> 452681.2677 | U56: ='Individual Calculations '!AX56 -> 0
A57: 45 | B57: ='Individual Calculations '!B57 -> 2058 | C57: 84 | E57: ='Individual Calculations '!G57 -> 0 | F57: =IF(TargetMethod3=1,"NA",'Individual Calculations '!R57) -> 0 | H57: =IF(TargetMethod3=1,'Individual Calculations '!I57,'Individual Calculations '!S57) -> 0 | I57: =IF(TargetMethod3=1,'Individual Calculations '!J57,'Individual Calculations '!T57) -> 0 | J57: =IF(TargetMethod3=1,'Individual Calculations '!K57,'Individual Calculations '!U57) -> 0 | K57: =IF(TargetMethod3=1,'Individual Calculations '!N57,'Individual Calculations '!V57) -> 0 | L57: ='Individual Calculations '!AB57+'Individual Calculations '!AI57 -> -120198.2634 | M57: ='Individual Calculations '!AE57+'Individual Calculations '!AL57 -> 21404.05252 | N57: ='Individual Calculations '!AF57+'Individual Calculations '!AM57 -> 556505.3656 | P57: =IF(TargetMethod3=1,'Individual Calculations '!O57,'Individual Calculations '!W57) -> 0 | Q57: ='Individual Calculations '!AQ57 -> -83033.0191 | R57: ='Individual Calculations '!AT57 -> 14785.92995 | S57: ='Individual Calculations '!AU57 -> 384434.1786 | U57: ='Individual Calculations '!AX57 -> 0
A58: 46 | B58: ='Individual Calculations '!B58 -> 2059 | C58: 85 | E58: ='Individual Calculations '!G58 -> 0 | F58: =IF(TargetMethod3=1,"NA",'Individual Calculations '!R58) -> 0 | H58: =IF(TargetMethod3=1,'Individual Calculations '!I58,'Individual Calculations '!S58) -> 0 | I58: =IF(TargetMethod3=1,'Individual Calculations '!J58,'Individual Calculations '!T58) -> 0 | J58: =IF(TargetMethod3=1,'Individual Calculations '!K58,'Individual Calculations '!U58) -> 0 | K58: =IF(TargetMethod3=1,'Individual Calculations '!N58,'Individual Calculations '!V58) -> 0 | L58: ='Individual Calculations '!AB58+'Individual Calculations '!AI58 -> -120198.2634 | M58: ='Individual Calculations '!AE58+'Individual Calculations '!AL58 -> 17452.28409 | N58: ='Individual Calculations '!AF58+'Individual Calculations '!AM58 -> 453759.3863 | P58: =IF(TargetMethod3=1,'Individual Calculations '!O58,'Individual Calculations '!W58) -> 0 | Q58: ='Individual Calculations '!AQ58 -> -83033.0191 | R58: ='Individual Calculations '!AT58 -> 12056.04638 | S58: ='Individual Calculations '!AU58 -> 313457.2059 | U58: ='Individual Calculations '!AX58 -> 0
A59: 47 | B59: ='Individual Calculations '!B59 -> 2060 | C59: 86 | E59: ='Individual Calculations '!G59 -> 0 | F59: =IF(TargetMethod3=1,"NA",'Individual Calculations '!R59) -> 0 | H59: =IF(TargetMethod3=1,'Individual Calculations '!I59,'Individual Calculations '!S59) -> 0 | I59: =IF(TargetMethod3=1,'Individual Calculations '!J59,'Individual Calculations '!T59) -> 0 | J59: =IF(TargetMethod3=1,'Individual Calculations '!K59,'Individual Calculations '!U59) -> 0 | K59: =IF(TargetMethod3=1,'Individual Calculations '!N59,'Individual Calculations '!V59) -> 0 | L59: ='Individual Calculations '!AB59+'Individual Calculations '!AI59 -> -120198.2634 | M59: ='Individual Calculations '!AE59+'Individual Calculations '!AL59 -> 13342.44492 | N59: ='Individual Calculations '!AF59+'Individual Calculations '!AM59 -> 346903.5678 | P59: =IF(TargetMethod3=1,'Individual Calculations '!O59,'Individual Calculations '!W59) -> 0 | Q59: ='Individual Calculations '!AQ59 -> -83033.0191 | R59: ='Individual Calculations '!AT59 -> 9216.967471 | S59: ='Individual Calculations '!AU59 -> 239641.1542 | U59: ='Individual Calculations '!AX59 -> 0
A60: 48 | B60: ='Individual Calculations '!B60 -> 2061 | C60: 87 | E60: ='Individual Calculations '!G60 -> 0 | F60: =IF(TargetMethod3=1,"NA",'Individual Calculations '!R60) -> 0 | H60: =IF(TargetMethod3=1,'Individual Calculations '!I60,'Individual Calculations '!S60) -> 0 | I60: =IF(TargetMethod3=1,'Individual Calculations '!J60,'Individual Calculations '!T60) -> 0 | J60: =IF(TargetMethod3=1,'Individual Calculations '!K60,'Individual Calculations '!U60) -> 0 | K60: =IF(TargetMethod3=1,'Individual Calculations '!N60,'Individual Calculations '!V60) -> 0 | L60: ='Individual Calculations '!AB60+'Individual Calculations '!AI60 -> -120198.2634 | M60: ='Individual Calculations '!AE60+'Individual Calculations '!AL60 -> 9068.212178 | N60: ='Individual Calculations '!AF60+'Individual Calculations '!AM60 -> 235773.5166 | P60: =IF(TargetMethod3=1,'Individual Calculations '!O60,'Individual Calculations '!W60) -> 0 | Q60: ='Individual Calculations '!AQ60 -> -83033.0191 | R60: ='Individual Calculations '!AT60 -> 6264.325406 | S60: ='Individual Calculations '!AU60 -> 162872.4605 | U60: ='Individual Calculations '!AX60 -> 0
A61: 49 | B61: ='Individual Calculations '!B61 -> 2062 | C61: 88 | E61: ='Individual Calculations '!G61 -> 0 | F61: =IF(TargetMethod3=1,"NA",'Individual Calculations '!R61) -> 0 | H61: =IF(TargetMethod3=1,'Individual Calculations '!I61,'Individual Calculations '!S61) -> 0 | I61: =IF(TargetMethod3=1,'Individual Calculations '!J61,'Individual Calculations '!T61) -> 0 | J61: =IF(TargetMethod3=1,'Individual Calculations '!K61,'Individual Calculations '!U61) -> 0 | K61: =IF(TargetMethod3=1,'Individual Calculations '!N61,'Individual Calculations '!V61) -> 0 | L61: ='Individual Calculations '!AB61+'Individual Calculations '!AI61 -> -120198.2634 | M61: ='Individual Calculations '!AE61+'Individual Calculations '!AL61 -> 4623.01013 | N61: ='Individual Calculations '!AF61+'Individual Calculations '!AM61 -> 120198.2634 | P61: =IF(TargetMethod3=1,'Individual Calculations '!O61,'Individual Calculations '!W61) -> 0 | Q61: ='Individual Calculations '!AQ61 -> -83033.0191 | R61: ='Individual Calculations '!AT61 -> 3193.577658 | S61: ='Individual Calculations '!AU61 -> 83033.0191 | U61: ='Individual Calculations '!AX61 -> 0
A62: 50 | B62: ='Individual Calculations '!B62 -> 2063 | C62: 89 | E62: ='Individual Calculations '!G62 -> 0 | F62: =IF(TargetMethod3=1,"NA",'Individual Calculations '!R62) -> 0 | H62: =IF(TargetMethod3=1,'Individual Calculations '!I62,'Individual Calculations '!S62) -> 0 | I62: =IF(TargetMethod3=1,'Individual Calculations '!J62,'Individual Calculations '!T62) -> 0 | J62: =IF(TargetMethod3=1,'Individual Calculations '!K62,'Individual Calculations '!U62) -> 0 | K62: =IF(TargetMethod3=1,'Individual Calculations '!N62,'Individual Calculations '!V62) -> 0 | L62: ='Individual Calculations '!AB62+'Individual Calculations '!AI62 -> -120198.2634 | M62: ='Individual Calculations '!AE62+'Individual Calculations '!AL62 -> 6.03904482e-11 | N62: ='Individual Calculations '!AF62+'Individual Calculations '!AM62 -> 1.564330887e-09 | P62: =IF(TargetMethod3=1,'Individual Calculations '!O62,'Individual Calculations '!W62) -> 0 | Q62: ='Individual Calculations '!AQ62 -> -83033.0191 | R62: ='Individual Calculations '!AT62 -> 3.899913281e-11 | S62: ='Individual Calculations '!AU62 -> 1.018634066e-09 | U62: ='Individual Calculations '!AX62 -> 0
A63: 51 | B63: ='Individual Calculations '!B63 -> 2064 | C63: 90 | E63: ='Individual Calculations '!G63 -> 0 | F63: =IF(TargetMethod3=1,"NA",'Individual Calculations '!R63) -> 0 | H63: =IF(TargetMethod3=1,'Individual Calculations '!I63,'Individual Calculations '!S63) -> 0 | I63: =IF(TargetMethod3=1,'Individual Calculations '!J63,'Individual Calculations '!T63) -> 0 | J63: =IF(TargetMethod3=1,'Individual Calculations '!K63,'Individual Calculations '!U63) -> 0 | K63: =IF(TargetMethod3=1,'Individual Calculations '!N63,'Individual Calculations '!V63) -> 0 | L63: ='Individual Calculations '!AB63+'Individual Calculations '!AI63 -> 0 | M63: ='Individual Calculations '!AE63+'Individual Calculations '!AL63 -> 6.257323548e-11 | N63: ='Individual Calculations '!AF63+'Individual Calculations '!AM63 -> 1.626904123e-09 | P63: =IF(TargetMethod3=1,'Individual Calculations '!O63,'Individual Calculations '!W63) -> 0 | Q63: ='Individual Calculations '!AQ63 -> 0 | R63: ='Individual Calculations '!AT63 -> 4.074536264e-11 | S63: ='Individual Calculations '!AU63 -> 1.059379429e-09 | U63: ='Individual Calculations '!AX63 -> 0
A64: 52 | B64: ='Individual Calculations '!B64 -> 2065 | C64: 91 | E64: ='Individual Calculations '!G64 -> 0 | F64: =IF(TargetMethod3=1,"NA",'Individual Calculations '!R64) -> 0 | H64: =IF(TargetMethod3=1,'Individual Calculations '!I64,'Individual Calculations '!S64) -> 0 | I64: =IF(TargetMethod3=1,'Individual Calculations '!J64,'Individual Calculations '!T64) -> 0 | J64: =IF(TargetMethod3=1,'Individual Calculations '!K64,'Individual Calculations '!U64) -> 0 | K64: =IF(TargetMethod3=1,'Individual Calculations '!N64,'Individual Calculations '!V64) -> 0 | L64: ='Individual Calculations '!AB64+'Individual Calculations '!AI64 -> 0 | M64: ='Individual Calculations '!AE64+'Individual Calculations '!AL64 -> 6.50761649e-11 | N64: ='Individual Calculations '!AF64+'Individual Calculations '!AM64 -> 1.691980287e-09 | P64: =IF(TargetMethod3=1,'Individual Calculations '!O64,'Individual Calculations '!W64) -> 0 | Q64: ='Individual Calculations '!AQ64 -> 0 | R64: ='Individual Calculations '!AT64 -> 4.237517715e-11 | S64: ='Individual Calculations '!AU64 -> 1.101754606e-09 | U64: ='Individual Calculations '!AX64 -> 0
A65: 53 | B65: ='Individual Calculations '!B65 -> 2066 | C65: 92 | E65: ='Individual Calculations '!G65 -> 0 | F65: =IF(TargetMethod3=1,"NA",'Individual Calculations '!R65) -> 0 | H65: =IF(TargetMethod3=1,'Individual Calculations '!I65,'Individual Calculations '!S65) -> 0 | I65: =IF(TargetMethod3=1,'Individual Calculations '!J65,'Individual Calculations '!T65) -> 0 | J65: =IF(TargetMethod3=1,'Individual Calculations '!K65,'Individual Calculations '!U65) -> 0 | K65: =IF(TargetMethod3=1,'Individual Calculations '!N65,'Individual Calculations '!V65) -> 0 | L65: ='Individual Calculations '!AB65+'Individual Calculations '!AI65 -> 0 | M65: ='Individual Calculations '!AE65+'Individual Calculations '!AL65 -> 6.76792115e-11 | N65: ='Individual Calculations '!AF65+'Individual Calculations '!AM65 -> 1.759659499e-09 | P65: =IF(TargetMethod3=1,'Individual Calculations '!O65,'Individual Calculations '!W65) -> 0 | Q65: ='Individual Calculations '!AQ65 -> 0 | R65: ='Individual Calculations '!AT65 -> 4.407018423e-11 | S65: ='Individual Calculations '!AU65 -> 1.14582479e-09 | U65: ='Individual Calculations '!AX65 -> 0
A66: 54 | B66: ='Individual Calculations '!B66 -> 2067 | C66: 93 | E66: ='Individual Calculations '!G66 -> 0 | F66: =IF(TargetMethod3=1,"NA",'Individual Calculations '!R66) -> 0 | H66: =IF(TargetMethod3=1,'Individual Calculations '!I66,'Individual Calculations '!S66) -> 0 | I66: =IF(TargetMethod3=1,'Individual Calculations '!J66,'Individual Calculations '!T66) -> 0 | J66: =IF(TargetMethod3=1,'Individual Calculations '!K66,'Individual Calculations '!U66) -> 0 | K66: =IF(TargetMethod3=1,'Individual Calculations '!N66,'Individual Calculations '!V66) -> 0 | L66: ='Individual Calculations '!AB66+'Individual Calculations '!AI66 -> 0 | M66: ='Individual Calculations '!AE66+'Individual Calculations '!AL66 -> 7.038637996e-11 | N66: ='Individual Calculations '!AF66+'Individual Calculations '!AM66 -> 1.830045879e-09 | P66: =IF(TargetMethod3=1,'Individual Calculations '!O66,'Individual Calculations '!W66) -> 0 | Q66: ='Individual Calculations '!AQ66 -> 0 | R66: ='Individual Calculations '!AT66 -> 4.58329916e-11 | S66: ='Individual Calculations '!AU66 -> 1.191657782e-09 | U66: ='Individual Calculations '!AX66 -> 0
A67: 55 | B67: ='Individual Calculations '!B67 -> 2068 | C67: 94 | E67: ='Individual Calculations '!G67 -> 0 | F67: =IF(TargetMethod3=1,"NA",'Individual Calculations '!R67) -> 0 | H67: =IF(TargetMethod3=1,'Individual Calculations '!I67,'Individual Calculations '!S67) -> 0 | I67: =IF(TargetMethod3=1,'Individual Calculations '!J67,'Individual Calculations '!T67) -> 0 | J67: =IF(TargetMethod3=1,'Individual Calculations '!K67,'Individual Calculations '!U67) -> 0 | K67: =IF(TargetMethod3=1,'Individual Calculations '!N67,'Individual Calculations '!V67) -> 0 | L67: ='Individual Calculations '!AB67+'Individual Calculations '!AI67 -> 0 | M67: ='Individual Calculations '!AE67+'Individual Calculations '!AL67 -> 7.320183516e-11 | N67: ='Individual Calculations '!AF67+'Individual Calculations '!AM67 -> 1.903247714e-09 | P67: =IF(TargetMethod3=1,'Individual Calculations '!O67,'Individual Calculations '!W67) -> 0 | Q67: ='Individual Calculations '!AQ67 -> 0 | R67: ='Individual Calculations '!AT67 -> 4.766631126e-11 | S67: ='Individual Calculations '!AU67 -> 1.239324093e-09 | U67: ='Individual Calculations '!AX67 -> 0
A68: 56 | B68: ='Individual Calculations '!B68 -> 2069 | C68: 95 | E68: ='Individual Calculations '!G68 -> 0 | F68: =IF(TargetMethod3=1,"NA",'Individual Calculations '!R68) -> 0 | H68: =IF(TargetMethod3=1,'Individual Calculations '!I68,'Individual Calculations '!S68) -> 0 | I68: =IF(TargetMethod3=1,'Individual Calculations '!J68,'Individual Calculations '!T68) -> 0 | J68: =IF(TargetMethod3=1,'Individual Calculations '!K68,'Individual Calculations '!U68) -> 0 | K68: =IF(TargetMethod3=1,'Individual Calculations '!N68,'Individual Calculations '!V68) -> 0 | L68: ='Individual Calculations '!AB68+'Individual Calculations '!AI68 -> 0 | M68: ='Individual Calculations '!AE68+'Individual Calculations '!AL68 -> 7.612990856e-11 | N68: ='Individual Calculations '!AF68+'Individual Calculations '!AM68 -> 1.979377623e-09 | P68: =IF(TargetMethod3=1,'Individual Calculations '!O68,'Individual Calculations '!W68) -> 0 | Q68: ='Individual Calculations '!AQ68 -> 0 | R68: ='Individual Calculations '!AT68 -> 4.957296371e-11 | S68: ='Individual Calculations '!AU68 -> 1.288897057e-09 | U68: ='Individual Calculations '!AX68 -> 0
A69: 57 | B69: ='Individual Calculations '!B69 -> 2070 | C69: 96 | E69: ='Individual Calculations '!G69 -> 0 | F69: =IF(TargetMethod3=1,"NA",'Individual Calculations '!R69) -> 0 | H69: =IF(TargetMethod3=1,'Individual Calculations '!I69,'Individual Calculations '!S69) -> 0 | I69: =IF(TargetMethod3=1,'Individual Calculations '!J69,'Individual Calculations '!T69) -> 0 | J69: =IF(TargetMethod3=1,'Individual Calculations '!K69,'Individual Calculations '!U69) -> 0 | K69: =IF(TargetMethod3=1,'Individual Calculations '!N69,'Individual Calculations '!V69) -> 0 | L69: ='Individual Calculations '!AB69+'Individual Calculations '!AI69 -> 0 | M69: ='Individual Calculations '!AE69+'Individual Calculations '!AL69 -> 7.91751049e-11 | N69: ='Individual Calculations '!AF69+'Individual Calculations '!AM69 -> 2.058552728e-09 | P69: =IF(TargetMethod3=1,'Individual Calculations '!O69,'Individual Calculations '!W69) -> 0 | Q69: ='Individual Calculations '!AQ69 -> 0 | R69: ='Individual Calculations '!AT69 -> 5.155588226e-11 | S69: ='Individual Calculations '!AU69 -> 1.340452939e-09 | U69: ='Individual Calculations '!AX69 -> 0
A70: 58 | B70: ='Individual Calculations '!B70 -> 2071 | C70: 97 | E70: ='Individual Calculations '!G70 -> 0 | F70: =IF(TargetMethod3=1,"NA",'Individual Calculations '!R70) -> 0 | H70: =IF(TargetMethod3=1,'Individual Calculations '!I70,'Individual Calculations '!S70) -> 0 | I70: =IF(TargetMethod3=1,'Individual Calculations '!J70,'Individual Calculations '!T70) -> 0 | J70: =IF(TargetMethod3=1,'Individual Calculations '!K70,'Individual Calculations '!U70) -> 0 | K70: =IF(TargetMethod3=1,'Individual Calculations '!N70,'Individual Calculations '!V70) -> 0 | L70: ='Individual Calculations '!AB70+'Individual Calculations '!AI70 -> 0 | M70: ='Individual Calculations '!AE70+'Individual Calculations '!AL70 -> 8.23421091e-11 | N70: ='Individual Calculations '!AF70+'Individual Calculations '!AM70 -> 2.140894837e-09 | P70: =IF(TargetMethod3=1,'Individual Calculations '!O70,'Individual Calculations '!W70) -> 0 | Q70: ='Individual Calculations '!AQ70 -> 0 | R70: ='Individual Calculations '!AT70 -> 5.361811755e-11 | S70: ='Individual Calculations '!AU70 -> 1.394071056e-09 | U70: ='Individual Calculations '!AX70 -> 0
A71: 59 | B71: ='Individual Calculations '!B71 -> 2072 | C71: 98 | E71: ='Individual Calculations '!G71 -> 0 | F71: =IF(TargetMethod3=1,"NA",'Individual Calculations '!R71) -> 0 | H71: =IF(TargetMethod3=1,'Individual Calculations '!I71,'Individual Calculations '!S71) -> 0 | I71: =IF(TargetMethod3=1,'Individual Calculations '!J71,'Individual Calculations '!T71) -> 0 | J71: =IF(TargetMethod3=1,'Individual Calculations '!K71,'Individual Calculations '!U71) -> 0 | K71: =IF(TargetMethod3=1,'Individual Calculations '!N71,'Individual Calculations '!V71) -> 0 | L71: ='Individual Calculations '!AB71+'Individual Calculations '!AI71 -> 0 | M71: ='Individual Calculations '!AE71+'Individual Calculations '!AL71 -> 8.563579346e-11 | N71: ='Individual Calculations '!AF71+'Individual Calculations '!AM71 -> 2.22653063e-09 | P71: =IF(TargetMethod3=1,'Individual Calculations '!O71,'Individual Calculations '!W71) -> 0 | Q71: ='Individual Calculations '!AQ71 -> 0 | R71: ='Individual Calculations '!AT71 -> 5.576284226e-11 | S71: ='Individual Calculations '!AU71 -> 1.449833899e-09 | U71: ='Individual Calculations '!AX71 -> 0
A72: 60 | B72: ='Individual Calculations '!B72 -> 2073 | C72: 99 | E72: ='Individual Calculations '!G72 -> 0 | F72: =IF(TargetMethod3=1,"NA",'Individual Calculations '!R72) -> 0 | H72: =IF(TargetMethod3=1,'Individual Calculations '!I72,'Individual Calculations '!S72) -> 0 | I72: =IF(TargetMethod3=1,'Individual Calculations '!J72,'Individual Calculations '!T72) -> 0 | J72: =IF(TargetMethod3=1,'Individual Calculations '!K72,'Individual Calculations '!U72) -> 0 | K72: =IF(TargetMethod3=1,'Individual Calculations '!N72,'Individual Calculations '!V72) -> 0 | L72: ='Individual Calculations '!AB72+'Individual Calculations '!AI72 -> 0 | M72: ='Individual Calculations '!AE72+'Individual Calculations '!AL72 -> 8.90612252e-11 | N72: ='Individual Calculations '!AF72+'Individual Calculations '!AM72 -> 2.315591855e-09 | P72: =IF(TargetMethod3=1,'Individual Calculations '!O72,'Individual Calculations '!W72) -> 0 | Q72: ='Individual Calculations '!AQ72 -> 0 | R72: ='Individual Calculations '!AT72 -> 5.799335595e-11 | S72: ='Individual Calculations '!AU72 -> 1.507827255e-09 | U72: ='Individual Calculations '!AX72 -> 0
A73: 61 | B73: ='Individual Calculations '!B73 -> 2074 | C73: 100 | E73: ='Individual Calculations '!G73 -> 0 | F73: =IF(TargetMethod3=1,"NA",'Individual Calculations '!R73) -> 0 | H73: =IF(TargetMethod3=1,'Individual Calculations '!I73,'Individual Calculations '!S73) -> 0 | I73: =IF(TargetMethod3=1,'Individual Calculations '!J73,'Individual Calculations '!T73) -> 0 | J73: =IF(TargetMethod3=1,'Individual Calculations '!K73,'Individual Calculations '!U73) -> 0 | K73: =IF(TargetMethod3=1,'Individual Calculations '!N73,'Individual Calculations '!V73) -> 0 | L73: ='Individual Calculations '!AB73+'Individual Calculations '!AI73 -> 0 | M73: ='Individual Calculations '!AE73+'Individual Calculations '!AL73 -> 9.262367421e-11 | N73: ='Individual Calculations '!AF73+'Individual Calculations '!AM73 -> 2.408215529e-09 | P73: =IF(TargetMethod3=1,'Individual Calculations '!O73,'Individual Calculations '!W73) -> 0 | Q73: ='Individual Calculations '!AQ73 -> 0 | R73: ='Individual Calculations '!AT73 -> 6.031309018e-11 | S73: ='Individual Calculations '!AU73 -> 1.568140345e-09 | U73: ='Individual Calculations '!AX73 -> 0
A74: 62 | B74: ='Individual Calculations '!B74 -> 2075 | C74: 101 | E74: ='Individual Calculations '!G74 -> 0 | F74: =IF(TargetMethod3=1,"NA",'Individual Calculations '!R74) -> 0 | H74: =IF(TargetMethod3=1,'Individual Calculations '!I74,'Individual Calculations '!S74) -> 0 | I74: =IF(TargetMethod3=1,'Individual Calculations '!J74,'Individual Calculations '!T74) -> 0 | J74: =IF(TargetMethod3=1,'Individual Calculations '!K74,'Individual Calculations '!U74) -> 0 | K74: =IF(TargetMethod3=1,'Individual Calculations '!N74,'Individual Calculations '!V74) -> 0 | L74: ='Individual Calculations '!AB74+'Individual Calculations '!AI74 -> 0 | M74: ='Individual Calculations '!AE74+'Individual Calculations '!AL74 -> 9.632862118e-11 | N74: ='Individual Calculations '!AF74+'Individual Calculations '!AM74 -> 2.504544151e-09 | P74: =IF(TargetMethod3=1,'Individual Calculations '!O74,'Individual Calculations '!W74) -> 0 | Q74: ='Individual Calculations '!AQ74 -> 0 | R74: ='Individual Calculations '!AT74 -> 6.272561379e-11 | S74: ='Individual Calculations '!AU74 -> 1.630865959e-09 | U74: ='Individual Calculations '!AX74 -> 0
A75: 63 | B75: ='Individual Calculations '!B75 -> 2076 | C75: 102 | E75: ='Individual Calculations '!G75 -> 0 | F75: =IF(TargetMethod3=1,"NA",'Individual Calculations '!R75) -> 0 | H75: =IF(TargetMethod3=1,'Individual Calculations '!I75,'Individual Calculations '!S75) -> 0 | I75: =IF(TargetMethod3=1,'Individual Calculations '!J75,'Individual Calculations '!T75) -> 0 | J75: =IF(TargetMethod3=1,'Individual Calculations '!K75,'Individual Calculations '!U75) -> 0 | K75: =IF(TargetMethod3=1,'Individual Calculations '!N75,'Individual Calculations '!V75) -> 0 | L75: ='Individual Calculations '!AB75+'Individual Calculations '!AI75 -> 0 | M75: ='Individual Calculations '!AE75+'Individual Calculations '!AL75 -> 1.00181766e-10 | N75: ='Individual Calculations '!AF75+'Individual Calculations '!AM75 -> 2.604725917e-09 | P75: =IF(TargetMethod3=1,'Individual Calculations '!O75,'Individual Calculations '!W75) -> 0 | Q75: ='Individual Calculations '!AQ75 -> 0 | R75: ='Individual Calculations '!AT75 -> 6.523463834e-11 | S75: ='Individual Calculations '!AU75 -> 1.696100597e-09 | U75: ='Individual Calculations '!AX75 -> 0
A76: 64 | B76: ='Individual Calculations '!B76 -> 2077 | C76: 103 | E76: ='Individual Calculations '!G76 -> 0 | F76: =IF(TargetMethod3=1,"NA",'Individual Calculations '!R76) -> 0 | H76: =IF(TargetMethod3=1,'Individual Calculations '!I76,'Individual Calculations '!S76) -> 0 | I76: =IF(TargetMethod3=1,'Individual Calculations '!J76,'Individual Calculations '!T76) -> 0 | J76: =IF(TargetMethod3=1,'Individual Calculations '!K76,'Individual Calculations '!U76) -> 0 | K76: =IF(TargetMethod3=1,'Individual Calculations '!N76,'Individual Calculations '!V76) -> 0 | L76: ='Individual Calculations '!AB76+'Individual Calculations '!AI76 -> 0 | M76: ='Individual Calculations '!AE76+'Individual Calculations '!AL76 -> 1.041890367e-10 | N76: ='Individual Calculations '!AF76+'Individual Calculations '!AM76 -> 2.708914953e-09 | P76: =IF(TargetMethod3=1,'Individual Calculations '!O76,'Individual Calculations '!W76) -> 0 | Q76: ='Individual Calculations '!AQ76 -> 0 | R76: ='Individual Calculations '!AT76 -> 6.784402388e-11 | S76: ='Individual Calculations '!AU76 -> 1.763944621e-09 | U76: ='Individual Calculations '!AX76 -> 0
A77: 65 | B77: ='Individual Calculations '!B77 -> 2078 | C77: 104 | E77: ='Individual Calculations '!G77 -> 0 | F77: =IF(TargetMethod3=1,"NA",'Individual Calculations '!R77) -> 0 | H77: =IF(TargetMethod3=1,'Individual Calculations '!I77,'Individual Calculations '!S77) -> 0 | I77: =IF(TargetMethod3=1,'Individual Calculations '!J77,'Individual Calculations '!T77) -> 0 | J77: =IF(TargetMethod3=1,'Individual Calculations '!K77,'Individual Calculations '!U77) -> 0 | K77: =IF(TargetMethod3=1,'Individual Calculations '!N77,'Individual Calculations '!V77) -> 0 | L77: ='Individual Calculations '!AB77+'Individual Calculations '!AI77 -> 0 | M77: ='Individual Calculations '!AE77+'Individual Calculations '!AL77 -> 1.083565981e-10 | N77: ='Individual Calculations '!AF77+'Individual Calculations '!AM77 -> 2.817271551e-09 | P77: =IF(TargetMethod3=1,'Individual Calculations '!O77,'Individual Calculations '!W77) -> 0 | Q77: ='Individual Calculations '!AQ77 -> 0 | R77: ='Individual Calculations '!AT77 -> 7.055778483e-11 | S77: ='Individual Calculations '!AU77 -> 1.834502406e-09 | U77: ='Individual Calculations '!AX77 -> 0
A78: 66 | B78: ='Individual Calculations '!B78 -> 2079 | C78: 105 | E78: ='Individual Calculations '!G78 -> 0 | F78: =IF(TargetMethod3=1,"NA",'Individual Calculations '!R78) -> 0 | H78: =IF(TargetMethod3=1,'Individual Calculations '!I78,'Individual Calculations '!S78) -> 0 | I78: =IF(TargetMethod3=1,'Individual Calculations '!J78,'Individual Calculations '!T78) -> 0 | J78: =IF(TargetMethod3=1,'Individual Calculations '!K78,'Individual Calculations '!U78) -> 0 | K78: =IF(TargetMethod3=1,'Individual Calculations '!N78,'Individual Calculations '!V78) -> 0 | L78: ='Individual Calculations '!AB78+'Individual Calculations '!AI78 -> 0 | M78: ='Individual Calculations '!AE78+'Individual Calculations '!AL78 -> 1.126908621e-10 | N78: ='Individual Calculations '!AF78+'Individual Calculations '!AM78 -> 2.929962414e-09 | P78: =IF(TargetMethod3=1,'Individual Calculations '!O78,'Individual Calculations '!W78) -> 0 | Q78: ='Individual Calculations '!AQ78 -> 0 | R78: ='Individual Calculations '!AT78 -> 7.338009623e-11 | S78: ='Individual Calculations '!AU78 -> 1.907882502e-09 | U78: ='Individual Calculations '!AX78 -> 0
A79: =A78+1 -> 67 | B79: ='Individual Calculations '!B79 -> 2080 | C79: =IF(A79="","",+C78+1) -> 106 | E79: ='Individual Calculations '!G79 -> 0 | F79: =IF(TargetMethod3=1,"NA",'Individual Calculations '!R79) -> 0 | H79: =IF(TargetMethod3=1,'Individual Calculations '!I79,'Individual Calculations '!S79) -> 0 | I79: =IF(TargetMethod3=1,'Individual Calculations '!J79,'Individual Calculations '!T79) -> 0 | J79: =IF(TargetMethod3=1,'Individual Calculations '!K79,'Individual Calculations '!U79) -> 0 | K79: =IF(TargetMethod3=1,'Individual Calculations '!N79,'Individual Calculations '!V79) -> 0 | L79: ='Individual Calculations '!AB79+'Individual Calculations '!AI79 -> 0 | M79: ='Individual Calculations '!AE79+'Individual Calculations '!AL79 -> 1.171984965e-10 | N79: ='Individual Calculations '!AF79+'Individual Calculations '!AM79 -> 3.04716091e-09 | P79: =IF(TargetMethod3=1,'Individual Calculations '!O79,'Individual Calculations '!W79) -> 0 | Q79: ='Individual Calculations '!AQ79 -> 0 | R79: ='Individual Calculations '!AT79 -> 7.631530007e-11 | S79: ='Individual Calculations '!AU79 -> 1.984197802e-09 | U79: ='Individual Calculations '!AX79 -> 0
A80: 68 | B80: ='Individual Calculations '!B80 -> 2081 | C80: 107 | E80: ='Individual Calculations '!G80 -> 0 | F80: =IF(TargetMethod3=1,"NA",'Individual Calculations '!R80) -> 0 | H80: =IF(TargetMethod3=1,'Individual Calculations '!I80,'Individual Calculations '!S80) -> 0 | I80: =IF(TargetMethod3=1,'Individual Calculations '!J80,'Individual Calculations '!T80) -> 0 | J80: =IF(TargetMethod3=1,'Individual Calculations '!K80,'Individual Calculations '!U80) -> 0 | K80: =IF(TargetMethod3=1,'Individual Calculations '!N80,'Individual Calculations '!V80) -> 0 | L80: ='Individual Calculations '!AB80+'Individual Calculations '!AI80 -> 0 | M80: ='Individual Calculations '!AE80+'Individual Calculations '!AL80 -> 1.218864364e-10 | N80: ='Individual Calculations '!AF80+'Individual Calculations '!AM80 -> 3.169047347e-09 | P80: =IF(TargetMethod3=1,'Individual Calculations '!O80,'Individual Calculations '!W80) -> 0 | Q80: ='Individual Calculations '!AQ80 -> 0 | R80: ='Individual Calculations '!AT80 -> 7.936791208e-11 | S80: ='Individual Calculations '!AU80 -> 2.063565714e-09 | U80: ='Individual Calculations '!AX80 -> 0
A81: 69 | B81: ='Individual Calculations '!B81 -> 2082 | C81: 108 | E81: ='Individual Calculations '!G81 -> 0 | F81: =IF(TargetMethod3=1,"NA",'Individual Calculations '!R81) -> 0 | H81: =IF(TargetMethod3=1,'Individual Calculations '!I81,'Individual Calculations '!S81) -> 0 | I81: =IF(TargetMethod3=1,'Individual Calculations '!J81,'Individual Calculations '!T81) -> 0 | J81: =IF(TargetMethod3=1,'Individual Calculations '!K81,'Individual Calculations '!U81) -> 0 | K81: =IF(TargetMethod3=1,'Individual Calculations '!N81,'Individual Calculations '!V81) -> 0 | L81: ='Individual Calculations '!AB81+'Individual Calculations '!AI81 -> 0 | M81: ='Individual Calculations '!AE81+'Individual Calculations '!AL81 -> 1.267618939e-10 | N81: ='Individual Calculations '!AF81+'Individual Calculations '!AM81 -> 3.29580924e-09 | P81: =IF(TargetMethod3=1,'Individual Calculations '!O81,'Individual Calculations '!W81) -> 0 | Q81: ='Individual Calculations '!AQ81 -> 0 | R81: ='Individual Calculations '!AT81 -> 8.254262856e-11 | S81: ='Individual Calculations '!AU81 -> 2.146108343e-09 | U81: ='Individual Calculations '!AX81 -> 0
A82: 70 | B82: ='Individual Calculations '!B82 -> 2083 | C82: 109 | E82: ='Individual Calculations '!G82 -> 0 | F82: =IF(TargetMethod3=1,"NA",'Individual Calculations '!R82) -> 0 | H82: =IF(TargetMethod3=1,'Individual Calculations '!I82,'Individual Calculations '!S82) -> 0 | I82: =IF(TargetMethod3=1,'Individual Calculations '!J82,'Individual Calculations '!T82) -> 0 | J82: =IF(TargetMethod3=1,'Individual Calculations '!K82,'Individual Calculations '!U82) -> 0 | K82: =IF(TargetMethod3=1,'Individual Calculations '!N82,'Individual Calculations '!V82) -> 0 | L82: ='Individual Calculations '!AB82+'Individual Calculations '!AI82 -> 0 | M82: ='Individual Calculations '!AE82+'Individual Calculations '!AL82 -> 1.318323696e-10 | N82: ='Individual Calculations '!AF82+'Individual Calculations '!AM82 -> 3.42764161e-09 | P82: =IF(TargetMethod3=1,'Individual Calculations '!O82,'Individual Calculations '!W82) -> 0 | Q82: ='Individual Calculations '!AQ82 -> 0 | R82: ='Individual Calculations '!AT82 -> 8.58443337e-11 | S82: ='Individual Calculations '!AU82 -> 2.231952676e-09 | U82: ='Individual Calculations '!AX82 -> 0
A83: 71 | B83: ='Individual Calculations '!B83 -> 2084 | C83: 110 | E83: ='Individual Calculations '!G83 -> 0 | F83: =IF(TargetMethod3=1,"NA",'Individual Calculations '!R83) -> 0 | H83: =IF(TargetMethod3=1,'Individual Calculations '!I83,'Individual Calculations '!S83) -> 0 | I83: =IF(TargetMethod3=1,'Individual Calculations '!J83,'Individual Calculations '!T83) -> 0 | J83: =IF(TargetMethod3=1,'Individual Calculations '!K83,'Individual Calculations '!U83) -> 0 | K83: =IF(TargetMethod3=1,'Individual Calculations '!N83,'Individual Calculations '!V83) -> 0 | L83: ='Individual Calculations '!AB83+'Individual Calculations '!AI83 -> 0 | M83: ='Individual Calculations '!AE83+'Individual Calculations '!AL83 -> 1.371056644e-10 | N83: ='Individual Calculations '!AF83+'Individual Calculations '!AM83 -> 3.564747274e-09 | P83: =IF(TargetMethod3=1,'Individual Calculations '!O83,'Individual Calculations '!W83) -> 0 | Q83: ='Individual Calculations '!AQ83 -> 0 | R83: ='Individual Calculations '!AT83 -> 8.927810705e-11 | S83: ='Individual Calculations '!AU83 -> 2.321230783e-09 | U83: ='Individual Calculations '!AX83 -> 0
A84: 72 | B84: ='Individual Calculations '!B84 -> 2085 | C84: 111 | E84: ='Individual Calculations '!G84 -> 0 | F84: =IF(TargetMethod3=1,"NA",'Individual Calculations '!R84) -> 0 | H84: =IF(TargetMethod3=1,'Individual Calculations '!I84,'Individual Calculations '!S84) -> 0 | I84: =IF(TargetMethod3=1,'Individual Calculations '!J84,'Individual Calculations '!T84) -> 0 | J84: =IF(TargetMethod3=1,'Individual Calculations '!K84,'Individual Calculations '!U84) -> 0 | K84: =IF(TargetMethod3=1,'Individual Calculations '!N84,'Individual Calculations '!V84) -> 0 | L84: ='Individual Calculations '!AB84+'Individual Calculations '!AI84 -> 0 | M84: ='Individual Calculations '!AE84+'Individual Calculations '!AL84 -> 1.42589891e-10 | N84: ='Individual Calculations '!AF84+'Individual Calculations '!AM84 -> 3.707337165e-09 | P84: =IF(TargetMethod3=1,'Individual Calculations '!O84,'Individual Calculations '!W84) -> 0 | Q84: ='Individual Calculations '!AQ84 -> 0 | R84: ='Individual Calculations '!AT84 -> 9.284923133e-11 | S84: ='Individual Calculations '!AU84 -> 2.414080015e-09 | U84: ='Individual Calculations '!AX84 -> 0
A85: 73 | B85: ='Individual Calculations '!B85 -> 2086 | C85: 112 | E85: ='Individual Calculations '!G85 -> 0 | F85: =IF(TargetMethod3=1,"NA",'Individual Calculations '!R85) -> 0 | H85: =IF(TargetMethod3=1,'Individual Calculations '!I85,'Individual Calculations '!S85) -> 0 | I85: =IF(TargetMethod3=1,'Individual Calculations '!J85,'Individual Calculations '!T85) -> 0 | J85: =IF(TargetMethod3=1,'Individual Calculations '!K85,'Individual Calculations '!U85) -> 0 | K85: =IF(TargetMethod3=1,'Individual Calculations '!N85,'Individual Calculations '!V85) -> 0 | L85: ='Individual Calculations '!AB85+'Individual Calculations '!AI85 -> 0 | M85: ='Individual Calculations '!AE85+'Individual Calculations '!AL85 -> 1.482934866e-10 | N85: ='Individual Calculations '!AF85+'Individual Calculations '!AM85 -> 3.855630652e-09 | P85: =IF(TargetMethod3=1,'Individual Calculations '!O85,'Individual Calculations '!W85) -> 0 | Q85: ='Individual Calculations '!AQ85 -> 0 | R85: ='Individual Calculations '!AT85 -> 9.656320059e-11 | S85: ='Individual Calculations '!AU85 -> 2.510643215e-09 | U85: ='Individual Calculations '!AX85 -> 0
A86: 74 | B86: ='Individual Calculations '!B86 -> 2087 | C86: 113 | E86: ='Individual Calculations '!G86 -> 0 | F86: =IF(TargetMethod3=1,"NA",'Individual Calculations '!R86) -> 0 | H86: =IF(TargetMethod3=1,'Individual Calculations '!I86,'Individual Calculations '!S86) -> 0 | I86: =IF(TargetMethod3=1,'Individual Calculations '!J86,'Individual Calculations '!T86) -> 0 | J86: =IF(TargetMethod3=1,'Individual Calculations '!K86,'Individual Calculations '!U86) -> 0 | K86: =IF(TargetMethod3=1,'Individual Calculations '!N86,'Individual Calculations '!V86) -> 0 | L86: ='Individual Calculations '!AB86+'Individual Calculations '!AI86 -> 0 | M86: ='Individual Calculations '!AE86+'Individual Calculations '!AL86 -> 1.542252261e-10 | N86: ='Individual Calculations '!AF86+'Individual Calculations '!AM86 -> 4.009855878e-09 | P86: =IF(TargetMethod3=1,'Individual Calculations '!O86,'Individual Calculations '!W86) -> 0 | Q86: ='Individual Calculations '!AQ86 -> 0 | R86: ='Individual Calculations '!AT86 -> 1.004257286e-10 | S86: ='Individual Calculations '!AU86 -> 2.611068944e-09 | U86: ='Individual Calculations '!AX86 -> 0
A87: 75 | B87: ='Individual Calculations '!B87 -> 2088 | C87: 114 | E87: ='Individual Calculations '!G87 -> 0 | F87: =IF(TargetMethod3=1,"NA",'Individual Calculations '!R87) -> 0 | H87: =IF(TargetMethod3=1,'Individual Calculations '!I87,'Individual Calculations '!S87) -> 0 | I87: =IF(TargetMethod3=1,'Individual Calculations '!J87,'Individual Calculations '!T87) -> 0 | J87: =IF(TargetMethod3=1,'Individual Calculations '!K87,'Individual Calculations '!U87) -> 0 | K87: =IF(TargetMethod3=1,'Individual Calculations '!N87,'Individual Calculations '!V87) -> 0 | L87: ='Individual Calculations '!AB87+'Individual Calculations '!AI87 -> 0 | M87: ='Individual Calculations '!AE87+'Individual Calculations '!AL87 -> 1.603942351e-10 | N87: ='Individual Calculations '!AF87+'Individual Calculations '!AM87 -> 4.170250113e-09 | P87: =IF(TargetMethod3=1,'Individual Calculations '!O87,'Individual Calculations '!W87) -> 0 | Q87: ='Individual Calculations '!AQ87 -> 0 | R87: ='Individual Calculations '!AT87 -> 1.044427578e-10 | S87: ='Individual Calculations '!AU87 -> 2.715511702e-09 | U87: ='Individual Calculations '!AX87 -> 0
F89: =SUBTOTAL(9,F13:F87) -> 2386354.941 | H89: =SUBTOTAL(9,H13:H87) -> 633500 | I89: =SUBTOTAL(9,I13:I87) -> 134000 | J89: =SUBTOTAL(9,J13:J87) -> 191875 | K89: =SUBTOTAL(9,K13:K87) -> 959375 | P89: =SUBTOTAL(9,P13:P87) -> 633500 | U89: =SUBTOTAL(9,U13:U87) -> 985354.9409
L90: =-SUBTOTAL(9,L13:L87) -> 3004956.584 | Q90: =-SUBTOTAL(9,Q13:Q87) -> 2075825.478

Sheet Inputs Allowed (hidden)
A1: =VLOOKUP(AgeNum,$B$4:$C$29,2,FALSE) -> 40 | B1: Age | E1: =E5 -> 65 | F1: RetAge | I1: =VLOOKUP(I3,J4:K5,2,FALSE) -> No | J1: LeverageUse | M1: =VLOOKUP(PretaxATNum,$N$4:$O$5,2,FALSE) -> After Tax | N1: PretaxATUse | T1: =VLOOKUP(StartYrNum,$U$4:$V$13,2,FALSE) -> 2014 | U1: StartYr | X1: 25 | Y1: BenPmtsYears | AB1: =VLOOKUP(AcctBalGrowthNum,$AC$4:$AD$6,2,FALSE) -> 0.06 | AC1: AcctBalGrowth | AL1: =VLOOKUP(IncomeLevelNum,$AM$4:$AN$8,2,FALSE) -> 500000 | AM1: IncomeLevelExhibited | AP1: =VLOOKUP(PriorYrsSavingNum,$AQ$4:$AR$8,2,FALSE) -> 0 | AQ1: PriorYrsSaving | AT1: =VLOOKUP(PostRetGrowthNum,$AU$4:$AV$6,2,FALSE) -> 0.04 | AU1: PostRetGrowth
A2: 1 | B2: AgeNum | E2: 2 | F2: RetAgeNum | I2: 1 | J2: LeverageUseNum | M2: 2 | N2: PretaxATNum | T2: 1 | U2: StartYrNum | X2: 2 | Y2: BenPmtsYearsNum | AB2: 2 | AC2: AcctBalGrowthNum | AL2: 4 | AM2: IncomeLevelNum | AP2: 1 | AQ2: PriorYrsSavingNum | AT2: 2 | AU2: PostRetGrowthNum
A3: =VLOOKUP(MAX(A4:A29),$A$4:$B$29,2,FALSE) -> 3 | B3: AgeAllowed | E3: 2 | F3: RetAgeAllowed | I3: 2 | J3: LeverageAllowed | M3: 2 | N3: PretaxATAllowed | Q3: =VLOOKUP(100,Q4:R70,2,FALSE) -> 35 | R3: DeathAgeAllow | T3: =VLOOKUP(2020,T4:U13,2,FALSE) -> 7 | U3: StartYrAllowed | X3: 2 | Y3: BenPmtsAllowed | AB3: 4 | AC3: InvRetAllowed | AF3: 1 | AG3: ContribStratAllowed | AI3: 1 | AJ3: 29600 | AL3: 5 | AM3: IncomeLevelAllowed | AP3: 5 | AQ3: PriorYrsSavingAllowed | AT3: 3 | AU3: PostRetInvRetAllowed
A4: 40 | B4: 1 | C4: 40 | E4: 60 | F4: 1 | G4: =E4 -> 60 | I4: Yes | J4: 1 | K4: =I4 -> Yes | M4: Pretax | N4: 1 | O4: =M4 -> Pretax | Q4: =RetAge+1 -> 66 | R4: 1 | T4: 2014 | U4: 1 | V4: =T4 -> 2014 | X4: =VLOOKUP(Age,#REF!,4,FALSE) ->  | Y4: 1 | Z4: =X4 ->  | AB4: 0.05 | AC4: 1 | AD4: =AB4 -> 0.05 | AF4: % of Compensation | AG4: 1 | AI4: 2 | AJ4: 14800 | AL4: 50000 | AM4: 1 | AN4: 50000 | AP4: 0 | AQ4: 1 | AR4: =AP4 -> 0 | AT4: 0.03 | AU4: 1 | AV4: =AT4 -> 0.03
A5: 50 | B5: =B4+1 -> 2 | C5: 50 | E5: 65 | F5: =F4+1 -> 2 | G5: =E5 -> 65 | I5: No | J5: =J4+1 -> 2 | K5: =I5 -> No | M5: After Tax | N5: =N4+1 -> 2 | O5: =M5 -> After Tax | Q5: =Q4+1 -> 67 | R5: =R4+1 -> 2 | T5: =T4+1 -> 2015 | U5: =U4+1 -> 2 | V5: =T5 -> 2015 | X5: =VLOOKUP(Age,#REF!,6,FALSE) ->  | Y5: =Y4+1 -> 2 | Z5: =X5 ->  | AB5: 0.06 | AC5: =AC4+1 -> 2 | AD5: =AB5 -> 0.06 | AF5: Flat Dollar Amount | AG5: =AG4+1 -> 2 | AI5: 3 | AJ5: 69400 | AL5: 100000 | AM5: =AM4+1 -> 2 | AN5: 100000 | AP5: =AP4+5 -> 5 | AQ5: =AQ4+1 -> 2 | AR5: =AP5 -> 5 | AT5: 0.04 | AU5: =AU4+1 -> 2 | AV5: =AT5 -> 0.04
A6: 60 | B6: =B5+1 -> 3 | C6: 60 | Q6: 68 | R6: 3 | T6: 2016 | U6: 3 | V6: 2016 | AB6: 0.07 | AC6: =AC5+1 -> 3 | AD6: =AB6 -> 0.07 | AF6: Maximize IRS Limits | AG6: =AG5+1 -> 3 | AI6: 4 | AJ6: 113800 | AL6: 250000 | AM6: =AM5+1 -> 3 | AN6: 250000 | AP6: =AP5+5 -> 10 | AQ6: =AQ5+1 -> 3 | AR6: =AP6 -> 10 | AT6: 0.05 | AU6: =AU5+1 -> 3 | AV6: =AT6 -> 0.05
Q7: 69 | R7: 4 | T7: 2017 | U7: 4 | V7: 2017 | AB7: 0.08 | AC7: =AC6+1 -> 4 | AD7: =AB7 -> 0.08 | AI7: 5 | AJ7: 24700 | AL7: 500000 | AM7: =AM6+1 -> 4 | AN7: 500000 | AP7: =AP6+5 -> 15 | AQ7: =AQ6+1 -> 4 | AR7: =AP7 -> 15
Q8: 70 | R8: 5 | T8: 2018 | U8: 5 | V8: 2018 | AI8: 6 | AJ8: 138500 | AL8: 750000 | AM8: =AM7+1 -> 5 | AN8: 750000 | AP8: =AP7+5 -> 20 | AQ8: =AQ7+1 -> 5 | AR8: =AP8 -> 20
Q9: 71 | R9: 6 | T9: 2019 | U9: 6 | V9: 2019
Q10: 72 | R10: 7 | T10: 2020 | U10: 7 | V10: 2020
Q11: 73 | R11: 8 | T11: 2021 | U11: 8 | V11: 2021
Q12: 74 | R12: 9 | T12: 2022 | U12: 9 | V12: 2022
Q13: 75 | R13: 10 | T13: 2023 | U13: 10 | V13: 2023
Q14: 76 | R14: 11
Q15: 77 | R15: 12
Q16: 78 | R16: 13
Q17: 79 | R17: 14
Q18: 80 | R18: 15
Q19: 81 | R19: 16
Q20: 82 | R20: 17
Q21: 83 | R21: 18
Q22: 84 | R22: 19
Q23: 85 | R23: 20
Q24: 86 | R24: 21
Q25: 87 | R25: 22
Q26: 88 | R26: 23
Q27: 89 | R27: 24
Q28: 90 | R28: 25
Q29: 91 | R29: 26
Q30: 92 | R30: 27
Q31: 93 | R31: 28
Q32: 94 | R32: 29
Q33: 95 | R33: 30
Q34: 96 | R34: 31
Q35: 97 | R35: 32
Q36: 98 | R36: 33
Q37: =Q36+1 -> 99 | R37: =R36+1 -> 34
Q38: 100 | R38: 35
Q39: 101 | R39: 36
Q40: 102 | R40: 37
Q41: 103 | R41: 38
Q42: 104 | R42: 39
Q43: 105 | R43: 40
Q44: 106 | R44: 41
Q45: 107 | R45: 42
Q46: 108 | R46: 43
Q47: 109 | R47: 44
Q48: 110 | R48: 45
Q49: 111 | R49: 46
Q50: 112 | R50: 47
Q51: 113 | R51: 48
Q52: 114 | R52: 49
Q53: 115 | R53: 50
Q54: 116 | R54: 51
Q55: 117 | R55: 52
Q56: 118 | R56: 53
Q57: 119 | R57: 54
Q58: 120 | R58: 55
Q59: 121 | R59: 56
Q60: 122 | R60: 57
Q61: 123 | R61: 58
Q62: 124 | R62: 59
Q63: 125 | R63: 60
Q64: 126 | R64: 61
Q65: 127 | R65: 62
Q66: 128 | R66: 63
Q67: 129 | R67: 64
Q68: 130 | R68: 65
Q69: 131 | R69: 66
Q70: 132 | R70: 67

Sheet Variables (hidden)
B1: Switches | G1: 1 | H1: ESP - Var Prem | I1: 45 - Lincoln - Taxes - PSP Contributions tax at a flat rate - 40%
B2: First Illustration to Use (without SD) | C2: 1 | D2: IllusUsed | G2: 2 | H2: SD - Var Prem | I2: 45 - Lincoln - Taxes -ESD Contributions = Plan
B3: Second Illustration to Use (with SD) | C3: 2 | D3: IllusUsed2 | G3: 3 | H3: ESP - Lvl Prem | I3: 45 - Lincoln - PSP Contributions 30k
B4: Select Tax Table | C4: 1 | D4: TaxRates, 1=Flat,2=Fluctuating | G4: 4 | H4: SD - Lvl Prem | I4: 45 - Lincoln - Taxes -ESD Contributions = Plan based on 30k
B5: Social Security Growth Rate | C5: 0.03 | D5: SSBenGrowth
B6: IRS Comp Limit Growth Rate | C6: 0.03 | D6: IRSCompLimitGrowth
B7: Section 415 Limit Index Growth | C7: 0.03 | D7: Section415LimitGrowth | I7: Inputs Not Needed
B8: IRS Comp Limit Index Growth | C8: 0.03 | D8: IRS401kLimitGrowth | L8: Bonus
B9: Funding - Life Insurance Information/Data | I9: First Name
B10: Crediting Rate | C10: 0.07 | D10: PolicyRate | I10: Last Name
B11: Policy Name | C11: =#REF! ->  | D11: PolicyName | I11: Marginal Income Tax Rate | N11: 0.45
B12: Entity Information/Data | I12: Current Balance - 403(b) | N12: 0
B13: Entity Name | C13: Genesis | D13: EntityName | I13: Current Balance - 457(b) | N13: 0
I14: IRS Limits - Growth Rate | N14: 0.03
B16: Catch-up Age | G16: 50
B17: Blended Tax Rate - Mutual Funds | G17: 0.3
B18: Corporate Tax Rate | G18: 0
B19: Pretax Cost of Money (for NPV and Split Dollar Purposes | G19: 0.04 | H19: CostOfMoney
B20: Comp = Sal(1) or Sal+Bon(2) | G20: 2
B21: Matching ER Contribution (403b) | G21: 0.25
B22: Individual Tax Rate
B23: Death Age (> Ret Age) | G23: =MAX(85,RetAge+BenPmtsYears) -> 90
B24: Chronic Benefit Age - Demo | G24: =#REF! ->  | H24: ChronicBenefitAge
B25: Chronic Benefit Monthly Amt - Demo | G25: =#REF! ->  | H25: ChronicBenefitAmount
B26: 1 | C26: % of Compensation
B27: 0 | C27: Flat Dollar Amount
B28: 0 | C28: Maximize IRS Limits
C32: =" Age "&TEXT(Age,"0") -> Age 40 | D32: =VLOOKUP(Age,'Individual Calculations '!#REF!,4,FALSE)/1000 ->  | F32: InitialDB
C33: =" Age "&TEXT(RetAge-1,"0") -> Age 64 | D33: =VLOOKUP(RetAge-1,'Individual Calculations '!#REF!,4,FALSE)/1000 ->  | F33: RetDB
C34: =" Age "&TEXT(Death_Age,"0")&" [w/ RetInc-Striped]" -> Age 90 [w/ RetInc-Striped] | D34: =VLOOKUP(Death_Age,'Individual Calculations '!#REF!,4,FALSE)/1000 ->  | E34: ='Individual Calculations '!#REF!/1000 ->  | F34: DeathDB
C35: =" Age "&TEXT(Death_Age,"0")&" [w/out RetInc]" -> Age 90 [w/out RetInc] | D35: =VLOOKUP(Death_Age,'Individual Calculations '!#REF!,4,FALSE)/1000 ->  | F35: DeathDBwRetInc
E38: Previous Value | H38: Previous Value | I38: Current Value
B39: Your Target Contribution (based on Inputs)
B40: Step 1: Contribute to 403(b) to Maximize Match | E40: 11700 | H40: 11700 | I40: =Input!BJ21 -> 0
B41: Step 2: Contribute Remaining Target to 457(b) - to IRS Limit | E41: 0 | H41: 0 | I41: =Input!BJ22 -> 0
B42: Step 3: Excluded Contributions Invested After-Tax | E42: 0 | H42: 0 | I42: =Input!BJ23 -> 0
C43: Your Total Contributions | E43: 11700 | H43: 11700 | I43: =Input!BJ24 -> 0
B44: Employer Match on 403(b) Contribution | E44: 2900 | H44: 2900 | I44: =Input!BJ25 -> 0
C45: TOTAL | E45: 14600 | H45: 14600 | I45: =Input!BJ26 -> 0
E47: 26500 | H47: 26500 | I47: =Input!BJ28 -> 0
E48: 0.3503924371 | H48: 0.3503924371 | I48: =Input!#REF! -> 

Sheet Individual Calculations (hidden)
B1: =Age -> 40 | C1: Current Age | E1: =Salary -> 500000 | F1: Current Salary
B2: =PriorYrsSaving -> 0 | C2: Prior Yrs Saving | E2: =CompGrowthRate -> 0.05 | F2: Growth Rate | AC2: Balance at Retirement | AD2: =INDEX(AF13:AF88,RetAge-1-Age+1+PriorYrsSaving) -> 1562285.404 | AJ2: Balance at Retirement | AK2: =INDEX(AM13:AM88,RetAge-1-Age+1+PriorYrsSaving) -> 390571.3509 | AR2: Balance at Retirement | AS2: =INDEX(AU13:AU88,RetAge-1-Age+1+PriorYrsSaving) -> 1349034.401 | AZ2: Balance at Retirement | BA2: =INDEX(BC13:BC88,RetAge-1-Age+1+PriorYrsSaving) -> 842570.1239
B3: =B1-B2 -> 40 | C3: Age Started Saving | E3: =IF(B20=0,E1,E1/((1+E2)^B2)) -> 500000 | F3: Salary When Started | AC3: Years for Ret. Benefit | AD3: =RetDistYrs -> 25 | AJ3: Years for Ret. Benefit | AK3: =RetDistYrs -> 25 | AR3: Years for Ret. Benefit | AS3: =RetDistYrs -> 25 | AZ3: Years for Ret. Benefit | BA3: =RetDistYrs -> 25
B4: =StartYr-B2 -> 2014 | C4: Year | AC4: Annual Ret. Benefit | AD4: =PMT(PostRetGrowth,AD3,AD2,,1) -> -96158.6107 | AE4: AnnRet403b | AJ4: Annual Ret. Benefit | AK4: =PMT(PostRetGrowth,AK3,AK2,,1) -> -24039.65268 | AL4: AnnRet403bERMatch | AR4: Annual Ret. Benefit | AS4: =PMT(PostRetGrowth,AS3,AS2,,1) -> -83033.0191 | AT4: AnnRet457b | AZ4: Annual Ret. Benefit | BA4: =PMT(AcctBalGrowth*(1-EEBlendedTaxRate),BA3,BA2,,1) -> -52860.55686 | BB4: AnnRetATSavingsAT | BH4: =IncomeLevelExhibited -> 500000 | BI4: Salary
AC5: Avg Annual AT | AD5: =SUM(AD13:AD88)/AD3 -> -52887.23589 | AE5: AnnRet403bAT | AJ5: Avg Annual AT | AK5: =SUM(AK13:AK88)/AK3 -> -13221.80897 | AL5: AnnRet403bERMatchAT | AR5: Avg Annual AT | AS5: =SUM(AS13:AS88)/AS3 -> -45668.16051 | AT5: AnnRet457bAT | BH5: =VLOOKUP(Salary,$BG$21:$BH$25,2,FALSE) -> 0.06150738916 | BI5: Social Security Displayed
F6: Final Income==> | G6: =VLOOKUP(RetAge-1,$C$13:$G$88,5,FALSE) -> 1612549.972 | AP6: =IF(MAX(AO13:AO88)=0,AP13,VLOOKUP(MAX(AO13:AO88),AO13:AP88,2,FALSE)) -> 17500 | AQ6: <==Minimum Contribution | AX6: =IF(MAX(AW13:AW88)=0,AX13,VLOOKUP(MAX(AW13:AW88),AW13:AX88,2,FALSE)) -> 15000 | AY6: <==Minimum Contribution | BH6: =BH5*BH12 -> 99183.73866 | BI6: Social Security Benefit
AA7: =SUM(AA13:AA88)/(RetAge-Age) -> 30700 | AB7: <==Average Contrib over Working Career | AH7: =SUM(AH13:AH88)/(RetAge-Age) -> 7675 | AI7: <==Average Contrib over Working Career | AP7: =SUM(AP13:AP88)/(RetAge-Age) -> 25340 | AQ7: <==Average Contrib over Working Career | AX7: =SUM(AX13:AX88)/(RetAge-Age) -> 39414.19764 | AY7: <==Average Contrib over Working Career
E8: -1 | F8: =E8+-1 -> -2 | G8: =F8+-1 -> -3 | I8: =G8-1 -> -4 | J8: =I8+-1 -> -5 | K8: -6 | L8: -7 | M8: -8 | N8: -9 | O8: -10 | P8: -11 | R8: =P8-1 -> -12 | S8: =R8-1 -> -13 | T8: =S8-1 -> -14 | U8: -15 | V8: -16 | W8: -17 | X8: -18 | Y8: -19 | AA8: =Y8-1 -> -20 | AB8: =AA8-1 -> -21 | AC8: =AB8-1 -> -22 | AD8: =AC8-1 -> -23 | AE8: =AD8-1 -> -24 | AF8: =AE8-1 -> -25 | AH8: =AF8-1 -> -26 | AI8: =AH8-1 -> -27 | AJ8: =AI8-1 -> -28 | AK8: =AJ8-1 -> -29 | AL8: =AK8-1 -> -30 | AM8: =AL8-1 -> -31 | AP8: =AM8-1 -> -32 | AQ8: =AP8-1 -> -33 | AR8: =AQ8-1 -> -34 | AS8: =AR8-1 -> -35 | AT8: =AS8-1 -> -36 | AU8: =AT8-1 -> -37 | AX8: =AU8-1 -> -38 | AY8: =AX8-1 -> -39 | AZ8: =AY8-1 -> -40 | BA8: =AZ8-1 -> -41 | BB8: =BA8-1 -> -42 | BC8: =BB8-1 -> -43
E9: Compensation | I9: Maximum Allowable Contributions | R9: Contribution based on Target % | AA9: 403(b) - Executive Contributions Including Catch-Up | AH9: 403(b) - Employer Match | AP9: 457(b) - Executive Contributions | AX9: Excluded Contributions - After Tax Savings
BH10: Final | BI10: Pretax | BJ10: Pretax | BK10: Pretax | BL10: AT Savings
I11: 403(b) | O11: 457(b) | P11: Total | S11: 403(b) | W11: 457(b) | X11: Result | AA11: =CurrentBal403b -> 0 | AB11: <=Starting Balance | AP11: =CurrentBal457b -> 0 | AQ11: <=Starting Balance | BH11: Salary | BI11: 403b - EE | BJ11: 403b - ER | BK11: 457b - EE | BN11: SSBen
B12: Year | C12: Age | E12: Salary | F12: Bonus | G12: ="Benefit Comp " &IF(CompDefinition=1,"(Salary)","(Sal+Bon)") -> Benefit Comp (Sal+Bon) | I12: Exec Contrib | J12: Age 50 Catch-Up | K12: Hospital Match | L12: Total Before IRS Limit Check | M12: IRS Limit on Contribs | N12: Total Annual 403(b) Contribs | O12: Exec Contrib | P12: Total Contribs | R12: ="Target Contrib"&IF(TargetMethod1=1," ("&TEXT(TargetContribPercent,"0.0%")&")",IF(TargetMethod2=1," ("&TEXT(TargetContribDollarAmt,"$0,000")&")","")) -> Target Contrib (10.0%) | S12: Exec Contrib | T12: Age 50 Catch-Up | U12: Hospital Match | V12: Total Annual 403(b) Contribs | W12: Exec Contrib | X12: Total Contribs to Hospital Plans | Y12: Excluded Amount | AA12: Exec Contrib (Incl Catch-Up) | AB12: Annual Ret. Benefit | AC12: Tax Rates Used | AD12: A/T Annual Ret. Benefit | AE12: ="Investment Earnings at " &TEXT(AcctBalGrowth,"0.00%")&" "&TEXT(PostRetGrowth,"0.00%") -> Investment Earnings at 6.00% 4.00% | AF12: EOY | AH12: ER Match | AI12: Annual Ret. Benefit | AJ12: Tax Rates Used | AK12: A/T Annual Ret. Benefit | AL12: ="Investment Earnings at " &TEXT(AcctBalGrowth,"0.00%")&" "&TEXT(PostRetGrowth,"0.00%") -> Investment Earnings at 6.00% 4.00% | AM12: EOY | AO12: Min Chk | AP12: Exec Contribs | AQ12: Annual Ret. Benefit | AR12: Tax Rates Used | AS12: A/T Annual Ret. Benefit | AT12: ="Investment Earnings at " &TEXT(AcctBalGrowth,"0.00%") -> Investment Earnings at 6.00% | AU12: EOY | AW12: Min Chk | AX12: Excluded Contribs | AY12: Tax Rates Used | AZ12: After Tax Savings | BA12: Annual Ret. Benefit | BB12: ="Investment Earnings @ "&TEXT(AcctBalGrowth,"0.00%")& " ("&TEXT(AcctBalGrowth*(1-EEBlendedTaxRate),"0.00%")& " After Tax)" -> Investment Earnings @ 6.00% (4.20% After Tax) | BC12: EOY | BG12: Salaries to Run Thru Model | BH12: =G6 -> 1612549.972 | BI12: =-AnnRet403b -> 96158.6107 | BJ12: =-AnnRet403bERMatch -> 24039.65268 | BK12: =-AnnRet457b -> 83033.0191 | BL12: =-AnnRetATSavingsAT -> 52860.55686 | BN12: =Age -> 40 | BO12: <==Age
A13: 1 | B13: =B4 -> 2014 | C13: =B3 -> 40 | E13: =E3 -> 500000 | F13: =Bonus -> 0 | G13: =IF(CompDefinition=1,E13,E13+F13) -> 500000 | I13: =IF($C13>=RetAge,0,VLOOKUP($B13,Tables!$A$10:$T$126,18,FALSE)) -> 17500 | J13: =IF($C13>=RetAge,0,IF(C13<CatchupAge,0,VLOOKUP($B13,Tables!$A$10:$T$126,20,FALSE))) -> 0 | K13: =IF($C13>=RetAge,0,(I13+J13)*MachtingERCont) -> 4375 | L13: =SUM(I13:K13) -> 21875 | M13: =IF($C13>=RetAge,0,VLOOKUP($B13,Tables!$A$10:$T$126,16,FALSE)) -> 52000 | N13: =MIN(L13:M13) -> 21875 | O13: =IF($C13>=RetAge,0,VLOOKUP($B13,Tables!$A$10:$T$126,18,FALSE)) -> 17500 | P13: =N13+O13 -> 39375 | R13: =IF($C13>=RetAge,0,IF(TargetMethod1=1,TargetContribPercent*G13,IF(TargetMethod2=1,TargetContribDollarAmt,0))) -> 50000 | S13: =MIN($R13,I13) -> 17500 | T13: =MIN($R13-S13,J13) -> 0 | U13: =IF($C13>=RetAge,0,(S13+T13)*MachtingERCont) -> 4375 | V13: =SUM(S13:U13) -> 21875 | W13: =MIN(R13-S13-T13,O13) -> 17500 | X13: =V13+W13 -> 39375 | Y13: =MAX(0,R13-S13-T13-W13) -> 15000 | AA13: =IF(TargetMethod3=1,I13+J13,S13+T13) -> 17500 | AB13: =IF($C13<RetAge,0,IF($C13<RetAge+RetDistYrs,AnnRet403b,0)) -> 0 | AC13: =CHOOSE(TaxRates,Tables!Z56,Tables!AA56) -> 0.45 | AD13: =AB13*(1-AC13) -> 0 | AE13: =(AA11+AA13+AB13)*IF(C13<RetAge,AcctBalGrowth,PostRetGrowth) -> 1050 | AF13: =AA11+AA13+AB13+AE13 -> 18550 | AH13: =IF(TargetMethod3=1,K13,U13) -> 4375 | AI13: =IF($C13<RetAge,0,IF($C13<RetAge+RetDistYrs,AnnRet403bERMatch,0)) -> 0 | AJ13: =CHOOSE(TaxRates,Tables!Z56,Tables!AA56) -> 0.45 | AK13: =AI13*(1-AJ13) -> 0 | AL13: =(AH13+AI13)*IF(C13<RetAge,AcctBalGrowth,PostRetGrowth) -> 262.5 | AM13: =AH13+AI13+AL13 -> 4637.5 | AO13: 0 | AP13: =IF(TargetMethod3=1,O13,W13) -> 17500 | AQ13: =IF($C13<RetAge,0,IF($C13<RetAge+RetDistYrs,AnnRet457b,0)) -> 0 | AR13: =CHOOSE(TaxRates,Tables!Z56,Tables!AA56) -> 0.45 | AS13: =AQ13*(1-AR13) -> 0 | AT13: =(AP11+AP13+AQ13)*IF(C13<RetAge,AcctBalGrowth,PostRetGrowth) -> 1050 | AU13: =AP11+AP13+AQ13+AT13 -> 18550 | AW13: 0 | AX13: =IF(TargetMethod3=1,0,Y13) -> 15000 | AY13: =CHOOSE(TaxRates,Tables!Z56,Tables!AA56) -> 0.45 | AZ13: =AX13*(1-AY13) -> 8250 | BA13: =IF($C13<RetAge,0,IF($C13<RetAge+RetDistYrs,AnnRetATSavingsAT,0)) -> 0 | BB13: =(AZ13+BA13)*AcctBalGrowth*(1-EEBlendedTaxRate) -> 346.5 | BC13: =AZ13+BA13+BB13 -> 8596.5 | BG13: 50000 | BH13: 161254.9972 | BI13: 29539.26581 | BJ13: 7384.816452 | BK13: 0 | BL13: 0 | BN13: =HLOOKUP($BN$12,'SS Benefits'!$H$28:$J$33,BO13+1,FALSE) -> 0.3836453202 | BO13: 1
A14: =A13+1 -> 2 | B14: 2015 | C14: 41 | E14: =IF($C14>=RetAge,0,E13*(1+CompGrowthRate)) -> 525000 | F14: =IF($C14>=RetAge,0,F13*(1+CompGrowthRate)) -> 0 | G14: 525000 | I14: =IF($C14>=RetAge,0,VLOOKUP($B14,Tables!$A$10:$T$126,18,FALSE)) -> 18000 | J14: =IF($C14>=RetAge,0,IF(C14<CatchupAge,0,VLOOKUP($B14,Tables!$A$10:$T$126,20,FALSE))) -> 0 | K14: 4500 | L14: =SUM(I14:K14) -> 22500 | M14: =IF($C14>=RetAge,0,VLOOKUP($B14,Tables!$A$10:$T$126,16,FALSE)) -> 53000 | N14: =MIN(L14:M14) -> 22500 | O14: =IF($C14>=RetAge,0,VLOOKUP($B14,Tables!$A$10:$T$126,18,FALSE)) -> 18000 | P14: =N14+O14 -> 40500 | R14: 52500 | S14: 18000 | T14: 0 | U14: 4500 | V14: =SUM(S14:U14) -> 22500 | W14: 18000 | X14: =V14+W14 -> 40500 | Y14: =MAX(0,R14-S14-T14-W14) -> 16500 | AA14: 18000 | AB14: 0 | AC14: =CHOOSE(TaxRates,Tables!Z57,Tables!AA57) -> 0.45 | AD14: =AB14*(1-AC14) -> 0 | AE14: =(AA14+AB14+AF13)*IF(C14<RetAge,AcctBalGrowth,PostRetGrowth) -> 2193 | AF14: =AA14+AB14+AE14+AF13 -> 38743 | AH14: 4500 | AI14: 0 | AJ14: =CHOOSE(TaxRates,Tables!Z57,Tables!AA57) -> 0.45 | AK14: =AI14*(1-AJ14) -> 0 | AL14: =(AH14+AI14+AM13)*IF(C14<RetAge,AcctBalGrowth,PostRetGrowth) -> 548.25 | AM14: =AH14+AI14+AL14+AM13 -> 9685.75 | AO14: =IF(C14>=RetAge,0,IF(AP14<MIN($AP$13:AP13),MAX($AO$13:AO13)+1,0)) -> 0 | AP14: 18000 | AQ14: 0 | AR14: =CHOOSE(TaxRates,Tables!Z57,Tables!AA57) -> 0.45 | AS14: =AQ14*(1-AR14) -> 0 | AT14: =(AP14+AQ14+AU13)*IF(C14<RetAge,AcctBalGrowth,PostRetGrowth) -> 2193 | AU14: =AP14+AQ14+AT14+AU13 -> 38743 | AW14: =IF(C14>=RetAge,0,IF(AX14<MIN($AX$13:AX13),MAX($AW$13:AW13)+1,0)) -> 0 | AX14: 16500 | AY14: =CHOOSE(TaxRates,Tables!Z57,Tables!AA57) -> 0.45 | AZ14: =AX14*(1-AY14) -> 9075 | BA14: 0 | BB14: =(AZ14+BA14+BC13)*AcctBalGrowth*(1-EEBlendedTaxRate) -> 742.203 | BC14: =AZ14+BA14+BB14+BC13 -> 18413.703 | BG14: 100000 | BH14: 322509.9944 | BI14: 59078.53161 | BJ14: 14769.6329 | BK14: 0 | BL14: 0 | BN14: =HLOOKUP($BN$12,'SS Benefits'!$H$28:$J$33,BO14+1,FALSE) -> 0.2785221675 | BO14: 2
A15: 3 | B15: 2016 | C15: 42 | E15: 551250 | F15: 0 | G15: 551250 | I15: =IF($C15>=RetAge,0,VLOOKUP($B15,Tables!$A$10:$T$126,18,FALSE)) -> 18500 | J15: =IF($C15>=RetAge,0,IF(C15<CatchupAge,0,VLOOKUP($B15,Tables!$A$10:$T$126,20,FALSE))) -> 0 | K15: 4625 | L15: 23125 | M15: =IF($C15>=RetAge,0,VLOOKUP($B15,Tables!$A$10:$T$126,16,FALSE)) -> 55000 | N15: 23125 | O15: =IF($C15>=RetAge,0,VLOOKUP($B15,Tables!$A$10:$T$126,18,FALSE)) -> 18500 | P15: 41625 | R15: 55125 | S15: 18500 | T15: 0 | U15: 4625 | V15: 23125 | W15: 18500 | X15: 41625 | Y15: 18125 | AA15: 18500 | AB15: 0 | AC15: =CHOOSE(TaxRates,Tables!Z58,Tables!AA58) -> 0.45 | AD15: 0 | AE15: 3434.58 | AF15: =AA15+AB15+AE15+AF14 -> 60677.58 | AH15: 4625 | AI15: 0 | AJ15: =CHOOSE(TaxRates,Tables!Z58,Tables!AA58) -> 0.45 | AK15: 0 | AL15: 858.645 | AM15: =AH15+AI15+AL15+AM14 -> 15169.395 | AO15: =IF(C15>=RetAge,0,IF(AP15<MIN($AP$13:AP14),MAX($AO$13:AO14)+1,0)) -> 0 | AP15: 18500 | AQ15: 0 | AR15: =CHOOSE(TaxRates,Tables!Z58,Tables!AA58) -> 0.45 | AS15: 0 | AT15: 3434.58 | AU15: =AP15+AQ15+AT15+AU14 -> 60677.58 | AW15: =IF(C15>=RetAge,0,IF(AX15<MIN($AX$13:AX14),MAX($AW$13:AW14)+1,0)) -> 0 | AX15: 18125 | AY15: =CHOOSE(TaxRates,Tables!Z58,Tables!AA58) -> 0.45 | AZ15: 9968.75 | BA15: 0 | BB15: 1192.063026 | BC15: =AZ15+BA15+BB15+BC14 -> 29574.51603 | BG15: 250000 | BH15: 806274.9859 | BI15: 96158.6107 | BJ15: 24039.65268 | BK15: 51537.71833 | BL15: 0 | BN15: =HLOOKUP($BN$12,'SS Benefits'!$H$28:$J$33,BO15+1,FALSE) -> 0.1230147783 | BO15: 3
A16: 4 | B16: 2017 | C16: 43 | E16: 578812.5 | F16: 0 | G16: 578812.5 | I16: =IF($C16>=RetAge,0,VLOOKUP($B16,Tables!$A$10:$T$126,18,FALSE)) -> 19000 | J16: =IF($C16>=RetAge,0,IF(C16<CatchupAge,0,VLOOKUP($B16,Tables!$A$10:$T$126,20,FALSE))) -> 0 | K16: 4750 | L16: 23750 | M16: =IF($C16>=RetAge,0,VLOOKUP($B16,Tables!$A$10:$T$126,16,FALSE)) -> 56000 | N16: 23750 | O16: =IF($C16>=RetAge,0,VLOOKUP($B16,Tables!$A$10:$T$126,18,FALSE)) -> 19000 | P16: 42750 | R16: 57881.25 | S16: 19000 | T16: 0 | U16: 4750 | V16: 23750 | W16: 19000 | X16: 42750 | Y16: 19881.25 | AA16: 19000 | AB16: 0 | AC16: =CHOOSE(TaxRates,Tables!Z59,Tables!AA59) -> 0.45 | AD16: 0 | AE16: 4780.6548 | AF16: 84458.2348 | AH16: 4750 | AI16: 0 | AJ16: =CHOOSE(TaxRates,Tables!Z59,Tables!AA59) -> 0.45 | AK16: 0 | AL16: 1195.1637 | AM16: 21114.5587 | AO16: =IF(C16>=RetAge,0,IF(AP16<MIN($AP$13:AP15),MAX($AO$13:AO15)+1,0)) -> 0 | AP16: 19000 | AQ16: 0 | AR16: =CHOOSE(TaxRates,Tables!Z59,Tables!AA59) -> 0.45 | AS16: 0 | AT16: 4780.6548 | AU16: 84458.2348 | AW16: =IF(C16>=RetAge,0,IF(AX16<MIN($AX$13:AX15),MAX($AW$13:AW15)+1,0)) -> 0 | AX16: 19881.25 | AY16: =CHOOSE(TaxRates,Tables!Z59,Tables!AA59) -> 0.45 | AZ16: 10934.6875 | BA16: 0 | BB16: 1701.386548 | BC16: 42210.59007 | BG16: 500000 | BH16: 1612549.972 | BI16: 96158.6107 | BJ16: 24039.65268 | BK16: 83033.0191 | BL16: 52860.55686 | BN16: =HLOOKUP($BN$12,'SS Benefits'!$H$28:$J$33,BO16+1,FALSE) -> 0.06150738916 | BO16: 4
A17: 5 | B17: 2018 | C17: 44 | E17: 607753.125 | F17: 0 | G17: 607753.125 | I17: =IF($C17>=RetAge,0,VLOOKUP($B17,Tables!$A$10:$T$126,18,FALSE)) -> 19500 | J17: =IF($C17>=RetAge,0,IF(C17<CatchupAge,0,VLOOKUP($B17,Tables!$A$10:$T$126,20,FALSE))) -> 0 | K17: 4875 | L17: 24375 | M17: =IF($C17>=RetAge,0,VLOOKUP($B17,Tables!$A$10:$T$126,16,FALSE)) -> 58000 | N17: 24375 | O17: =IF($C17>=RetAge,0,VLOOKUP($B17,Tables!$A$10:$T$126,18,FALSE)) -> 19500 | P17: 43875 | R17: 60775.3125 | S17: 19500 | T17: 0 | U17: 4875 | V17: 24375 | W17: 19500 | X17: 43875 | Y17: 21775.3125 | AA17: 19500 | AB17: 0 | AC17: =CHOOSE(TaxRates,Tables!Z60,Tables!AA60) -> 0.45 | AD17: 0 | AE17: 6237.494088 | AF17: 110195.7289 | AH17: 4875 | AI17: 0 | AJ17: =CHOOSE(TaxRates,Tables!Z60,Tables!AA60) -> 0.45 | AK17: 0 | AL17: 1559.373522 | AM17: 27548.93222 | AO17: =IF(C17>=RetAge,0,IF(AP17<MIN($AP$13:AP16),MAX($AO$13:AO16)+1,0)) -> 0 | AP17: 19500 | AQ17: 0 | AR17: =CHOOSE(TaxRates,Tables!Z60,Tables!AA60) -> 0.45 | AS17: 0 | AT17: 6237.494088 | AU17: 110195.7289 | AW17: =IF(C17>=RetAge,0,IF(AX17<MIN($AX$13:AX16),MAX($AW$13:AW16)+1,0)) -> 0 | AX17: 21775.3125 | AY17: =CHOOSE(TaxRates,Tables!Z60,Tables!AA60) -> 0.45 | AZ17: 11976.42188 | BA17: 0 | BB17: 2275.854502 | BC17: 56462.86645 | BG17: 750000 | BH17: 2418824.958 | BI17: 96158.6107 | BJ17: 24039.65268 | BK17: 83033.0191 | BL17: 119079.2534 | BN17: =HLOOKUP($BN$12,'SS Benefits'!$H$28:$J$33,BO17+1,FALSE) -> 0.04100492611 | BO17: 5
A18: 6 | B18: 2019 | C18: 45 | E18: 638140.7812 | F18: 0 | G18: 638140.7812 | I18: =IF($C18>=RetAge,0,VLOOKUP($B18,Tables!$A$10:$T$126,18,FALSE)) -> 20000 | J18: =IF($C18>=RetAge,0,IF(C18<CatchupAge,0,VLOOKUP($B18,Tables!$A$10:$T$126,20,FALSE))) -> 0 | K18: 5000 | L18: 25000 | M18: =IF($C18>=RetAge,0,VLOOKUP($B18,Tables!$A$10:$T$126,16,FALSE)) -> 60000 | N18: 25000 | O18: =IF($C18>=RetAge,0,VLOOKUP($B18,Tables!$A$10:$T$126,18,FALSE)) -> 20000 | P18: 45000 | R18: 63814.07812 | S18: 20000 | T18: 0 | U18: 5000 | V18: 25000 | W18: 20000 | X18: 45000 | Y18: 23814.07812 | AA18: 20000 | AB18: 0 | AC18: =CHOOSE(TaxRates,Tables!Z61,Tables!AA61) -> 0.45 | AD18: 0 | AE18: 7811.743733 | AF18: 138007.4726 | AH18: 5000 | AI18: 0 | AJ18: =CHOOSE(TaxRates,Tables!Z61,Tables!AA61) -> 0.45 | AK18: 0 | AL18: 1952.935933 | AM18: 34501.86816 | AO18: =IF(C18>=RetAge,0,IF(AP18<MIN($AP$13:AP17),MAX($AO$13:AO17)+1,0)) -> 0 | AP18: 20000 | AQ18: 0 | AR18: =CHOOSE(TaxRates,Tables!Z61,Tables!AA61) -> 0.45 | AS18: 0 | AT18: 7811.743733 | AU18: 138007.4726 | AW18: =IF(C18>=RetAge,0,IF(AX18<MIN($AX$13:AX17),MAX($AW$13:AW17)+1,0)) -> 0 | AX18: 23814.07812 | AY18: =CHOOSE(TaxRates,Tables!Z61,Tables!AA61) -> 0.45 | AZ18: 13097.74297 | BA18: 0 | BB18: 2921.545596 | BC18: 72482.15502
A19: 7 | B19: 2020 | C19: 46 | E19: 670047.8203 | F19: 0 | G19: 670047.8203 | I19: =IF($C19>=RetAge,0,VLOOKUP($B19,Tables!$A$10:$T$126,18,FALSE)) -> 20500 | J19: =IF($C19>=RetAge,0,IF(C19<CatchupAge,0,VLOOKUP($B19,Tables!$A$10:$T$126,20,FALSE))) -> 0 | K19: 5125 | L19: 25625 | M19: =IF($C19>=RetAge,0,VLOOKUP($B19,Tables!$A$10:$T$126,16,FALSE)) -> 62000 | N19: 25625 | O19: =IF($C19>=RetAge,0,VLOOKUP($B19,Tables!$A$10:$T$126,18,FALSE)) -> 20500 | P19: 46125 | R19: 67004.78203 | S19: 20500 | T19: 0 | U19: 5125 | V19: 25625 | W19: 20500 | X19: 46125 | Y19: 26004.78203 | AA19: 20500 | AB19: 0 | AC19: =CHOOSE(TaxRates,Tables!Z62,Tables!AA62) -> 0.45 | AD19: 0 | AE19: 9510.448357 | AF19: 168017.921 | AH19: 5125 | AI19: 0 | AJ19: =CHOOSE(TaxRates,Tables!Z62,Tables!AA62) -> 0.45 | AK19: 0 | AL19: 2377.612089 | AM19: 42004.48024 | AO19: =IF(C19>=RetAge,0,IF(AP19<MIN($AP$13:AP18),MAX($AO$13:AO18)+1,0)) -> 0 | AP19: 20500 | AQ19: 0 | AR19: =CHOOSE(TaxRates,Tables!Z62,Tables!AA62) -> 0.45 | AS19: 0 | AT19: 9510.448357 | AU19: 168017.921 | AW19: =IF(C19>=RetAge,0,IF(AX19<MIN($AX$13:AX18),MAX($AW$13:AW18)+1,0)) -> 0 | AX19: 26004.78203 | AY19: =CHOOSE(TaxRates,Tables!Z62,Tables!AA62) -> 0.45 | AZ19: 14302.63012 | BA19: 0 | BB19: 3644.960976 | BC19: 90429.74611
A20: 8 | B20: 2021 | C20: 47 | E20: 703550.2113 | F20: 0 | G20: 703550.2113 | I20: =IF($C20>=RetAge,0,VLOOKUP($B20,Tables!$A$10:$T$126,18,FALSE)) -> 21500 | J20: =IF($C20>=RetAge,0,IF(C20<CatchupAge,0,VLOOKUP($B20,Tables!$A$10:$T$126,20,FALSE))) -> 0 | K20: 5375 | L20: 26875 | M20: =IF($C20>=RetAge,0,VLOOKUP($B20,Tables!$A$10:$T$126,16,FALSE)) -> 63000 | N20: 26875 | O20: =IF($C20>=RetAge,0,VLOOKUP($B20,Tables!$A$10:$T$126,18,FALSE)) -> 21500 | P20: 48375 | R20: 70355.02113 | S20: 21500 | T20: 0 | U20: 5375 | V20: 26875 | W20: 21500 | X20: 48375 | Y20: 27355.02113 | AA20: 21500 | AB20: 0 | AC20: =CHOOSE(TaxRates,Tables!Z63,Tables!AA63) -> 0.45 | AD20: 0 | AE20: 11371.07526 | AF20: 200888.9962 | AH20: 5375 | AI20: 0 | AJ20: =CHOOSE(TaxRates,Tables!Z63,Tables!AA63) -> 0.45 | AK20: 0 | AL20: 2842.768815 | AM20: 50222.24906 | AO20: =IF(C20>=RetAge,0,IF(AP20<MIN($AP$13:AP19),MAX($AO$13:AO19)+1,0)) -> 0 | AP20: 21500 | AQ20: 0 | AR20: =CHOOSE(TaxRates,Tables!Z63,Tables!AA63) -> 0.45 | AS20: 0 | AT20: 11371.07526 | AU20: 200888.9962 | AW20: =IF(C20>=RetAge,0,IF(AX20<MIN($AX$13:AX19),MAX($AW$13:AW19)+1,0)) -> 0 | AX20: 27355.02113 | AY20: =CHOOSE(TaxRates,Tables!Z63,Tables!AA63) -> 0.45 | AZ20: 15045.26162 | BA20: 0 | BB20: 4429.950325 | BC20: 109904.9581 | BH20: SocSec | BI20: 403(b) | BJ20: 457(b) | BK20: Retmnt GAP
A21: 9 | B21: 2022 | C21: 48 | E21: 738727.7219 | F21: 0 | G21: 738727.7219 | I21: =IF($C21>=RetAge,0,VLOOKUP($B21,Tables!$A$10:$T$126,18,FALSE)) -> 22000 | J21: =IF($C21>=RetAge,0,IF(C21<CatchupAge,0,VLOOKUP($B21,Tables!$A$10:$T$126,20,FALSE))) -> 0 | K21: 5500 | L21: 27500 | M21: =IF($C21>=RetAge,0,VLOOKUP($B21,Tables!$A$10:$T$126,16,FALSE)) -> 65000 | N21: 27500 | O21: =IF($C21>=RetAge,0,VLOOKUP($B21,Tables!$A$10:$T$126,18,FALSE)) -> 22000 | P21: 49500 | R21: 73872.77219 | S21: 22000 | T21: 0 | U21: 5500 | V21: 27500 | W21: 22000 | X21: 49500 | Y21: 29872.77219 | AA21: 22000 | AB21: 0 | AC21: =CHOOSE(TaxRates,Tables!Z64,Tables!AA64) -> 0.45 | AD21: 0 | AE21: 13373.33977 | AF21: 236262.336 | AH21: 5500 | AI21: 0 | AJ21: =CHOOSE(TaxRates,Tables!Z64,Tables!AA64) -> 0.45 | AK21: 0 | AL21: 3343.334944 | AM21: 59065.584 | AO21: =IF(C21>=RetAge,0,IF(AP21<MIN($AP$13:AP20),MAX($AO$13:AO20)+1,0)) -> 0 | AP21: 22000 | AQ21: 0 | AR21: =CHOOSE(TaxRates,Tables!Z64,Tables!AA64) -> 0.45 | AS21: 0 | AT21: 13373.33977 | AU21: 236262.336 | AW21: =IF(C21>=RetAge,0,IF(AX21<MIN($AX$13:AX20),MAX($AW$13:AW20)+1,0)) -> 0 | AX21: 29872.77219 | AY21: =CHOOSE(TaxRates,Tables!Z64,Tables!AA64) -> 0.45 | AZ21: 16430.0247 | BA21: 0 | BB21: 5306.069276 | BC21: 131641.052 | BG21: 50000 | BH21: =BN13 -> 0.3836453202 | BI21: =(BI13+BJ13)/$BH13 -> 0.2289794605 | BJ21: =BK13/$BH13 -> 0 | BK21: =MAX(0,RetIncTarget-SUM(BH21:BJ21)) -> 0.1873752193
A22: 10 | B22: 2023 | C22: 49 | E22: 775664.108 | F22: 0 | G22: 775664.108 | I22: =IF($C22>=RetAge,0,VLOOKUP($B22,Tables!$A$10:$T$126,18,FALSE)) -> 22500 | J22: =IF($C22>=RetAge,0,IF(C22<CatchupAge,0,VLOOKUP($B22,Tables!$A$10:$T$126,20,FALSE))) -> 0 | K22: 5625 | L22: 28125 | M22: =IF($C22>=RetAge,0,VLOOKUP($B22,Tables!$A$10:$T$126,16,FALSE)) -> 67000 | N22: 28125 | O22: =IF($C22>=RetAge,0,VLOOKUP($B22,Tables!$A$10:$T$126,18,FALSE)) -> 22500 | P22: 50625 | R22: 77566.4108 | S22: 22500 | T22: 0 | U22: 5625 | V22: 28125 | W22: 22500 | X22: 50625 | Y22: 32566.4108 | AA22: 22500 | AB22: 0 | AC22: =CHOOSE(TaxRates,Tables!Z65,Tables!AA65) -> 0.45 | AD22: 0 | AE22: 15525.74016 | AF22: 274288.0762 | AH22: 5625 | AI22: 0 | AJ22: =CHOOSE(TaxRates,Tables!Z65,Tables!AA65) -> 0.45 | AK22: 0 | AL22: 3881.43504 | AM22: 68572.01904 | AO22: =IF(C22>=RetAge,0,IF(AP22<MIN($AP$13:AP21),MAX($AO$13:AO21)+1,0)) -> 0 | AP22: 22500 | AQ22: 0 | AR22: =CHOOSE(TaxRates,Tables!Z65,Tables!AA65) -> 0.45 | AS22: 0 | AT22: 15525.74016 | AU22: 274288.0762 | AW22: =IF(C22>=RetAge,0,IF(AX22<MIN($AX$13:AX21),MAX($AW$13:AW21)+1,0)) -> 0 | AX22: 32566.4108 | AY22: =CHOOSE(TaxRates,Tables!Z65,Tables!AA65) -> 0.45 | AZ22: 17911.52594 | BA22: 0 | BB22: 6281.208275 | BC22: 155833.7863 | BG22: 100000 | BH22: =BN14 -> 0.2785221675 | BI22: =(BI14+BJ14)/$BH14 -> 0.2289794605 | BJ22: =BK14/$BH14 -> 0 | BK22: =MAX(0,RetIncTarget-SUM(BH22:BJ22)) -> 0.292498372
A23: 11 | B23: 2024 | C23: 50 | E23: 814447.3134 | F23: 0 | G23: 814447.3134 | I23: =IF($C23>=RetAge,0,VLOOKUP($B23,Tables!$A$10:$T$126,18,FALSE)) -> 23500 | J23: =IF($C23>=RetAge,0,IF(C23<CatchupAge,0,VLOOKUP($B23,Tables!$A$10:$T$126,20,FALSE))) -> 7000 | K23: 7625 | L23: 38125 | M23: =IF($C23>=RetAge,0,VLOOKUP($B23,Tables!$A$10:$T$126,16,FALSE)) -> 69000 | N23: 38125 | O23: =IF($C23>=RetAge,0,VLOOKUP($B23,Tables!$A$10:$T$126,18,FALSE)) -> 23500 | P23: 61625 | R23: 81444.73134 | S23: 23500 | T23: 7000 | U23: 7625 | V23: 38125 | W23: 23500 | X23: 61625 | Y23: 27444.73134 | AA23: 30500 | AB23: 0 | AC23: =CHOOSE(TaxRates,Tables!Z66,Tables!AA66) -> 0.45 | AD23: 0 | AE23: 18287.28457 | AF23: 323075.3607 | AH23: 7625 | AI23: 0 | AJ23: =CHOOSE(TaxRates,Tables!Z66,Tables!AA66) -> 0.45 | AK23: 0 | AL23: 4571.821143 | AM23: 80768.84019 | AO23: =IF(C23>=RetAge,0,IF(AP23<MIN($AP$13:AP22),MAX($AO$13:AO22)+1,0)) -> 0 | AP23: 23500 | AQ23: 0 | AR23: =CHOOSE(TaxRates,Tables!Z66,Tables!AA66) -> 0.45 | AS23: 0 | AT23: 17867.28457 | AU23: 315655.3607 | AW23: =IF(C23>=RetAge,0,IF(AX23<MIN($AX$13:AX22),MAX($AW$13:AW22)+1,0)) -> 0 | AX23: 27444.73134 | AY23: =CHOOSE(TaxRates,Tables!Z66,Tables!AA66) -> 0.45 | AZ23: 15094.60224 | BA23: 0 | BB23: 7178.992316 | BC23: 178107.3808 | BG23: 250000 | BH23: =BN15 -> 0.1230147783 | BI23: =(BI15+BJ15)/$BH15 -> 0.1490784974 | BJ23: =BK15/$BH15 -> 0.0639207705 | BK23: =MAX(0,RetIncTarget-SUM(BH23:BJ23)) -> 0.4639859538
A24: 12 | B24: 2025 | C24: 51 | E24: 855169.6791 | F24: 0 | G24: 855169.6791 | I24: =IF($C24>=RetAge,0,VLOOKUP($B24,Tables!$A$10:$T$126,18,FALSE)) -> 24000 | J24: =IF($C24>=RetAge,0,IF(C24<CatchupAge,0,VLOOKUP($B24,Tables!$A$10:$T$126,20,FALSE))) -> 7500 | K24: 7875 | L24: 39375 | M24: =IF($C24>=RetAge,0,VLOOKUP($B24,Tables!$A$10:$T$126,16,FALSE)) -> 71000 | N24: 39375 | O24: =IF($C24>=RetAge,0,VLOOKUP($B24,Tables!$A$10:$T$126,18,FALSE)) -> 24000 | P24: 63375 | R24: 85516.96791 | S24: 24000 | T24: 7500 | U24: 7875 | V24: 39375 | W24: 24000 | X24: 63375 | Y24: 30016.96791 | AA24: 31500 | AB24: 0 | AC24: =CHOOSE(TaxRates,Tables!Z67,Tables!AA67) -> 0.45 | AD24: 0 | AE24: 21274.52164 | AF24: 375849.8824 | AH24: 7875 | AI24: 0 | AJ24: =CHOOSE(TaxRates,Tables!Z67,Tables!AA67) -> 0.45 | AK24: 0 | AL24: 5318.630411 | AM24: 93962.4706 | AO24: =IF(C24>=RetAge,0,IF(AP24<MIN($AP$13:AP23),MAX($AO$13:AO23)+1,0)) -> 0 | AP24: 24000 | AQ24: 0 | AR24: =CHOOSE(TaxRates,Tables!Z67,Tables!AA67) -> 0.45 | AS24: 0 | AT24: 20379.32164 | AU24: 360034.6824 | AW24: =IF(C24>=RetAge,0,IF(AX24<MIN($AX$13:AX23),MAX($AW$13:AW23)+1,0)) -> 0 | AX24: 30016.96791 | AY24: =CHOOSE(TaxRates,Tables!Z67,Tables!AA67) -> 0.45 | AZ24: 16509.33235 | BA24: 0 | BB24: 8173.901952 | BC24: 202790.6151 | BG24: 500000 | BH24: =BN16 -> 0.06150738916 | BI24: =(BI16+BJ16)/$BH16 -> 0.07453924869 | BJ24: =BK16/$BH16 -> 0.05149174943 | BK24: =MAX(0,RetIncTarget-SUM(BH24:BJ24)) -> 0.6124616127
A25: 13 | B25: 2026 | C25: 52 | E25: 897928.163 | F25: 0 | G25: 897928.163 | I25: =IF($C25>=RetAge,0,VLOOKUP($B25,Tables!$A$10:$T$126,18,FALSE)) -> 24500 | J25: =IF($C25>=RetAge,0,IF(C25<CatchupAge,0,VLOOKUP($B25,Tables!$A$10:$T$126,20,FALSE))) -> 7500 | K25: 8000 | L25: 40000 | M25: =IF($C25>=RetAge,0,VLOOKUP($B25,Tables!$A$10:$T$126,16,FALSE)) -> 74000 | N25: 40000 | O25: =IF($C25>=RetAge,0,VLOOKUP($B25,Tables!$A$10:$T$126,18,FALSE)) -> 24500 | P25: 64500 | R25: 89792.8163 | S25: 24500 | T25: 7500 | U25: 8000 | V25: 40000 | W25: 24500 | X25: 64500 | Y25: 33292.8163 | AA25: 32000 | AB25: 0 | AC25: =CHOOSE(TaxRates,Tables!Z68,Tables!AA68) -> 0.45 | AD25: 0 | AE25: 24470.99294 | AF25: 432320.8753 | AH25: 8000 | AI25: 0 | AJ25: =CHOOSE(TaxRates,Tables!Z68,Tables!AA68) -> 0.45 | AK25: 0 | AL25: 6117.748236 | AM25: 108080.2188 | AO25: =IF(C25>=RetAge,0,IF(AP25<MIN($AP$13:AP24),MAX($AO$13:AO24)+1,0)) -> 0 | AP25: 24500 | AQ25: 0 | AR25: =CHOOSE(TaxRates,Tables!Z68,Tables!AA68) -> 0.45 | AS25: 0 | AT25: 23072.08094 | AU25: 407606.7633 | AW25: =IF(C25>=RetAge,0,IF(AX25<MIN($AX$13:AX24),MAX($AW$13:AW24)+1,0)) -> 0 | AX25: 33292.8163 | AY25: =CHOOSE(TaxRates,Tables!Z68,Tables!AA68) -> 0.45 | AZ25: 18311.04897 | BA25: 0 | BB25: 9286.269891 | BC25: 230387.934 | BG25: 750000 | BH25: =BN17 -> 0.04100492611 | BI25: =(BI17+BJ17)/$BH17 -> 0.04969283246 | BJ25: =BK17/$BH17 -> 0.03432783296 | BK25: =MAX(0,RetIncTarget-SUM(BH25:BJ25)) -> 0.6749744085
A26: 14 | B26: 2027 | C26: 53 | E26: 942824.5712 | F26: 0 | G26: 942824.5712 | I26: =IF($C26>=RetAge,0,VLOOKUP($B26,Tables!$A$10:$T$126,18,FALSE)) -> 25500 | J26: =IF($C26>=RetAge,0,IF(C26<CatchupAge,0,VLOOKUP($B26,Tables!$A$10:$T$126,20,FALSE))) -> 8000 | K26: 8375 | L26: 41875 | M26: =IF($C26>=RetAge,0,VLOOKUP($B26,Tables!$A$10:$T$126,16,FALSE)) -> 76000 | N26: 41875 | O26: =IF($C26>=RetAge,0,VLOOKUP($B26,Tables!$A$10:$T$126,18,FALSE)) -> 25500 | P26: 67375 | R26: 94282.45712 | S26: 25500 | T26: 8000 | U26: 8375 | V26: 41875 | W26: 25500 | X26: 67375 | Y26: 35282.45712 | AA26: 33500 | AB26: 0 | AC26: =CHOOSE(TaxRates,Tables!Z69,Tables!AA69) -> 0.45 | AD26: 0 | AE26: 27949.25252 | AF26: 493770.1279 | AH26: 8375 | AI26: 0 | AJ26: =CHOOSE(TaxRates,Tables!Z69,Tables!AA69) -> 0.45 | AK26: 0 | AL26: 6987.31313 | AM26: 123442.532 | AO26: =IF(C26>=RetAge,0,IF(AP26<MIN($AP$13:AP25),MAX($AO$13:AO25)+1,0)) -> 0 | AP26: 25500 | AQ26: 0 | AR26: =CHOOSE(TaxRates,Tables!Z69,Tables!AA69) -> 0.45 | AS26: 0 | AT26: 25986.4058 | AU26: 459093.1691 | AW26: =IF(C26>=RetAge,0,IF(AX26<MIN($AX$13:AX25),MAX($AW$13:AW25)+1,0)) -> 0 | AX26: 35282.45712 | AY26: =CHOOSE(TaxRates,Tables!Z69,Tables!AA69) -> 0.45 | AZ26: 19405.35141 | BA26: 0 | BB26: 10491.31799 | BC26: 260284.6034
A27: 15 | B27: 2028 | C27: 54 | E27: 989965.7997 | F27: 0 | G27: 989965.7997 | I27: =IF($C27>=RetAge,0,VLOOKUP($B27,Tables!$A$10:$T$126,18,FALSE)) -> 26000 | J27: =IF($C27>=RetAge,0,IF(C27<CatchupAge,0,VLOOKUP($B27,Tables!$A$10:$T$126,20,FALSE))) -> 8000 | K27: 8500 | L27: 42500 | M27: =IF($C27>=RetAge,0,VLOOKUP($B27,Tables!$A$10:$T$126,16,FALSE)) -> 78000 | N27: 42500 | O27: =IF($C27>=RetAge,0,VLOOKUP($B27,Tables!$A$10:$T$126,18,FALSE)) -> 26000 | P27: 68500 | R27: 98996.57997 | S27: 26000 | T27: 8000 | U27: 8500 | V27: 42500 | W27: 26000 | X27: 68500 | Y27: 38996.57997 | AA27: 34000 | AB27: 0 | AC27: =CHOOSE(TaxRates,Tables!Z70,Tables!AA70) -> 0.45 | AD27: 0 | AE27: 31666.20767 | AF27: 559436.3355 | AH27: 8500 | AI27: 0 | AJ27: =CHOOSE(TaxRates,Tables!Z70,Tables!AA70) -> 0.45 | AK27: 0 | AL27: 7916.551918 | AM27: 139859.0839 | AO27: =IF(C27>=RetAge,0,IF(AP27<MIN($AP$13:AP26),MAX($AO$13:AO26)+1,0)) -> 0 | AP27: 26000 | AQ27: 0 | AR27: =CHOOSE(TaxRates,Tables!Z70,Tables!AA70) -> 0.45 | AS27: 0 | AT27: 29105.59015 | AU27: 514198.7593 | AW27: =IF(C27>=RetAge,0,IF(AX27<MIN($AX$13:AX26),MAX($AW$13:AW26)+1,0)) -> 0 | AX27: 38996.57997 | AY27: =CHOOSE(TaxRates,Tables!Z70,Tables!AA70) -> 0.45 | AZ27: 21448.11898 | BA27: 0 | BB27: 11832.77434 | BC27: 293565.4967
A28: 16 | B28: 2029 | C28: 55 | E28: 1039464.09 | F28: 0 | G28: 1039464.09 | I28: =IF($C28>=RetAge,0,VLOOKUP($B28,Tables!$A$10:$T$126,18,FALSE)) -> 27000 | J28: =IF($C28>=RetAge,0,IF(C28<CatchupAge,0,VLOOKUP($B28,Tables!$A$10:$T$126,20,FALSE))) -> 8500 | K28: 8875 | L28: 44375 | M28: =IF($C28>=RetAge,0,VLOOKUP($B28,Tables!$A$10:$T$126,16,FALSE)) -> 81000 | N28: 44375 | O28: =IF($C28>=RetAge,0,VLOOKUP($B28,Tables!$A$10:$T$126,18,FALSE)) -> 27000 | P28: 71375 | R28: 103946.409 | S28: 27000 | T28: 8500 | U28: 8875 | V28: 44375 | W28: 27000 | X28: 71375 | Y28: 41446.40897 | AA28: 35500 | AB28: 0 | AC28: =CHOOSE(TaxRates,Tables!Z71,Tables!AA71) -> 0.45 | AD28: 0 | AE28: 35696.18013 | AF28: 630632.5157 | AH28: 8875 | AI28: 0 | AJ28: =CHOOSE(TaxRates,Tables!Z71,Tables!AA71) -> 0.45 | AK28: 0 | AL28: 8924.045033 | AM28: 157658.1289 | AO28: =IF(C28>=RetAge,0,IF(AP28<MIN($AP$13:AP27),MAX($AO$13:AO27)+1,0)) -> 0 | AP28: 27000 | AQ28: 0 | AR28: =CHOOSE(TaxRates,Tables!Z71,Tables!AA71) -> 0.45 | AS28: 0 | AT28: 32471.92556 | AU28: 573670.6848 | AW28: =IF(C28>=RetAge,0,IF(AX28<MIN($AX$13:AX27),MAX($AW$13:AW27)+1,0)) -> 0 | AX28: 41446.40897 | AY28: =CHOOSE(TaxRates,Tables!Z71,Tables!AA71) -> 0.45 | AZ28: 22795.52493 | BA28: 0 | BB28: 13287.16291 | BC28: 329648.1845
A29: 17 | B29: 2030 | C29: 56 | E29: 1091437.294 | F29: 0 | G29: 1091437.294 | I29: =IF($C29>=RetAge,0,VLOOKUP($B29,Tables!$A$10:$T$126,18,FALSE)) -> 28000 | J29: =IF($C29>=RetAge,0,IF(C29<CatchupAge,0,VLOOKUP($B29,Tables!$A$10:$T$126,20,FALSE))) -> 8500 | K29: 9125 | L29: 45625 | M29: =IF($C29>=RetAge,0,VLOOKUP($B29,Tables!$A$10:$T$126,16,FALSE)) -> 83000 | N29: 45625 | O29: =IF($C29>=RetAge,0,VLOOKUP($B29,Tables!$A$10:$T$126,18,FALSE)) -> 28000 | P29: 73625 | R29: 109143.7294 | S29: 28000 | T29: 8500 | U29: 9125 | V29: 45625 | W29: 28000 | X29: 73625 | Y29: 44643.72942 | AA29: 36500 | AB29: 0 | AC29: =CHOOSE(TaxRates,Tables!Z72,Tables!AA72) -> 0.45 | AD29: 0 | AE29: 40027.95094 | AF29: 707160.4666 | AH29: 9125 | AI29: 0 | AJ29: =CHOOSE(TaxRates,Tables!Z72,Tables!AA72) -> 0.45 | AK29: 0 | AL29: 10006.98773 | AM29: 176790.1166 | AO29: =IF(C29>=RetAge,0,IF(AP29<MIN($AP$13:AP28),MAX($AO$13:AO28)+1,0)) -> 0 | AP29: 28000 | AQ29: 0 | AR29: =CHOOSE(TaxRates,Tables!Z72,Tables!AA72) -> 0.45 | AS29: 0 | AT29: 36100.24109 | AU29: 637770.9259 | AW29: =IF(C29>=RetAge,0,IF(AX29<MIN($AX$13:AX28),MAX($AW$13:AW28)+1,0)) -> 0 | AX29: 44643.72942 | AY29: =CHOOSE(TaxRates,Tables!Z72,Tables!AA72) -> 0.45 | AZ29: 24554.05118 | BA29: 0 | BB29: 14876.4939 | BC29: 369078.7296
A30: =A29+1 -> 18 | B30: 2031 | C30: 57 | E30: 1146009.159 | F30: 0 | G30: 1146009.159 | I30: =IF($C30>=RetAge,0,VLOOKUP($B30,Tables!$A$10:$T$126,18,FALSE)) -> 28500 | J30: =IF($C30>=RetAge,0,IF(C30<CatchupAge,0,VLOOKUP($B30,Tables!$A$10:$T$126,20,FALSE))) -> 9000 | K30: 9375 | L30: 46875 | M30: =IF($C30>=RetAge,0,VLOOKUP($B30,Tables!$A$10:$T$126,16,FALSE)) -> 85000 | N30: 46875 | O30: =IF($C30>=RetAge,0,VLOOKUP($B30,Tables!$A$10:$T$126,18,FALSE)) -> 28500 | P30: 75375 | R30: 114600.9159 | S30: 28500 | T30: 9000 | U30: 9375 | V30: 46875 | W30: 28500 | X30: 75375 | Y30: 48600.91589 | AA30: 37500 | AB30: 0 | AC30: =CHOOSE(TaxRates,Tables!Z73,Tables!AA73) -> 0.45 | AD30: 0 | AE30: 44679.628 | AF30: 789340.0946 | AH30: 9375 | AI30: 0 | AJ30: =CHOOSE(TaxRates,Tables!Z73,Tables!AA73) -> 0.45 | AK30: 0 | AL30: 11169.907 | AM30: 197335.0236 | AO30: =IF(C30>=RetAge,0,IF(AP30<MIN($AP$13:AP29),MAX($AO$13:AO29)+1,0)) -> 0 | AP30: 28500 | AQ30: 0 | AR30: =CHOOSE(TaxRates,Tables!Z73,Tables!AA73) -> 0.45 | AS30: 0 | AT30: 39976.25556 | AU30: 706247.1815 | AW30: =IF(C30>=RetAge,0,IF(AX30<MIN($AX$13:AX29),MAX($AW$13:AW29)+1,0)) -> 0 | AX30: 48600.91589 | AY30: =CHOOSE(TaxRates,Tables!Z73,Tables!AA73) -> 0.45 | AZ30: 26730.50374 | BA30: 0 | BB30: 16623.9878 | BC30: 412433.2211
A31: 19 | B31: 2032 | C31: 58 | E31: 1203309.617 | F31: 0 | G31: 1203309.617 | I31: =IF($C31>=RetAge,0,VLOOKUP($B31,Tables!$A$10:$T$126,18,FALSE)) -> 29500 | J31: =IF($C31>=RetAge,0,IF(C31<CatchupAge,0,VLOOKUP($B31,Tables!$A$10:$T$126,20,FALSE))) -> 9000 | K31: 9625 | L31: 48125 | M31: =IF($C31>=RetAge,0,VLOOKUP($B31,Tables!$A$10:$T$126,16,FALSE)) -> 88000 | N31: 48125 | O31: =IF($C31>=RetAge,0,VLOOKUP($B31,Tables!$A$10:$T$126,18,FALSE)) -> 29500 | P31: 77625 | R31: 120330.9617 | S31: 29500 | T31: 9000 | U31: 9625 | V31: 48125 | W31: 29500 | X31: 77625 | Y31: 52330.96168 | AA31: 38500 | AB31: 0 | AC31: =CHOOSE(TaxRates,Tables!Z74,Tables!AA74) -> 0.45 | AD31: 0 | AE31: 49670.40568 | AF31: 877510.5003 | AH31: 9625 | AI31: 0 | AJ31: =CHOOSE(TaxRates,Tables!Z74,Tables!AA74) -> 0.45 | AK31: 0 | AL31: 12417.60142 | AM31: 219377.6251 | AO31: =IF(C31>=RetAge,0,IF(AP31<MIN($AP$13:AP30),MAX($AO$13:AO30)+1,0)) -> 0 | AP31: 29500 | AQ31: 0 | AR31: =CHOOSE(TaxRates,Tables!Z74,Tables!AA74) -> 0.45 | AS31: 0 | AT31: 44144.83089 | AU31: 779892.0124 | AW31: =IF(C31>=RetAge,0,IF(AX31<MIN($AX$13:AX30),MAX($AW$13:AW30)+1,0)) -> 0 | AX31: 52330.96168 | AY31: =CHOOSE(TaxRates,Tables!Z74,Tables!AA74) -> 0.45 | AZ31: 28782.02893 | BA31: 0 | BB31: 18531.0405 | BC31: 459746.2906
A32: 20 | B32: 2033 | C32: 59 | E32: 1263475.098 | F32: 0 | G32: 1263475.098 | I32: =IF($C32>=RetAge,0,VLOOKUP($B32,Tables!$A$10:$T$126,18,FALSE)) -> 30500 | J32: =IF($C32>=RetAge,0,IF(C32<CatchupAge,0,VLOOKUP($B32,Tables!$A$10:$T$126,20,FALSE))) -> 9500 | K32: 10000 | L32: 50000 | M32: =IF($C32>=RetAge,0,VLOOKUP($B32,Tables!$A$10:$T$126,16,FALSE)) -> 91000 | N32: 50000 | O32: =IF($C32>=RetAge,0,VLOOKUP($B32,Tables!$A$10:$T$126,18,FALSE)) -> 30500 | P32: 80500 | R32: 126347.5098 | S32: 30500 | T32: 9500 | U32: 10000 | V32: 50000 | W32: 30500 | X32: 80500 | Y32: 55847.50977 | AA32: 40000 | AB32: 0 | AC32: =CHOOSE(TaxRates,Tables!Z75,Tables!AA75) -> 0.45 | AD32: 0 | AE32: 55050.63002 | AF32: 972561.1303 | AH32: 10000 | AI32: 0 | AJ32: =CHOOSE(TaxRates,Tables!Z75,Tables!AA75) -> 0.45 | AK32: 0 | AL32: 13762.6575 | AM32: 243140.2826 | AO32: =IF(C32>=RetAge,0,IF(AP32<MIN($AP$13:AP31),MAX($AO$13:AO31)+1,0)) -> 0 | AP32: 30500 | AQ32: 0 | AR32: =CHOOSE(TaxRates,Tables!Z75,Tables!AA75) -> 0.45 | AS32: 0 | AT32: 48623.52074 | AU32: 859015.5331 | AW32: =IF(C32>=RetAge,0,IF(AX32<MIN($AX$13:AX31),MAX($AW$13:AW31)+1,0)) -> 0 | AX32: 55847.50977 | AY32: =CHOOSE(TaxRates,Tables!Z75,Tables!AA75) -> 0.45 | AZ32: 30716.13037 | BA32: 0 | BB32: 20599.42168 | BC32: 511061.8426
A33: 21 | B33: 2034 | C33: 60 | E33: 1326648.853 | F33: 0 | G33: 1326648.853 | I33: =IF($C33>=RetAge,0,VLOOKUP($B33,Tables!$A$10:$T$126,18,FALSE)) -> 31500 | J33: =IF($C33>=RetAge,0,IF(C33<CatchupAge,0,VLOOKUP($B33,Tables!$A$10:$T$126,20,FALSE))) -> 9500 | K33: 10250 | L33: 51250 | M33: =IF($C33>=RetAge,0,VLOOKUP($B33,Tables!$A$10:$T$126,16,FALSE)) -> 93000 | N33: 51250 | O33: =IF($C33>=RetAge,0,VLOOKUP($B33,Tables!$A$10:$T$126,18,FALSE)) -> 31500 | P33: 82750 | R33: 132664.8853 | S33: 31500 | T33: 9500 | U33: 10250 | V33: 51250 | W33: 31500 | X33: 82750 | Y33: 60164.88526 | AA33: 41000 | AB33: 0 | AC33: =CHOOSE(TaxRates,Tables!Z76,Tables!AA76) -> 0.45 | AD33: 0 | AE33: 60813.66782 | AF33: 1074374.798 | AH33: 10250 | AI33: 0 | AJ33: =CHOOSE(TaxRates,Tables!Z76,Tables!AA76) -> 0.45 | AK33: 0 | AL33: 15203.41695 | AM33: 268593.6995 | AO33: =IF(C33>=RetAge,0,IF(AP33<MIN($AP$13:AP32),MAX($AO$13:AO32)+1,0)) -> 0 | AP33: 31500 | AQ33: 0 | AR33: =CHOOSE(TaxRates,Tables!Z76,Tables!AA76) -> 0.45 | AS33: 0 | AT33: 53430.93199 | AU33: 943946.4651 | AW33: =IF(C33>=RetAge,0,IF(AX33<MIN($AX$13:AX32),MAX($AW$13:AW32)+1,0)) -> 0 | AX33: 60164.88526 | AY33: =CHOOSE(TaxRates,Tables!Z76,Tables!AA76) -> 0.45 | AZ33: 33090.68689 | BA33: 0 | BB33: 22854.40624 | BC33: 567006.9358
A34: 22 | B34: 2035 | C34: 61 | E34: 1392981.295 | F34: 0 | G34: 1392981.295 | I34: =IF($C34>=RetAge,0,VLOOKUP($B34,Tables!$A$10:$T$126,18,FALSE)) -> 32500 | J34: =IF($C34>=RetAge,0,IF(C34<CatchupAge,0,VLOOKUP($B34,Tables!$A$10:$T$126,20,FALSE))) -> 10000 | K34: 10625 | L34: 53125 | M34: =IF($C34>=RetAge,0,VLOOKUP($B34,Tables!$A$10:$T$126,16,FALSE)) -> 96000 | N34: 53125 | O34: =IF($C34>=RetAge,0,VLOOKUP($B34,Tables!$A$10:$T$126,18,FALSE)) -> 32500 | P34: 85625 | R34: 139298.1295 | S34: 32500 | T34: 10000 | U34: 10625 | V34: 53125 | W34: 32500 | X34: 85625 | Y34: 64298.12952 | AA34: 42500 | AB34: 0 | AC34: =CHOOSE(TaxRates,Tables!Z77,Tables!AA77) -> 0.45 | AD34: 0 | AE34: 67012.48789 | AF34: 1183887.286 | AH34: 10625 | AI34: 0 | AJ34: =CHOOSE(TaxRates,Tables!Z77,Tables!AA77) -> 0.45 | AK34: 0 | AL34: 16753.12197 | AM34: 295971.8215 | AO34: =IF(C34>=RetAge,0,IF(AP34<MIN($AP$13:AP33),MAX($AO$13:AO33)+1,0)) -> 0 | AP34: 32500 | AQ34: 0 | AR34: =CHOOSE(TaxRates,Tables!Z77,Tables!AA77) -> 0.45 | AS34: 0 | AT34: 58586.78791 | AU34: 1035033.253 | AW34: =IF(C34>=RetAge,0,IF(AX34<MIN($AX$13:AX33),MAX($AW$13:AW33)+1,0)) -> 0 | AX34: 64298.12952 | AY34: =CHOOSE(TaxRates,Tables!Z77,Tables!AA77) -> 0.45 | AZ34: 35363.97124 | BA34: 0 | BB34: 25299.57809 | BC34: 627670.4851
A35: 23 | B35: 2036 | C35: 62 | E35: 1462630.36 | F35: 0 | G35: 1462630.36 | I35: =IF($C35>=RetAge,0,VLOOKUP($B35,Tables!$A$10:$T$126,18,FALSE)) -> 33500 | J35: =IF($C35>=RetAge,0,IF(C35<CatchupAge,0,VLOOKUP($B35,Tables!$A$10:$T$126,20,FALSE))) -> 10500 | K35: 11000 | L35: 55000 | M35: =IF($C35>=RetAge,0,VLOOKUP($B35,Tables!$A$10:$T$126,16,FALSE)) -> 99000 | N35: 55000 | O35: =IF($C35>=RetAge,0,VLOOKUP($B35,Tables!$A$10:$T$126,18,FALSE)) -> 33500 | P35: 88500 | R35: 146263.036 | S35: 33500 | T35: 10500 | U35: 11000 | V35: 55000 | W35: 33500 | X35: 88500 | Y35: 68763.036 | AA35: 44000 | AB35: 0 | AC35: =CHOOSE(TaxRates,Tables!Z78,Tables!AA78) -> 0.45 | AD35: 0 | AE35: 73673.23716 | AF35: 1301560.523 | AH35: 11000 | AI35: 0 | AJ35: =CHOOSE(TaxRates,Tables!Z78,Tables!AA78) -> 0.45 | AK35: 0 | AL35: 18418.30929 | AM35: 325390.1308 | AO35: =IF(C35>=RetAge,0,IF(AP35<MIN($AP$13:AP34),MAX($AO$13:AO34)+1,0)) -> 0 | AP35: 33500 | AQ35: 0 | AR35: =CHOOSE(TaxRates,Tables!Z78,Tables!AA78) -> 0.45 | AS35: 0 | AT35: 64111.99518 | AU35: 1132645.248 | AW35: =IF(C35>=RetAge,0,IF(AX35<MIN($AX$13:AX34),MAX($AW$13:AW34)+1,0)) -> 0 | AX35: 68763.036 | AY35: =CHOOSE(TaxRates,Tables!Z78,Tables!AA78) -> 0.45 | AZ35: 37819.6698 | BA35: 0 | BB35: 27950.58651 | BC35: 693440.7414
A36: 24 | B36: 2037 | C36: 63 | E36: 1535761.878 | F36: 0 | G36: 1535761.878 | I36: =IF($C36>=RetAge,0,VLOOKUP($B36,Tables!$A$10:$T$126,18,FALSE)) -> 34500 | J36: =IF($C36>=RetAge,0,IF(C36<CatchupAge,0,VLOOKUP($B36,Tables!$A$10:$T$126,20,FALSE))) -> 10500 | K36: 11250 | L36: 56250 | M36: =IF($C36>=RetAge,0,VLOOKUP($B36,Tables!$A$10:$T$126,16,FALSE)) -> 102000 | N36: 56250 | O36: =IF($C36>=RetAge,0,VLOOKUP($B36,Tables!$A$10:$T$126,18,FALSE)) -> 34500 | P36: 90750 | R36: 153576.1878 | S36: 34500 | T36: 10500 | U36: 11250 | V36: 56250 | W36: 34500 | X36: 90750 | Y36: 74076.1878 | AA36: 45000 | AB36: 0 | AC36: =CHOOSE(TaxRates,Tables!Z79,Tables!AA79) -> 0.45 | AD36: 0 | AE36: 80793.63139 | AF36: 1427354.155 | AH36: 11250 | AI36: 0 | AJ36: =CHOOSE(TaxRates,Tables!Z79,Tables!AA79) -> 0.45 | AK36: 0 | AL36: 20198.40785 | AM36: 356838.5386 | AO36: =IF(C36>=RetAge,0,IF(AP36<MIN($AP$13:AP35),MAX($AO$13:AO35)+1,0)) -> 0 | AP36: 34500 | AQ36: 0 | AR36: =CHOOSE(TaxRates,Tables!Z79,Tables!AA79) -> 0.45 | AS36: 0 | AT36: 70028.71489 | AU36: 1237173.963 | AW36: =IF(C36>=RetAge,0,IF(AX36<MIN($AX$13:AX35),MAX($AW$13:AW35)+1,0)) -> 0 | AX36: 74076.1878 | AY36: =CHOOSE(TaxRates,Tables!Z79,Tables!AA79) -> 0.45 | AZ36: 40741.90329 | BA36: 0 | BB36: 30835.67108 | BC36: 765018.3158
A37: 25 | B37: 2038 | C37: 64 | E37: 1612549.972 | F37: 0 | G37: 1612549.972 | I37: =IF($C37>=RetAge,0,VLOOKUP($B37,Tables!$A$10:$T$126,18,FALSE)) -> 35500 | J37: =IF($C37>=RetAge,0,IF(C37<CatchupAge,0,VLOOKUP($B37,Tables!$A$10:$T$126,20,FALSE))) -> 11000 | K37: 11625 | L37: 58125 | M37: =IF($C37>=RetAge,0,VLOOKUP($B37,Tables!$A$10:$T$126,16,FALSE)) -> 105000 | N37: 58125 | O37: =IF($C37>=RetAge,0,VLOOKUP($B37,Tables!$A$10:$T$126,18,FALSE)) -> 35500 | P37: 93625 | R37: 161254.9972 | S37: 35500 | T37: 11000 | U37: 11625 | V37: 58125 | W37: 35500 | X37: 93625 | Y37: 79254.99719 | AA37: 46500 | AB37: 0 | AC37: =CHOOSE(TaxRates,Tables!Z80,Tables!AA80) -> 0.45 | AD37: 0 | AE37: 88431.24927 | AF37: 1562285.404 | AH37: 11625 | AI37: 0 | AJ37: =CHOOSE(TaxRates,Tables!Z80,Tables!AA80) -> 0.45 | AK37: 0 | AL37: 22107.81232 | AM37: 390571.3509 | AO37: =IF(C37>=RetAge,0,IF(AP37<MIN($AP$13:AP36),MAX($AO$13:AO36)+1,0)) -> 0 | AP37: 35500 | AQ37: 0 | AR37: =CHOOSE(TaxRates,Tables!Z80,Tables!AA80) -> 0.45 | AS37: 0 | AT37: 76360.43778 | AU37: 1349034.401 | AW37: =IF(C37>=RetAge,0,IF(AX37<MIN($AX$13:AX36),MAX($AW$13:AW36)+1,0)) -> 0 | AX37: 79254.99719 | AY37: =CHOOSE(TaxRates,Tables!Z80,Tables!AA80) -> 0.45 | AZ37: 43590.24845 | BA37: 0 | BB37: 33961.5597 | BC37: 842570.1239
A38: 26 | B38: 2039 | C38: 65 | E38: 0 | F38: 0 | G38: 0 | I38: =IF($C38>=RetAge,0,VLOOKUP($B38,Tables!$A$10:$T$126,18,FALSE)) -> 0 | J38: =IF($C38>=RetAge,0,IF(C38<CatchupAge,0,VLOOKUP($B38,Tables!$A$10:$T$126,20,FALSE))) -> 0 | K38: 0 | L38: 0 | M38: =IF($C38>=RetAge,0,VLOOKUP($B38,Tables!$A$10:$T$126,16,FALSE)) -> 0 | N38: 0 | O38: =IF($C38>=RetAge,0,VLOOKUP($B38,Tables!$A$10:$T$126,18,FALSE)) -> 0 | P38: 0 | R38: 0 | S38: 0 | T38: 0 | U38: 0 | V38: 0 | W38: 0 | X38: 0 | Y38: 0 | AA38: 0 | AB38: -96158.6107 | AC38: =CHOOSE(TaxRates,Tables!Z81,Tables!AA81) -> 0.45 | AD38: -52887.23589 | AE38: 58645.07172 | AF38: 1524771.865 | AH38: 0 | AI38: -24039.65268 | AJ38: =CHOOSE(TaxRates,Tables!Z81,Tables!AA81) -> 0.45 | AK38: -13221.80897 | AL38: 14661.26793 | AM38: 381192.9662 | AO38: =IF(C38>=RetAge,0,IF(AP38<MIN($AP$13:AP37),MAX($AO$13:AO37)+1,0)) -> 0 | AP38: 0 | AQ38: -83033.0191 | AR38: =CHOOSE(TaxRates,Tables!Z81,Tables!AA81) -> 0.45 | AS38: -45668.16051 | AT38: 50640.05527 | AU38: 1316641.437 | AW38: =IF(C38>=RetAge,0,IF(AX38<MIN($AX$13:AX37),MAX($AW$13:AW37)+1,0)) -> 0 | AX38: 0 | AY38: =CHOOSE(TaxRates,Tables!Z81,Tables!AA81) -> 0.45 | AZ38: 0 | BA38: -52860.55686 | BB38: 33167.80182 | BC38: 822877.3689
A39: 27 | B39: 2040 | C39: 66 | E39: 0 | F39: 0 | G39: 0 | I39: =IF($C39>=RetAge,0,VLOOKUP($B39,Tables!$A$10:$T$126,18,FALSE)) -> 0 | J39: =IF($C39>=RetAge,0,IF(C39<CatchupAge,0,VLOOKUP($B39,Tables!$A$10:$T$126,20,FALSE))) -> 0 | K39: 0 | L39: 0 | M39: =IF($C39>=RetAge,0,VLOOKUP($B39,Tables!$A$10:$T$126,16,FALSE)) -> 0 | N39: 0 | O39: =IF($C39>=RetAge,0,VLOOKUP($B39,Tables!$A$10:$T$126,18,FALSE)) -> 0 | P39: 0 | R39: 0 | S39: 0 | T39: 0 | U39: 0 | V39: 0 | W39: 0 | X39: 0 | Y39: 0 | AA39: 0 | AB39: -96158.6107 | AC39: =CHOOSE(TaxRates,Tables!Z82,Tables!AA82) -> 0.45 | AD39: -52887.23589 | AE39: 57144.53016 | AF39: 1485757.784 | AH39: 0 | AI39: -24039.65268 | AJ39: =CHOOSE(TaxRates,Tables!Z82,Tables!AA82) -> 0.45 | AK39: -13221.80897 | AL39: 14286.13254 | AM39: 371439.4461 | AO39: =IF(C39>=RetAge,0,IF(AP39<MIN($AP$13:AP38),MAX($AO$13:AO38)+1,0)) -> 0 | AP39: 0 | AQ39: -83033.0191 | AR39: =CHOOSE(TaxRates,Tables!Z82,Tables!AA82) -> 0.45 | AS39: -45668.16051 | AT39: 49344.33672 | AU39: 1282952.755 | AW39: =IF(C39>=RetAge,0,IF(AX39<MIN($AX$13:AX38),MAX($AW$13:AW38)+1,0)) -> 0 | AX39: 0 | AY39: =CHOOSE(TaxRates,Tables!Z82,Tables!AA82) -> 0.45 | AZ39: 0 | BA39: -52860.55686 | BB39: 32340.7061 | BC39: 802357.5181
A40: 28 | B40: 2041 | C40: 67 | E40: 0 | F40: 0 | G40: 0 | I40: =IF($C40>=RetAge,0,VLOOKUP($B40,Tables!$A$10:$T$126,18,FALSE)) -> 0 | J40: =IF($C40>=RetAge,0,IF(C40<CatchupAge,0,VLOOKUP($B40,Tables!$A$10:$T$126,20,FALSE))) -> 0 | K40: 0 | L40: 0 | M40: =IF($C40>=RetAge,0,VLOOKUP($B40,Tables!$A$10:$T$126,16,FALSE)) -> 0 | N40: 0 | O40: =IF($C40>=RetAge,0,VLOOKUP($B40,Tables!$A$10:$T$126,18,FALSE)) -> 0 | P40: 0 | R40: 0 | S40: 0 | T40: 0 | U40: 0 | V40: 0 | W40: 0 | X40: 0 | Y40: 0 | AA40: 0 | AB40: -96158.6107 | AC40: =CHOOSE(TaxRates,Tables!Z83,Tables!AA83) -> 0.45 | AD40: -52887.23589 | AE40: 55583.96694 | AF40: 1445183.141 | AH40: 0 | AI40: -24039.65268 | AJ40: =CHOOSE(TaxRates,Tables!Z83,Tables!AA83) -> 0.45 | AK40: -13221.80897 | AL40: 13895.99174 | AM40: 361295.7851 | AO40: =IF(C40>=RetAge,0,IF(AP40<MIN($AP$13:AP39),MAX($AO$13:AO39)+1,0)) -> 0 | AP40: 0 | AQ40: -83033.0191 | AR40: =CHOOSE(TaxRates,Tables!Z83,Tables!AA83) -> 0.45 | AS40: -45668.16051 | AT40: 47996.78942 | AU40: 1247916.525 | AW40: =IF(C40>=RetAge,0,IF(AX40<MIN($AX$13:AX39),MAX($AW$13:AW39)+1,0)) -> 0 | AX40: 0 | AY40: =CHOOSE(TaxRates,Tables!Z83,Tables!AA83) -> 0.45 | AZ40: 0 | BA40: -52860.55686 | BB40: 31478.87237 | BC40: 780975.8336
A41: 29 | B41: 2042 | C41: 68 | E41: 0 | F41: 0 | G41: 0 | I41: =IF($C41>=RetAge,0,VLOOKUP($B41,Tables!$A$10:$T$126,18,FALSE)) -> 0 | J41: =IF($C41>=RetAge,0,IF(C41<CatchupAge,0,VLOOKUP($B41,Tables!$A$10:$T$126,20,FALSE))) -> 0 | K41: 0 | L41: 0 | M41: =IF($C41>=RetAge,0,VLOOKUP($B41,Tables!$A$10:$T$126,16,FALSE)) -> 0 | N41: 0 | O41: =IF($C41>=RetAge,0,VLOOKUP($B41,Tables!$A$10:$T$126,18,FALSE)) -> 0 | P41: 0 | R41: 0 | S41: 0 | T41: 0 | U41: 0 | V41: 0 | W41: 0 | X41: 0 | Y41: 0 | AA41: 0 | AB41: -96158.6107 | AC41: =CHOOSE(TaxRates,Tables!Z84,Tables!AA84) -> 0.45 | AD41: -52887.23589 | AE41: 53960.98119 | AF41: 1402985.511 | AH41: 0 | AI41: -24039.65268 | AJ41: =CHOOSE(TaxRates,Tables!Z84,Tables!AA84) -> 0.45 | AK41: -13221.80897 | AL41: 13490.2453 | AM41: 350746.3778 | AO41: =IF(C41>=RetAge,0,IF(AP41<MIN($AP$13:AP40),MAX($AO$13:AO40)+1,0)) -> 0 | AP41: 0 | AQ41: -83033.0191 | AR41: =CHOOSE(TaxRates,Tables!Z84,Tables!AA84) -> 0.45 | AS41: -45668.16051 | AT41: 46595.34023 | AU41: 1211478.846 | AW41: =IF(C41>=RetAge,0,IF(AX41<MIN($AX$13:AX40),MAX($AW$13:AW40)+1,0)) -> 0 | AX41: 0 | AY41: =CHOOSE(TaxRates,Tables!Z84,Tables!AA84) -> 0.45 | AZ41: 0 | BA41: -52860.55686 | BB41: 30580.84162 | BC41: 758696.1184
A42: 30 | B42: 2043 | C42: 69 | E42: 0 | F42: 0 | G42: 0 | I42: =IF($C42>=RetAge,0,VLOOKUP($B42,Tables!$A$10:$T$126,18,FALSE)) -> 0 | J42: =IF($C42>=RetAge,0,IF(C42<CatchupAge,0,VLOOKUP($B42,Tables!$A$10:$T$126,20,FALSE))) -> 0 | K42: 0 | L42: 0 | M42: =IF($C42>=RetAge,0,VLOOKUP($B42,Tables!$A$10:$T$126,16,FALSE)) -> 0 | N42: 0 | O42: =IF($C42>=RetAge,0,VLOOKUP($B42,Tables!$A$10:$T$126,18,FALSE)) -> 0 | P42: 0 | R42: 0 | S42: 0 | T42: 0 | U42: 0 | V42: 0 | W42: 0 | X42: 0 | Y42: 0 | AA42: 0 | AB42: -96158.6107 | AC42: =CHOOSE(TaxRates,Tables!Z85,Tables!AA85) -> 0.45 | AD42: -52887.23589 | AE42: 52273.07601 | AF42: 1359099.976 | AH42: 0 | AI42: -24039.65268 | AJ42: =CHOOSE(TaxRates,Tables!Z85,Tables!AA85) -> 0.45 | AK42: -13221.80897 | AL42: 13068.269 | AM42: 339774.9941 | AO42: =IF(C42>=RetAge,0,IF(AP42<MIN($AP$13:AP41),MAX($AO$13:AO41)+1,0)) -> 0 | AP42: 0 | AQ42: -83033.0191 | AR42: =CHOOSE(TaxRates,Tables!Z85,Tables!AA85) -> 0.45 | AS42: -45668.16051 | AT42: 45137.83308 | AU42: 1173583.66 | AW42: =IF(C42>=RetAge,0,IF(AX42<MIN($AX$13:AX41),MAX($AW$13:AW41)+1,0)) -> 0 | AX42: 0 | AY42: =CHOOSE(TaxRates,Tables!Z85,Tables!AA85) -> 0.45 | AZ42: 0 | BA42: -52860.55686 | BB42: 29645.09358 | BC42: 735480.6551
A43: 31 | B43: 2044 | C43: 70 | E43: 0 | F43: 0 | G43: 0 | I43: =IF($C43>=RetAge,0,VLOOKUP($B43,Tables!$A$10:$T$126,18,FALSE)) -> 0 | J43: =IF($C43>=RetAge,0,IF(C43<CatchupAge,0,VLOOKUP($B43,Tables!$A$10:$T$126,20,FALSE))) -> 0 | K43: 0 | L43: 0 | M43: =IF($C43>=RetAge,0,VLOOKUP($B43,Tables!$A$10:$T$126,16,FALSE)) -> 0 | N43: 0 | O43: =IF($C43>=RetAge,0,VLOOKUP($B43,Tables!$A$10:$T$126,18,FALSE)) -> 0 | P43: 0 | R43: 0 | S43: 0 | T43: 0 | U43: 0 | V43: 0 | W43: 0 | X43: 0 | Y43: 0 | AA43: 0 | AB43: -96158.6107 | AC43: =CHOOSE(TaxRates,Tables!Z86,Tables!AA86) -> 0.45 | AD43: -52887.23589 | AE43: 50517.65463 | AF43: 1313459.02 | AH43: 0 | AI43: -24039.65268 | AJ43: =CHOOSE(TaxRates,Tables!Z86,Tables!AA86) -> 0.45 | AK43: -13221.80897 | AL43: 12629.41366 | AM43: 328364.7551 | AO43: =IF(C43>=RetAge,0,IF(AP43<MIN($AP$13:AP42),MAX($AO$13:AO42)+1,0)) -> 0 | AP43: 0 | AQ43: -83033.0191 | AR43: =CHOOSE(TaxRates,Tables!Z86,Tables!AA86) -> 0.45 | AS43: -45668.16051 | AT43: 43622.02564 | AU43: 1134172.667 | AW43: =IF(C43>=RetAge,0,IF(AX43<MIN($AX$13:AX42),MAX($AW$13:AW42)+1,0)) -> 0 | AX43: 0 | AY43: =CHOOSE(TaxRates,Tables!Z86,Tables!AA86) -> 0.45 | AZ43: 0 | BA43: -52860.55686 | BB43: 28670.04413 | BC43: 711290.1424
A44: 32 | B44: 2045 | C44: 71 | E44: 0 | F44: 0 | G44: 0 | I44: =IF($C44>=RetAge,0,VLOOKUP($B44,Tables!$A$10:$T$126,18,FALSE)) -> 0 | J44: =IF($C44>=RetAge,0,IF(C44<CatchupAge,0,VLOOKUP($B44,Tables!$A$10:$T$126,20,FALSE))) -> 0 | K44: 0 | L44: 0 | M44: =IF($C44>=RetAge,0,VLOOKUP($B44,Tables!$A$10:$T$126,16,FALSE)) -> 0 | N44: 0 | O44: =IF($C44>=RetAge,0,VLOOKUP($B44,Tables!$A$10:$T$126,18,FALSE)) -> 0 | P44: 0 | R44: 0 | S44: 0 | T44: 0 | U44: 0 | V44: 0 | W44: 0 | X44: 0 | Y44: 0 | AA44: 0 | AB44: -96158.6107 | AC44: =CHOOSE(TaxRates,Tables!Z87,Tables!AA87) -> 0.45 | AD44: -52887.23589 | AE44: 48692.01638 | AF44: 1265992.426 | AH44: 0 | AI44: -24039.65268 | AJ44: =CHOOSE(TaxRates,Tables!Z87,Tables!AA87) -> 0.45 | AK44: -13221.80897 | AL44: 12173.0041 | AM44: 316498.1065 | AO44: =IF(C44>=RetAge,0,IF(AP44<MIN($AP$13:AP43),MAX($AO$13:AO43)+1,0)) -> 0 | AP44: 0 | AQ44: -83033.0191 | AR44: =CHOOSE(TaxRates,Tables!Z87,Tables!AA87) -> 0.45 | AS44: -45668.16051 | AT44: 42045.5859 | AU44: 1093185.233 | AW44: =IF(C44>=RetAge,0,IF(AX44<MIN($AX$13:AX43),MAX($AW$13:AW43)+1,0)) -> 0 | AX44: 0 | AY44: =CHOOSE(TaxRates,Tables!Z87,Tables!AA87) -> 0.45 | AZ44: 0 | BA44: -52860.55686 | BB44: 27654.04259 | BC44: 686083.6281
A45: 33 | B45: 2046 | C45: 72 | E45: 0 | F45: 0 | G45: 0 | I45: =IF($C45>=RetAge,0,VLOOKUP($B45,Tables!$A$10:$T$126,18,FALSE)) -> 0 | J45: =IF($C45>=RetAge,0,IF(C45<CatchupAge,0,VLOOKUP($B45,Tables!$A$10:$T$126,20,FALSE))) -> 0 | K45: =IF($C45>=RetAge,0,(I45+J45)*MachtingERCont) -> 0 | L45: 0 | M45: =IF($C45>=RetAge,0,VLOOKUP($B45,Tables!$A$10:$T$126,16,FALSE)) -> 0 | N45: 0 | O45: =IF($C45>=RetAge,0,VLOOKUP($B45,Tables!$A$10:$T$126,18,FALSE)) -> 0 | P45: 0 | R45: =IF($C45>=RetAge,0,IF(TargetMethod1=1,TargetContribPercent*G45,IF(TargetMethod2=1,TargetContribDollarAmt,0))) -> 0 | S45: =MIN($R45,I45) -> 0 | T45: =MIN($R45-S45,J45) -> 0 | U45: =IF($C45>=RetAge,0,(S45+T45)*MachtingERCont) -> 0 | V45: 0 | W45: =MIN(R45-S45-T45,O45) -> 0 | X45: 0 | Y45: 0 | AA45: =IF(TargetMethod3=1,I45+J45,S45+T45) -> 0 | AB45: =IF($C45<RetAge,0,IF($C45<RetAge+RetDistYrs,AnnRet403b,0)) -> -96158.6107 | AC45: =CHOOSE(TaxRates,Tables!Z88,Tables!AA88) -> 0.45 | AD45: -52887.23589 | AE45: 46793.35261 | AF45: 1216627.168 | AH45: =IF(TargetMethod3=1,K45,U45) -> 0 | AI45: =IF($C45<RetAge,0,IF($C45<RetAge+RetDistYrs,AnnRet403bERMatch,0)) -> -24039.65268 | AJ45: =CHOOSE(TaxRates,Tables!Z88,Tables!AA88) -> 0.45 | AK45: -13221.80897 | AL45: 11698.33815 | AM45: 304156.792 | AO45: =IF(C45>=RetAge,0,IF(AP45<MIN($AP$13:AP44),MAX($AO$13:AO44)+1,0)) -> 0 | AP45: =IF(TargetMethod3=1,O45,W45) -> 0 | AQ45: =IF($C45<RetAge,0,IF($C45<RetAge+RetDistYrs,AnnRet457b,0)) -> -83033.0191 | AR45: =CHOOSE(TaxRates,Tables!Z88,Tables!AA88) -> 0.45 | AS45: -45668.16051 | AT45: 40406.08857 | AU45: 1050558.303 | AW45: =IF(C45>=RetAge,0,IF(AX45<MIN($AX$13:AX44),MAX($AW$13:AW44)+1,0)) -> 0 | AX45: =IF(TargetMethod3=1,0,Y45) -> 0 | AY45: =CHOOSE(TaxRates,Tables!Z88,Tables!AA88) -> 0.45 | AZ45: 0 | BA45: =IF($C45<RetAge,0,IF($C45<RetAge+RetDistYrs,AnnRetATSavingsAT,0)) -> -52860.55686 | BB45: 26595.36899 | BC45: 659818.4402
A46: =A45+1 -> 34 | B46: 2047 | C46: 73 | E46: =IF($C46>=RetAge,0,E45*(1+CompGrowthRate)) -> 0 | F46: =IF($C46>=RetAge,0,F45*(1+CompGrowthRate)) -> 0 | G46: 0 | I46: =IF($C46>=RetAge,0,VLOOKUP($B46,Tables!$A$10:$T$126,18,FALSE)) -> 0 | J46: =IF($C46>=RetAge,0,IF(C46<CatchupAge,0,VLOOKUP($B46,Tables!$A$10:$T$126,20,FALSE))) -> 0 | K46: 0 | L46: 0 | M46: =IF($C46>=RetAge,0,VLOOKUP($B46,Tables!$A$10:$T$126,16,FALSE)) -> 0 | N46: 0 | O46: =IF($C46>=RetAge,0,VLOOKUP($B46,Tables!$A$10:$T$126,18,FALSE)) -> 0 | P46: 0 | R46: 0 | S46: 0 | T46: 0 | U46: 0 | V46: 0 | W46: 0 | X46: 0 | Y46: 0 | AA46: 0 | AB46: -96158.6107 | AC46: =CHOOSE(TaxRates,Tables!Z89,Tables!AA89) -> 0.45 | AD46: -52887.23589 | AE46: =(AA46+AB46+AF45)*IF(C46<RetAge,AcctBalGrowth,PostRetGrowth) -> 44818.74229 | AF46: 1165287.299 | AH46: 0 | AI46: -24039.65268 | AJ46: =CHOOSE(TaxRates,Tables!Z89,Tables!AA89) -> 0.45 | AK46: -13221.80897 | AL46: =(AH46+AI46+AM45)*IF(C46<RetAge,AcctBalGrowth,PostRetGrowth) -> 11204.68557 | AM46: 291321.8249 | AO46: =IF(C46>=RetAge,0,IF(AP46<MIN($AP$13:AP45),MAX($AO$13:AO45)+1,0)) -> 0 | AP46: 0 | AQ46: -83033.0191 | AR46: =CHOOSE(TaxRates,Tables!Z89,Tables!AA89) -> 0.45 | AS46: -45668.16051 | AT46: =(AP46+AQ46+AU45)*IF(C46<RetAge,AcctBalGrowth,PostRetGrowth) -> 38701.01135 | AU46: 1006226.295 | AW46: =IF(C46>=RetAge,0,IF(AX46<MIN($AX$13:AX45),MAX($AW$13:AW45)+1,0)) -> 0 | AX46: 0 | AY46: =CHOOSE(TaxRates,Tables!Z89,Tables!AA89) -> 0.45 | AZ46: 0 | BA46: -52860.55686 | BB46: =(AZ46+BA46+BC45)*AcctBalGrowth*(1-EEBlendedTaxRate) -> 25492.2311 | BC46: 632450.1145
A47: 35 | B47: 2048 | C47: 74 | E47: 0 | F47: 0 | G47: 0 | I47: =IF($C47>=RetAge,0,VLOOKUP($B47,Tables!$A$10:$T$126,18,FALSE)) -> 0 | J47: =IF($C47>=RetAge,0,IF(C47<CatchupAge,0,VLOOKUP($B47,Tables!$A$10:$T$126,20,FALSE))) -> 0 | K47: 0 | L47: 0 | M47: =IF($C47>=RetAge,0,VLOOKUP($B47,Tables!$A$10:$T$126,16,FALSE)) -> 0 | N47: 0 | O47: =IF($C47>=RetAge,0,VLOOKUP($B47,Tables!$A$10:$T$126,18,FALSE)) -> 0 | P47: 0 | R47: 0 | S47: 0 | T47: 0 | U47: 0 | V47: 0 | W47: 0 | X47: 0 | Y47: 0 | AA47: 0 | AB47: -96158.6107 | AC47: =CHOOSE(TaxRates,Tables!Z90,Tables!AA90) -> 0.45 | AD47: -52887.23589 | AE47: 42765.14755 | AF47: 1111893.836 | AH47: 0 | AI47: -24039.65268 | AJ47: =CHOOSE(TaxRates,Tables!Z90,Tables!AA90) -> 0.45 | AK47: -13221.80897 | AL47: 10691.28689 | AM47: 277973.4591 | AO47: =IF(C47>=RetAge,0,IF(AP47<MIN($AP$13:AP46),MAX($AO$13:AO46)+1,0)) -> 0 | AP47: 0 | AQ47: -83033.0191 | AR47: =CHOOSE(TaxRates,Tables!Z90,Tables!AA90) -> 0.45 | AS47: -45668.16051 | AT47: 36927.73104 | AU47: 960121.0071 | AW47: =IF(C47>=RetAge,0,IF(AX47<MIN($AX$13:AX46),MAX($AW$13:AW46)+1,0)) -> 0 | AX47: 0 | AY47: =CHOOSE(TaxRates,Tables!Z90,Tables!AA90) -> 0.45 | AZ47: 0 | BA47: -52860.55686 | BB47: 24342.76142 | BC47: 603932.3191
A48: 36 | B48: 2049 | C48: 75 | E48: 0 | F48: 0 | G48: 0 | I48: =IF($C48>=RetAge,0,VLOOKUP($B48,Tables!$A$10:$T$126,18,FALSE)) -> 0 | J48: =IF($C48>=RetAge,0,IF(C48<CatchupAge,0,VLOOKUP($B48,Tables!$A$10:$T$126,20,FALSE))) -> 0 | K48: 0 | L48: 0 | M48: =IF($C48>=RetAge,0,VLOOKUP($B48,Tables!$A$10:$T$126,16,FALSE)) -> 0 | N48: 0 | O48: =IF($C48>=RetAge,0,VLOOKUP($B48,Tables!$A$10:$T$126,18,FALSE)) -> 0 | P48: 0 | R48: 0 | S48: 0 | T48: 0 | U48: 0 | V48: 0 | W48: 0 | X48: 0 | Y48: 0 | AA48: 0 | AB48: -96158.6107 | AC48: =CHOOSE(TaxRates,Tables!Z91,Tables!AA91) -> 0.45 | AD48: -52887.23589 | AE48: 40629.40902 | AF48: 1056364.635 | AH48: 0 | AI48: -24039.65268 | AJ48: =CHOOSE(TaxRates,Tables!Z91,Tables!AA91) -> 0.45 | AK48: -13221.80897 | AL48: 10157.35226 | AM48: 264091.1586 | AO48: =IF(C48>=RetAge,0,IF(AP48<MIN($AP$13:AP47),MAX($AO$13:AO47)+1,0)) -> 0 | AP48: 0 | AQ48: -83033.0191 | AR48: =CHOOSE(TaxRates,Tables!Z91,Tables!AA91) -> 0.45 | AS48: -45668.16051 | AT48: 35083.51952 | AU48: 912171.5075 | AW48: =IF(C48>=RetAge,0,IF(AX48<MIN($AX$13:AX47),MAX($AW$13:AW47)+1,0)) -> 0 | AX48: 0 | AY48: =CHOOSE(TaxRates,Tables!Z91,Tables!AA91) -> 0.45 | AZ48: 0 | BA48: -52860.55686 | BB48: 23145.01401 | BC48: 574216.7762
A49: 37 | B49: 2050 | C49: 76 | E49: 0 | F49: 0 | G49: 0 | I49: =IF($C49>=RetAge,0,VLOOKUP($B49,Tables!$A$10:$T$126,18,FALSE)) -> 0 | J49: =IF($C49>=RetAge,0,IF(C49<CatchupAge,0,VLOOKUP($B49,Tables!$A$10:$T$126,20,FALSE))) -> 0 | K49: 0 | L49: 0 | M49: =IF($C49>=RetAge,0,VLOOKUP($B49,Tables!$A$10:$T$126,16,FALSE)) -> 0 | N49: 0 | O49: =IF($C49>=RetAge,0,VLOOKUP($B49,Tables!$A$10:$T$126,18,FALSE)) -> 0 | P49: 0 | R49: 0 | S49: 0 | T49: 0 | U49: 0 | V49: 0 | W49: 0 | X49: 0 | Y49: 0 | AA49: 0 | AB49: -96158.6107 | AC49: =CHOOSE(TaxRates,Tables!Z92,Tables!AA92) -> 0.45 | AD49: -52887.23589 | AE49: 38408.24096 | AF49: 998614.2648 | AH49: 0 | AI49: -24039.65268 | AJ49: =CHOOSE(TaxRates,Tables!Z92,Tables!AA92) -> 0.45 | AK49: -13221.80897 | AL49: 9602.060239 | AM49: 249653.5662 | AO49: =IF(C49>=RetAge,0,IF(AP49<MIN($AP$13:AP48),MAX($AO$13:AO48)+1,0)) -> 0 | AP49: 0 | AQ49: -83033.0191 | AR49: =CHOOSE(TaxRates,Tables!Z92,Tables!AA92) -> 0.45 | AS49: -45668.16051 | AT49: 33165.53954 | AU49: 862304.0279 | AW49: =IF(C49>=RetAge,0,IF(AX49<MIN($AX$13:AX48),MAX($AW$13:AW48)+1,0)) -> 0 | AX49: 0 | AY49: =CHOOSE(TaxRates,Tables!Z92,Tables!AA92) -> 0.45 | AZ49: 0 | BA49: -52860.55686 | BB49: 21896.96121 | BC49: 543253.1806
A50: 38 | B50: 2051 | C50: 77 | E50: 0 | F50: 0 | G50: 0 | I50: =IF($C50>=RetAge,0,VLOOKUP($B50,Tables!$A$10:$T$126,18,FALSE)) -> 0 | J50: =IF($C50>=RetAge,0,IF(C50<CatchupAge,0,VLOOKUP($B50,Tables!$A$10:$T$126,20,FALSE))) -> 0 | K50: 0 | L50: 0 | M50: =IF($C50>=RetAge,0,VLOOKUP($B50,Tables!$A$10:$T$126,16,FALSE)) -> 0 | N50: 0 | O50: =IF($C50>=RetAge,0,VLOOKUP($B50,Tables!$A$10:$T$126,18,FALSE)) -> 0 | P50: 0 | R50: 0 | S50: 0 | T50: 0 | U50: 0 | V50: 0 | W50: 0 | X50: 0 | Y50: 0 | AA50: 0 | AB50: -96158.6107 | AC50: =CHOOSE(TaxRates,Tables!Z93,Tables!AA93) -> 0.45 | AD50: -52887.23589 | AE50: 36098.22617 | AF50: 938553.8803 | AH50: 0 | AI50: -24039.65268 | AJ50: =CHOOSE(TaxRates,Tables!Z93,Tables!AA93) -> 0.45 | AK50: -13221.80897 | AL50: 9024.556541 | AM50: 234638.4701 | AO50: =IF(C50>=RetAge,0,IF(AP50<MIN($AP$13:AP49),MAX($AO$13:AO49)+1,0)) -> 0 | AP50: 0 | AQ50: -83033.0191 | AR50: =CHOOSE(TaxRates,Tables!Z93,Tables!AA93) -> 0.45 | AS50: -45668.16051 | AT50: 31170.84035 | AU50: 810441.8492 | AW50: =IF(C50>=RetAge,0,IF(AX50<MIN($AX$13:AX49),MAX($AW$13:AW49)+1,0)) -> 0 | AX50: 0 | AY50: =CHOOSE(TaxRates,Tables!Z93,Tables!AA93) -> 0.45 | AZ50: 0 | BA50: -52860.55686 | BB50: 20596.4902 | BC50: 510989.1139
A51: 39 | B51: 2052 | C51: 78 | E51: 0 | F51: 0 | G51: 0 | I51: =IF($C51>=RetAge,0,VLOOKUP($B51,Tables!$A$10:$T$126,18,FALSE)) -> 0 | J51: =IF($C51>=RetAge,0,IF(C51<CatchupAge,0,VLOOKUP($B51,Tables!$A$10:$T$126,20,FALSE))) -> 0 | K51: 0 | L51: 0 | M51: =IF($C51>=RetAge,0,VLOOKUP($B51,Tables!$A$10:$T$126,16,FALSE)) -> 0 | N51: 0 | O51: =IF($C51>=RetAge,0,VLOOKUP($B51,Tables!$A$10:$T$126,18,FALSE)) -> 0 | P51: 0 | R51: 0 | S51: 0 | T51: 0 | U51: 0 | V51: 0 | W51: 0 | X51: 0 | Y51: 0 | AA51: 0 | AB51: -96158.6107 | AC51: =CHOOSE(TaxRates,Tables!Z94,Tables!AA94) -> 0.45 | AD51: -52887.23589 | AE51: 33695.81078 | AF51: 876091.0804 | AH51: 0 | AI51: -24039.65268 | AJ51: =CHOOSE(TaxRates,Tables!Z94,Tables!AA94) -> 0.45 | AK51: -13221.80897 | AL51: 8423.952696 | AM51: 219022.7701 | AO51: =IF(C51>=RetAge,0,IF(AP51<MIN($AP$13:AP50),MAX($AO$13:AO50)+1,0)) -> 0 | AP51: 0 | AQ51: -83033.0191 | AR51: =CHOOSE(TaxRates,Tables!Z94,Tables!AA94) -> 0.45 | AS51: -45668.16051 | AT51: 29096.3532 | AU51: 756505.1833 | AW51: =IF(C51>=RetAge,0,IF(AX51<MIN($AX$13:AX50),MAX($AW$13:AW50)+1,0)) -> 0 | AX51: 0 | AY51: =CHOOSE(TaxRates,Tables!Z94,Tables!AA94) -> 0.45 | AZ51: 0 | BA51: -52860.55686 | BB51: 19241.3994 | BC51: 477369.9564
A52: 40 | B52: 2053 | C52: 79 | E52: 0 | F52: 0 | G52: 0 | I52: =IF($C52>=RetAge,0,VLOOKUP($B52,Tables!$A$10:$T$126,18,FALSE)) -> 0 | J52: =IF($C52>=RetAge,0,IF(C52<CatchupAge,0,VLOOKUP($B52,Tables!$A$10:$T$126,20,FALSE))) -> 0 | K52: 0 | L52: 0 | M52: =IF($C52>=RetAge,0,VLOOKUP($B52,Tables!$A$10:$T$126,16,FALSE)) -> 0 | N52: 0 | O52: =IF($C52>=RetAge,0,VLOOKUP($B52,Tables!$A$10:$T$126,18,FALSE)) -> 0 | P52: 0 | R52: 0 | S52: 0 | T52: 0 | U52: 0 | V52: 0 | W52: 0 | X52: 0 | Y52: 0 | AA52: 0 | AB52: -96158.6107 | AC52: =CHOOSE(TaxRates,Tables!Z95,Tables!AA95) -> 0.45 | AD52: -52887.23589 | AE52: 31197.29879 | AF52: 811129.7685 | AH52: 0 | AI52: -24039.65268 | AJ52: =CHOOSE(TaxRates,Tables!Z95,Tables!AA95) -> 0.45 | AK52: -13221.80897 | AL52: 7799.324697 | AM52: 202782.4421 | AO52: =IF(C52>=RetAge,0,IF(AP52<MIN($AP$13:AP51),MAX($AO$13:AO51)+1,0)) -> 0 | AP52: 0 | AQ52: -83033.0191 | AR52: =CHOOSE(TaxRates,Tables!Z95,Tables!AA95) -> 0.45 | AS52: -45668.16051 | AT52: 26938.88657 | AU52: 700411.0507 | AW52: =IF(C52>=RetAge,0,IF(AX52<MIN($AX$13:AX51),MAX($AW$13:AW51)+1,0)) -> 0 | AX52: 0 | AY52: =CHOOSE(TaxRates,Tables!Z95,Tables!AA95) -> 0.45 | AZ52: 0 | BA52: -52860.55686 | BB52: 17829.39478 | BC52: 442338.7944
A53: 41 | B53: 2054 | C53: 80 | E53: 0 | F53: 0 | G53: 0 | I53: =IF($C53>=RetAge,0,VLOOKUP($B53,Tables!$A$10:$T$126,18,FALSE)) -> 0 | J53: =IF($C53>=RetAge,0,IF(C53<CatchupAge,0,VLOOKUP($B53,Tables!$A$10:$T$126,20,FALSE))) -> 0 | K53: 0 | L53: 0 | M53: =IF($C53>=RetAge,0,VLOOKUP($B53,Tables!$A$10:$T$126,16,FALSE)) -> 0 | N53: 0 | O53: =IF($C53>=RetAge,0,VLOOKUP($B53,Tables!$A$10:$T$126,18,FALSE)) -> 0 | P53: 0 | R53: 0 | S53: 0 | T53: 0 | U53: 0 | V53: 0 | W53: 0 | X53: 0 | Y53: 0 | AA53: 0 | AB53: -96158.6107 | AC53: =CHOOSE(TaxRates,Tables!Z96,Tables!AA96) -> 0.45 | AD53: -52887.23589 | AE53: 28598.84631 | AF53: 743570.0041 | AH53: 0 | AI53: -24039.65268 | AJ53: =CHOOSE(TaxRates,Tables!Z96,Tables!AA96) -> 0.45 | AK53: -13221.80897 | AL53: 7149.711578 | AM53: 185892.501 | AO53: =IF(C53>=RetAge,0,IF(AP53<MIN($AP$13:AP52),MAX($AO$13:AO52)+1,0)) -> 0 | AP53: 0 | AQ53: -83033.0191 | AR53: =CHOOSE(TaxRates,Tables!Z96,Tables!AA96) -> 0.45 | AS53: -45668.16051 | AT53: 24695.12127 | AU53: 642073.1529 | AW53: =IF(C53>=RetAge,0,IF(AX53<MIN($AX$13:AX52),MAX($AW$13:AW52)+1,0)) -> 0 | AX53: 0 | AY53: =CHOOSE(TaxRates,Tables!Z96,Tables!AA96) -> 0.45 | AZ53: 0 | BA53: -52860.55686 | BB53: 16358.08598 | BC53: 405836.3235
A54: 42 | B54: 2055 | C54: 81 | E54: 0 | F54: 0 | G54: 0 | I54: =IF($C54>=RetAge,0,VLOOKUP($B54,Tables!$A$10:$T$126,18,FALSE)) -> 0 | J54: =IF($C54>=RetAge,0,IF(C54<CatchupAge,0,VLOOKUP($B54,Tables!$A$10:$T$126,20,FALSE))) -> 0 | K54: 0 | L54: 0 | M54: =IF($C54>=RetAge,0,VLOOKUP($B54,Tables!$A$10:$T$126,16,FALSE)) -> 0 | N54: 0 | O54: =IF($C54>=RetAge,0,VLOOKUP($B54,Tables!$A$10:$T$126,18,FALSE)) -> 0 | P54: 0 | R54: 0 | S54: 0 | T54: 0 | U54: 0 | V54: 0 | W54: 0 | X54: 0 | Y54: 0 | AA54: 0 | AB54: -96158.6107 | AC54: =CHOOSE(TaxRates,Tables!Z97,Tables!AA97) -> 0.45 | AD54: -52887.23589 | AE54: 25896.45574 | AF54: 673307.8491 | AH54: 0 | AI54: -24039.65268 | AJ54: =CHOOSE(TaxRates,Tables!Z97,Tables!AA97) -> 0.45 | AK54: -13221.80897 | AL54: 6474.113934 | AM54: 168326.9623 | AO54: =IF(C54>=RetAge,0,IF(AP54<MIN($AP$13:AP53),MAX($AO$13:AO53)+1,0)) -> 0 | AP54: 0 | AQ54: -83033.0191 | AR54: =CHOOSE(TaxRates,Tables!Z97,Tables!AA97) -> 0.45 | AS54: -45668.16051 | AT54: 22361.60535 | AU54: 581401.7392 | AW54: =IF(C54>=RetAge,0,IF(AX54<MIN($AX$13:AX53),MAX($AW$13:AW53)+1,0)) -> 0 | AX54: 0 | AY54: =CHOOSE(TaxRates,Tables!Z97,Tables!AA97) -> 0.45 | AZ54: 0 | BA54: -52860.55686 | BB54: 14824.9822 | BC54: 367800.7488
A55: 43 | B55: 2056 | C55: 82 | E55: 0 | F55: 0 | G55: 0 | I55: =IF($C55>=RetAge,0,VLOOKUP($B55,Tables!$A$10:$T$126,18,FALSE)) -> 0 | J55: =IF($C55>=RetAge,0,IF(C55<CatchupAge,0,VLOOKUP($B55,Tables!$A$10:$T$126,20,FALSE))) -> 0 | K55: 0 | L55: 0 | M55: =IF($C55>=RetAge,0,VLOOKUP($B55,Tables!$A$10:$T$126,16,FALSE)) -> 0 | N55: 0 | O55: =IF($C55>=RetAge,0,VLOOKUP($B55,Tables!$A$10:$T$126,18,FALSE)) -> 0 | P55: 0 | R55: 0 | S55: 0 | T55: 0 | U55: 0 | V55: 0 | W55: 0 | X55: 0 | Y55: 0 | AA55: 0 | AB55: -96158.6107 | AC55: =CHOOSE(TaxRates,Tables!Z98,Tables!AA98) -> 0.45 | AD55: -52887.23589 | AE55: 23085.96954 | AF55: 600235.208 | AH55: 0 | AI55: -24039.65268 | AJ55: =CHOOSE(TaxRates,Tables!Z98,Tables!AA98) -> 0.45 | AK55: -13221.80897 | AL55: 5771.492384 | AM55: 150058.802 | AO55: =IF(C55>=RetAge,0,IF(AP55<MIN($AP$13:AP54),MAX($AO$13:AO54)+1,0)) -> 0 | AP55: 0 | AQ55: -83033.0191 | AR55: =CHOOSE(TaxRates,Tables!Z98,Tables!AA98) -> 0.45 | AS55: -45668.16051 | AT55: 19934.7488 | AU55: 518303.4689 | AW55: =IF(C55>=RetAge,0,IF(AX55<MIN($AX$13:AX54),MAX($AW$13:AW54)+1,0)) -> 0 | AX55: 0 | AY55: =CHOOSE(TaxRates,Tables!Z98,Tables!AA98) -> 0.45 | AZ55: 0 | BA55: -52860.55686 | BB55: 13227.48806 | BC55: 328167.68
A56: 44 | B56: 2057 | C56: 83 | E56: 0 | F56: 0 | G56: 0 | I56: =IF($C56>=RetAge,0,VLOOKUP($B56,Tables!$A$10:$T$126,18,FALSE)) -> 0 | J56: =IF($C56>=RetAge,0,IF(C56<CatchupAge,0,VLOOKUP($B56,Tables!$A$10:$T$126,20,FALSE))) -> 0 | K56: 0 | L56: 0 | M56: =IF($C56>=RetAge,0,VLOOKUP($B56,Tables!$A$10:$T$126,16,FALSE)) -> 0 | N56: 0 | O56: =IF($C56>=RetAge,0,VLOOKUP($B56,Tables!$A$10:$T$126,18,FALSE)) -> 0 | P56: 0 | R56: 0 | S56: 0 | T56: 0 | U56: 0 | V56: 0 | W56: 0 | X56: 0 | Y56: 0 | AA56: 0 | AB56: -96158.6107 | AC56: =CHOOSE(TaxRates,Tables!Z99,Tables!AA99) -> 0.45 | AD56: -52887.23589 | AE56: 20163.06389 | AF56: 524239.6611 | AH56: 0 | AI56: -24039.65268 | AJ56: =CHOOSE(TaxRates,Tables!Z99,Tables!AA99) -> 0.45 | AK56: -13221.80897 | AL56: 5040.765973 | AM56: 131059.9153 | AO56: =IF(C56>=RetAge,0,IF(AP56<MIN($AP$13:AP55),MAX($AO$13:AO55)+1,0)) -> 0 | AP56: 0 | AQ56: -83033.0191 | AR56: =CHOOSE(TaxRates,Tables!Z99,Tables!AA99) -> 0.45 | AS56: -45668.16051 | AT56: 17410.81799 | AU56: 452681.2677 | AW56: =IF(C56>=RetAge,0,IF(AX56<MIN($AX$13:AX55),MAX($AW$13:AW55)+1,0)) -> 0 | AX56: 0 | AY56: =CHOOSE(TaxRates,Tables!Z99,Tables!AA99) -> 0.45 | AZ56: 0 | BA56: -52860.55686 | BB56: 11562.89917 | BC56: 286870.0223
A57: 45 | B57: 2058 | C57: 84 | E57: 0 | F57: 0 | G57: 0 | I57: =IF($C57>=RetAge,0,VLOOKUP($B57,Tables!$A$10:$T$126,18,FALSE)) -> 0 | J57: =IF($C57>=RetAge,0,IF(C57<CatchupAge,0,VLOOKUP($B57,Tables!$A$10:$T$126,20,FALSE))) -> 0 | K57: 0 | L57: 0 | M57: =IF($C57>=RetAge,0,VLOOKUP($B57,Tables!$A$10:$T$126,16,FALSE)) -> 0 | N57: 0 | O57: =IF($C57>=RetAge,0,VLOOKUP($B57,Tables!$A$10:$T$126,18,FALSE)) -> 0 | P57: 0 | R57: 0 | S57: 0 | T57: 0 | U57: 0 | V57: 0 | W57: 0 | X57: 0 | Y57: 0 | AA57: 0 | AB57: -96158.6107 | AC57: =CHOOSE(TaxRates,Tables!Z100,Tables!AA100) -> 0.45 | AD57: -52887.23589 | AE57: 17123.24202 | AF57: 445204.2925 | AH57: 0 | AI57: -24039.65268 | AJ57: =CHOOSE(TaxRates,Tables!Z100,Tables!AA100) -> 0.45 | AK57: -13221.80897 | AL57: 4280.810504 | AM57: 111301.0731 | AO57: =IF(C57>=RetAge,0,IF(AP57<MIN($AP$13:AP56),MAX($AO$13:AO56)+1,0)) -> 0 | AP57: 0 | AQ57: -83033.0191 | AR57: =CHOOSE(TaxRates,Tables!Z100,Tables!AA100) -> 0.45 | AS57: -45668.16051 | AT57: 14785.92995 | AU57: 384434.1786 | AW57: =IF(C57>=RetAge,0,IF(AX57<MIN($AX$13:AX56),MAX($AW$13:AW56)+1,0)) -> 0 | AX57: 0 | AY57: =CHOOSE(TaxRates,Tables!Z100,Tables!AA100) -> 0.45 | AZ57: 0 | BA57: -52860.55686 | BB57: 9828.39755 | BC57: 243837.863
A58: 46 | B58: 2059 | C58: 85 | E58: 0 | F58: 0 | G58: 0 | I58: =IF($C58>=RetAge,0,VLOOKUP($B58,Tables!$A$10:$T$126,18,FALSE)) -> 0 | J58: =IF($C58>=RetAge,0,IF(C58<CatchupAge,0,VLOOKUP($B58,Tables!$A$10:$T$126,20,FALSE))) -> 0 | K58: 0 | L58: 0 | M58: =IF($C58>=RetAge,0,VLOOKUP($B58,Tables!$A$10:$T$126,16,FALSE)) -> 0 | N58: 0 | O58: =IF($C58>=RetAge,0,VLOOKUP($B58,Tables!$A$10:$T$126,18,FALSE)) -> 0 | P58: 0 | R58: 0 | S58: 0 | T58: 0 | U58: 0 | V58: 0 | W58: 0 | X58: 0 | Y58: 0 | AA58: 0 | AB58: -96158.6107 | AC58: =CHOOSE(TaxRates,Tables!Z101,Tables!AA101) -> 0.45 | AD58: -52887.23589 | AE58: 13961.82727 | AF58: 363007.509 | AH58: 0 | AI58: -24039.65268 | AJ58: =CHOOSE(TaxRates,Tables!Z101,Tables!AA101) -> 0.45 | AK58: -13221.80897 | AL58: 3490.456818 | AM58: 90751.87726 | AO58: =IF(C58>=RetAge,0,IF(AP58<MIN($AP$13:AP57),MAX($AO$13:AO57)+1,0)) -> 0 | AP58: 0 | AQ58: -83033.0191 | AR58: =CHOOSE(TaxRates,Tables!Z101,Tables!AA101) -> 0.45 | AS58: -45668.16051 | AT58: 12056.04638 | AU58: 313457.2059 | AW58: =IF(C58>=RetAge,0,IF(AX58<MIN($AX$13:AX57),MAX($AW$13:AW57)+1,0)) -> 0 | AX58: 0 | AY58: =CHOOSE(TaxRates,Tables!Z101,Tables!AA101) -> 0.45 | AZ58: 0 | BA58: -52860.55686 | BB58: 8021.046859 | BC58: 198998.353
A59: 47 | B59: 2060 | C59: 86 | E59: 0 | F59: 0 | G59: 0 | I59: =IF($C59>=RetAge,0,VLOOKUP($B59,Tables!$A$10:$T$126,18,FALSE)) -> 0 | J59: =IF($C59>=RetAge,0,IF(C59<CatchupAge,0,VLOOKUP($B59,Tables!$A$10:$T$126,20,FALSE))) -> 0 | K59: 0 | L59: 0 | M59: =IF($C59>=RetAge,0,VLOOKUP($B59,Tables!$A$10:$T$126,16,FALSE)) -> 0 | N59: 0 | O59: =IF($C59>=RetAge,0,VLOOKUP($B59,Tables!$A$10:$T$126,18,FALSE)) -> 0 | P59: 0 | R59: 0 | S59: 0 | T59: 0 | U59: 0 | V59: 0 | W59: 0 | X59: 0 | Y59: 0 | AA59: 0 | AB59: -96158.6107 | AC59: =CHOOSE(TaxRates,Tables!Z102,Tables!AA102) -> 0.45 | AD59: -52887.23589 | AE59: 10673.95593 | AF59: 277522.8543 | AH59: 0 | AI59: -24039.65268 | AJ59: =CHOOSE(TaxRates,Tables!Z102,Tables!AA102) -> 0.45 | AK59: -13221.80897 | AL59: 2668.488983 | AM59: 69380.71356 | AO59: =IF(C59>=RetAge,0,IF(AP59<MIN($AP$13:AP58),MAX($AO$13:AO58)+1,0)) -> 0 | AP59: 0 | AQ59: -83033.0191 | AR59: =CHOOSE(TaxRates,Tables!Z102,Tables!AA102) -> 0.45 | AS59: -45668.16051 | AT59: 9216.967471 | AU59: 239641.1542 | AW59: =IF(C59>=RetAge,0,IF(AX59<MIN($AX$13:AX58),MAX($AW$13:AW58)+1,0)) -> 0 | AX59: 0 | AY59: =CHOOSE(TaxRates,Tables!Z102,Tables!AA102) -> 0.45 | AZ59: 0 | BA59: -52860.55686 | BB59: 6137.787439 | BC59: 152275.5836
A60: 48 | B60: 2061 | C60: 87 | E60: 0 | F60: 0 | G60: 0 | I60: =IF($C60>=RetAge,0,VLOOKUP($B60,Tables!$A$10:$T$126,18,FALSE)) -> 0 | J60: =IF($C60>=RetAge,0,IF(C60<CatchupAge,0,VLOOKUP($B60,Tables!$A$10:$T$126,20,FALSE))) -> 0 | K60: 0 | L60: 0 | M60: =IF($C60>=RetAge,0,VLOOKUP($B60,Tables!$A$10:$T$126,16,FALSE)) -> 0 | N60: 0 | O60: =IF($C60>=RetAge,0,VLOOKUP($B60,Tables!$A$10:$T$126,18,FALSE)) -> 0 | P60: 0 | R60: 0 | S60: 0 | T60: 0 | U60: 0 | V60: 0 | W60: 0 | X60: 0 | Y60: 0 | AA60: 0 | AB60: -96158.6107 | AC60: =CHOOSE(TaxRates,Tables!Z103,Tables!AA103) -> 0.45 | AD60: -52887.23589 | AE60: 7254.569742 | AF60: 188618.8133 | AH60: 0 | AI60: -24039.65268 | AJ60: =CHOOSE(TaxRates,Tables!Z103,Tables!AA103) -> 0.45 | AK60: -13221.80897 | AL60: 1813.642436 | AM60: 47154.70332 | AO60: =IF(C60>=RetAge,0,IF(AP60<MIN($AP$13:AP59),MAX($AO$13:AO59)+1,0)) -> 0 | AP60: 0 | AQ60: -83033.0191 | AR60: =CHOOSE(TaxRates,Tables!Z103,Tables!AA103) -> 0.45 | AS60: -45668.16051 | AT60: 6264.325406 | AU60: 162872.4605 | AW60: =IF(C60>=RetAge,0,IF(AX60<MIN($AX$13:AX59),MAX($AW$13:AW59)+1,0)) -> 0 | AX60: 0 | AY60: =CHOOSE(TaxRates,Tables!Z103,Tables!AA103) -> 0.45 | AZ60: 0 | BA60: -52860.55686 | BB60: 4175.431124 | BC60: 103590.4579
A61: 49 | B61: 2062 | C61: 88 | E61: 0 | F61: 0 | G61: 0 | I61: =IF($C61>=RetAge,0,VLOOKUP($B61,Tables!$A$10:$T$126,18,FALSE)) -> 0 | J61: =IF($C61>=RetAge,0,IF(C61<CatchupAge,0,VLOOKUP($B61,Tables!$A$10:$T$126,20,FALSE))) -> 0 | K61: 0 | L61: 0 | M61: =IF($C61>=RetAge,0,VLOOKUP($B61,Tables!$A$10:$T$126,16,FALSE)) -> 0 | N61: 0 | O61: =IF($C61>=RetAge,0,VLOOKUP($B61,Tables!$A$10:$T$126,18,FALSE)) -> 0 | P61: 0 | R61: 0 | S61: 0 | T61: 0 | U61: 0 | V61: 0 | W61: 0 | X61: 0 | Y61: 0 | AA61: 0 | AB61: -96158.6107 | AC61: =CHOOSE(TaxRates,Tables!Z104,Tables!AA104) -> 0.45 | AD61: -52887.23589 | AE61: 3698.408104 | AF61: 96158.6107 | AH61: 0 | AI61: -24039.65268 | AJ61: =CHOOSE(TaxRates,Tables!Z104,Tables!AA104) -> 0.45 | AK61: -13221.80897 | AL61: 924.602026 | AM61: 24039.65268 | AO61: =IF(C61>=RetAge,0,IF(AP61<MIN($AP$13:AP60),MAX($AO$13:AO60)+1,0)) -> 0 | AP61: 0 | AQ61: -83033.0191 | AR61: =CHOOSE(TaxRates,Tables!Z104,Tables!AA104) -> 0.45 | AS61: -45668.16051 | AT61: 3193.577658 | AU61: 83033.0191 | AW61: =IF(C61>=RetAge,0,IF(AX61<MIN($AX$13:AX60),MAX($AW$13:AW60)+1,0)) -> 0 | AX61: 0 | AY61: =CHOOSE(TaxRates,Tables!Z104,Tables!AA104) -> 0.45 | AZ61: 0 | BA61: -52860.55686 | BB61: 2130.655843 | BC61: 52860.55686
A62: =A61+1 -> 50 | B62: 2063 | C62: 89 | E62: 0 | F62: 0 | G62: 0 | I62: =IF($C62>=RetAge,0,VLOOKUP($B62,Tables!$A$10:$T$126,18,FALSE)) -> 0 | J62: =IF($C62>=RetAge,0,IF(C62<CatchupAge,0,VLOOKUP($B62,Tables!$A$10:$T$126,20,FALSE))) -> 0 | K62: 0 | L62: 0 | M62: =IF($C62>=RetAge,0,VLOOKUP($B62,Tables!$A$10:$T$126,16,FALSE)) -> 0 | N62: 0 | O62: =IF($C62>=RetAge,0,VLOOKUP($B62,Tables!$A$10:$T$126,18,FALSE)) -> 0 | P62: 0 | R62: 0 | S62: 0 | T62: 0 | U62: 0 | V62: 0 | W62: 0 | X62: 0 | Y62: 0 | AA62: 0 | AB62: -96158.6107 | AC62: =CHOOSE(TaxRates,Tables!Z105,Tables!AA105) -> 0.45 | AD62: -52887.23589 | AE62: 4.831235856e-11 | AF62: 1.25146471e-09 | AH62: 0 | AI62: -24039.65268 | AJ62: =CHOOSE(TaxRates,Tables!Z105,Tables!AA105) -> 0.45 | AK62: -13221.80897 | AL62: 1.207808964e-11 | AM62: 3.128661774e-10 | AO62: =IF(C62>=RetAge,0,IF(AP62<MIN($AP$13:AP61),MAX($AO$13:AO61)+1,0)) -> 0 | AP62: 0 | AQ62: -83033.0191 | AR62: =CHOOSE(TaxRates,Tables!Z105,Tables!AA105) -> 0.45 | AS62: -45668.16051 | AT62: 3.899913281e-11 | AU62: 1.018634066e-09 | AW62: =IF(C62>=RetAge,0,IF(AX62<MIN($AX$13:AX61),MAX($AW$13:AW61)+1,0)) -> 0 | AX62: 0 | AY62: =CHOOSE(TaxRates,Tables!Z105,Tables!AA105) -> 0.45 | AZ62: 0 | BA62: -52860.55686 | BB62: 2.505839802e-11 | BC62: 6.184563972e-10
A63: 51 | B63: 2064 | C63: 90 | E63: 0 | F63: 0 | G63: 0 | I63: =IF($C63>=RetAge,0,VLOOKUP($B63,Tables!$A$10:$T$126,18,FALSE)) -> 0 | J63: =IF($C63>=RetAge,0,IF(C63<CatchupAge,0,VLOOKUP($B63,Tables!$A$10:$T$126,20,FALSE))) -> 0 | K63: 0 | L63: 0 | M63: =IF($C63>=RetAge,0,VLOOKUP($B63,Tables!$A$10:$T$126,16,FALSE)) -> 0 | N63: 0 | O63: =IF($C63>=RetAge,0,VLOOKUP($B63,Tables!$A$10:$T$126,18,FALSE)) -> 0 | P63: 0 | R63: 0 | S63: 0 | T63: 0 | U63: 0 | V63: 0 | W63: 0 | X63: 0 | Y63: 0 | AA63: 0 | AB63: 0 | AC63: =CHOOSE(TaxRates,Tables!Z106,Tables!AA106) -> 0.45 | AD63: 0 | AE63: 5.005858839e-11 | AF63: 1.301523298e-09 | AH63: 0 | AI63: 0 | AJ63: =CHOOSE(TaxRates,Tables!Z106,Tables!AA106) -> 0.45 | AK63: 0 | AL63: 1.25146471e-11 | AM63: 3.253808245e-10 | AO63: =IF(C63>=RetAge,0,IF(AP63<MIN($AP$13:AP62),MAX($AO$13:AO62)+1,0)) -> 0 | AP63: 0 | AQ63: 0 | AR63: =CHOOSE(TaxRates,Tables!Z106,Tables!AA106) -> 0.45 | AS63: 0 | AT63: 4.074536264e-11 | AU63: 1.059379429e-09 | AW63: =IF(C63>=RetAge,0,IF(AX63<MIN($AX$13:AX62),MAX($AW$13:AW62)+1,0)) -> 0 | AX63: 0 | AY63: =CHOOSE(TaxRates,Tables!Z106,Tables!AA106) -> 0.45 | AZ63: 0 | BA63: 0 | BB63: 2.597516868e-11 | BC63: 6.444315659e-10
A64: 52 | B64: 2065 | C64: 91 | E64: 0 | F64: 0 | G64: 0 | I64: =IF($C64>=RetAge,0,VLOOKUP($B64,Tables!$A$10:$T$126,18,FALSE)) -> 0 | J64: =IF($C64>=RetAge,0,IF(C64<CatchupAge,0,VLOOKUP($B64,Tables!$A$10:$T$126,20,FALSE))) -> 0 | K64: 0 | L64: 0 | M64: =IF($C64>=RetAge,0,VLOOKUP($B64,Tables!$A$10:$T$126,16,FALSE)) -> 0 | N64: 0 | O64: =IF($C64>=RetAge,0,VLOOKUP($B64,Tables!$A$10:$T$126,18,FALSE)) -> 0 | P64: 0 | R64: 0 | S64: 0 | T64: 0 | U64: 0 | V64: 0 | W64: 0 | X64: 0 | Y64: 0 | AA64: 0 | AB64: 0 | AC64: =CHOOSE(TaxRates,Tables!Z107,Tables!AA107) -> 0.45 | AD64: 0 | AE64: 5.206093192e-11 | AF64: 1.35358423e-09 | AH64: 0 | AI64: 0 | AJ64: =CHOOSE(TaxRates,Tables!Z107,Tables!AA107) -> 0.45 | AK64: 0 | AL64: 1.301523298e-11 | AM64: 3.383960575e-10 | AO64: =IF(C64>=RetAge,0,IF(AP64<MIN($AP$13:AP63),MAX($AO$13:AO63)+1,0)) -> 0 | AP64: 0 | AQ64: 0 | AR64: =CHOOSE(TaxRates,Tables!Z107,Tables!AA107) -> 0.45 | AS64: 0 | AT64: 4.237517715e-11 | AU64: 1.101754606e-09 | AW64: =IF(C64>=RetAge,0,IF(AX64<MIN($AX$13:AX63),MAX($AW$13:AW63)+1,0)) -> 0 | AX64: 0 | AY64: =CHOOSE(TaxRates,Tables!Z107,Tables!AA107) -> 0.45 | AZ64: 0 | BA64: 0 | BB64: 2.706612577e-11 | BC64: 6.714976917e-10
A65: 53 | B65: 2066 | C65: 92 | E65: 0 | F65: 0 | G65: 0 | I65: =IF($C65>=RetAge,0,VLOOKUP($B65,Tables!$A$10:$T$126,18,FALSE)) -> 0 | J65: =IF($C65>=RetAge,0,IF(C65<CatchupAge,0,VLOOKUP($B65,Tables!$A$10:$T$126,20,FALSE))) -> 0 | K65: 0 | L65: 0 | M65: =IF($C65>=RetAge,0,VLOOKUP($B65,Tables!$A$10:$T$126,16,FALSE)) -> 0 | N65: 0 | O65: =IF($C65>=RetAge,0,VLOOKUP($B65,Tables!$A$10:$T$126,18,FALSE)) -> 0 | P65: 0 | R65: 0 | S65: 0 | T65: 0 | U65: 0 | V65: 0 | W65: 0 | X65: 0 | Y65: 0 | AA65: 0 | AB65: 0 | AC65: =CHOOSE(TaxRates,Tables!Z108,Tables!AA108) -> 0.45 | AD65: 0 | AE65: 5.41433692e-11 | AF65: 1.407727599e-09 | AH65: 0 | AI65: 0 | AJ65: =CHOOSE(TaxRates,Tables!Z108,Tables!AA108) -> 0.45 | AK65: 0 | AL65: 1.35358423e-11 | AM65: 3.519318998e-10 | AO65: =IF(C65>=RetAge,0,IF(AP65<MIN($AP$13:AP64),MAX($AO$13:AO64)+1,0)) -> 0 | AP65: 0 | AQ65: 0 | AR65: =CHOOSE(TaxRates,Tables!Z108,Tables!AA108) -> 0.45 | AS65: 0 | AT65: 4.407018423e-11 | AU65: 1.14582479e-09 | AW65: =IF(C65>=RetAge,0,IF(AX65<MIN($AX$13:AX64),MAX($AW$13:AW64)+1,0)) -> 0 | AX65: 0 | AY65: =CHOOSE(TaxRates,Tables!Z108,Tables!AA108) -> 0.45 | AZ65: 0 | BA65: 0 | BB65: 2.820290305e-11 | BC65: 6.997005947e-10
A66: 54 | B66: 2067 | C66: 93 | E66: 0 | F66: 0 | G66: 0 | I66: =IF($C66>=RetAge,0,VLOOKUP($B66,Tables!$A$10:$T$126,18,FALSE)) -> 0 | J66: =IF($C66>=RetAge,0,IF(C66<CatchupAge,0,VLOOKUP($B66,Tables!$A$10:$T$126,20,FALSE))) -> 0 | K66: 0 | L66: 0 | M66: =IF($C66>=RetAge,0,VLOOKUP($B66,Tables!$A$10:$T$126,16,FALSE)) -> 0 | N66: 0 | O66: =IF($C66>=RetAge,0,VLOOKUP($B66,Tables!$A$10:$T$126,18,FALSE)) -> 0 | P66: 0 | R66: 0 | S66: 0 | T66: 0 | U66: 0 | V66: 0 | W66: 0 | X66: 0 | Y66: 0 | AA66: 0 | AB66: 0 | AC66: =CHOOSE(TaxRates,Tables!Z109,Tables!AA109) -> 0.45 | AD66: 0 | AE66: 5.630910397e-11 | AF66: 1.464036703e-09 | AH66: 0 | AI66: 0 | AJ66: =CHOOSE(TaxRates,Tables!Z109,Tables!AA109) -> 0.45 | AK66: 0 | AL66: 1.407727599e-11 | AM66: 3.660091758e-10 | AO66: =IF(C66>=RetAge,0,IF(AP66<MIN($AP$13:AP65),MAX($AO$13:AO65)+1,0)) -> 0 | AP66: 0 | AQ66: 0 | AR66: =CHOOSE(TaxRates,Tables!Z109,Tables!AA109) -> 0.45 | AS66: 0 | AT66: 4.58329916e-11 | AU66: 1.191657782e-09 | AW66: =IF(C66>=RetAge,0,IF(AX66<MIN($AX$13:AX65),MAX($AW$13:AW65)+1,0)) -> 0 | AX66: 0 | AY66: =CHOOSE(TaxRates,Tables!Z109,Tables!AA109) -> 0.45 | AZ66: 0 | BA66: 0 | BB66: 2.938742498e-11 | BC66: 7.290880197e-10
A67: 55 | B67: 2068 | C67: 94 | E67: 0 | F67: 0 | G67: 0 | I67: =IF($C67>=RetAge,0,VLOOKUP($B67,Tables!$A$10:$T$126,18,FALSE)) -> 0 | J67: =IF($C67>=RetAge,0,IF(C67<CatchupAge,0,VLOOKUP($B67,Tables!$A$10:$T$126,20,FALSE))) -> 0 | K67: 0 | L67: 0 | M67: =IF($C67>=RetAge,0,VLOOKUP($B67,Tables!$A$10:$T$126,16,FALSE)) -> 0 | N67: 0 | O67: =IF($C67>=RetAge,0,VLOOKUP($B67,Tables!$A$10:$T$126,18,FALSE)) -> 0 | P67: 0 | R67: 0 | S67: 0 | T67: 0 | U67: 0 | V67: 0 | W67: 0 | X67: 0 | Y67: 0 | AA67: 0 | AB67: 0 | AC67: =CHOOSE(TaxRates,Tables!Z110,Tables!AA110) -> 0.45 | AD67: 0 | AE67: 5.856146812e-11 | AF67: 1.522598171e-09 | AH67: 0 | AI67: 0 | AJ67: =CHOOSE(TaxRates,Tables!Z110,Tables!AA110) -> 0.45 | AK67: 0 | AL67: 1.464036703e-11 | AM67: 3.806495428e-10 | AO67: =IF(C67>=RetAge,0,IF(AP67<MIN($AP$13:AP66),MAX($AO$13:AO66)+1,0)) -> 0 | AP67: 0 | AQ67: 0 | AR67: =CHOOSE(TaxRates,Tables!Z110,Tables!AA110) -> 0.45 | AS67: 0 | AT67: 4.766631126e-11 | AU67: 1.239324093e-09 | AW67: =IF(C67>=RetAge,0,IF(AX67<MIN($AX$13:AX66),MAX($AW$13:AW66)+1,0)) -> 0 | AX67: 0 | AY67: =CHOOSE(TaxRates,Tables!Z110,Tables!AA110) -> 0.45 | AZ67: 0 | BA67: 0 | BB67: 3.062169683e-11 | BC67: 7.597097165e-10
A68: 56 | B68: 2069 | C68: 95 | E68: 0 | F68: 0 | G68: 0 | I68: =IF($C68>=RetAge,0,VLOOKUP($B68,Tables!$A$10:$T$126,18,FALSE)) -> 0 | J68: =IF($C68>=RetAge,0,IF(C68<CatchupAge,0,VLOOKUP($B68,Tables!$A$10:$T$126,20,FALSE))) -> 0 | K68: 0 | L68: 0 | M68: =IF($C68>=RetAge,0,VLOOKUP($B68,Tables!$A$10:$T$126,16,FALSE)) -> 0 | N68: 0 | O68: =IF($C68>=RetAge,0,VLOOKUP($B68,Tables!$A$10:$T$126,18,FALSE)) -> 0 | P68: 0 | R68: 0 | S68: 0 | T68: 0 | U68: 0 | V68: 0 | W68: 0 | X68: 0 | Y68: 0 | AA68: 0 | AB68: 0 | AC68: =CHOOSE(TaxRates,Tables!Z111,Tables!AA111) -> 0.45 | AD68: 0 | AE68: 6.090392685e-11 | AF68: 1.583502098e-09 | AH68: 0 | AI68: 0 | AJ68: =CHOOSE(TaxRates,Tables!Z111,Tables!AA111) -> 0.45 | AK68: 0 | AL68: 1.522598171e-11 | AM68: 3.958755245e-10 | AO68: =IF(C68>=RetAge,0,IF(AP68<MIN($AP$13:AP67),MAX($AO$13:AO67)+1,0)) -> 0 | AP68: 0 | AQ68: 0 | AR68: =CHOOSE(TaxRates,Tables!Z111,Tables!AA111) -> 0.45 | AS68: 0 | AT68: 4.957296371e-11 | AU68: 1.288897057e-09 | AW68: =IF(C68>=RetAge,0,IF(AX68<MIN($AX$13:AX67),MAX($AW$13:AW67)+1,0)) -> 0 | AX68: 0 | AY68: =CHOOSE(TaxRates,Tables!Z111,Tables!AA111) -> 0.45 | AZ68: 0 | BA68: 0 | BB68: 3.190780809e-11 | BC68: 7.916175246e-10
A69: 57 | B69: 2070 | C69: 96 | E69: 0 | F69: 0 | G69: 0 | I69: =IF($C69>=RetAge,0,VLOOKUP($B69,Tables!$A$10:$T$126,18,FALSE)) -> 0 | J69: =IF($C69>=RetAge,0,IF(C69<CatchupAge,0,VLOOKUP($B69,Tables!$A$10:$T$126,20,FALSE))) -> 0 | K69: 0 | L69: 0 | M69: =IF($C69>=RetAge,0,VLOOKUP($B69,Tables!$A$10:$T$126,16,FALSE)) -> 0 | N69: 0 | O69: =IF($C69>=RetAge,0,VLOOKUP($B69,Tables!$A$10:$T$126,18,FALSE)) -> 0 | P69: 0 | R69: 0 | S69: 0 | T69: 0 | U69: 0 | V69: 0 | W69: 0 | X69: 0 | Y69: 0 | AA69: 0 | AB69: 0 | AC69: =CHOOSE(TaxRates,Tables!Z112,Tables!AA112) -> 0.45 | AD69: 0 | AE69: 6.334008392e-11 | AF69: 1.646842182e-09 | AH69: 0 | AI69: 0 | AJ69: =CHOOSE(TaxRates,Tables!Z112,Tables!AA112) -> 0.45 | AK69: 0 | AL69: 1.583502098e-11 | AM69: 4.117105455e-10 | AO69: =IF(C69>=RetAge,0,IF(AP69<MIN($AP$13:AP68),MAX($AO$13:AO68)+1,0)) -> 0 | AP69: 0 | AQ69: 0 | AR69: =CHOOSE(TaxRates,Tables!Z112,Tables!AA112) -> 0.45 | AS69: 0 | AT69: 5.155588226e-11 | AU69: 1.340452939e-09 | AW69: =IF(C69>=RetAge,0,IF(AX69<MIN($AX$13:AX68),MAX($AW$13:AW68)+1,0)) -> 0 | AX69: 0 | AY69: =CHOOSE(TaxRates,Tables!Z112,Tables!AA112) -> 0.45 | AZ69: 0 | BA69: 0 | BB69: 3.324793603e-11 | BC69: 8.248654606e-10
A70: 58 | B70: 2071 | C70: 97 | E70: 0 | F70: 0 | G70: 0 | I70: =IF($C70>=RetAge,0,VLOOKUP($B70,Tables!$A$10:$T$126,18,FALSE)) -> 0 | J70: =IF($C70>=RetAge,0,IF(C70<CatchupAge,0,VLOOKUP($B70,Tables!$A$10:$T$126,20,FALSE))) -> 0 | K70: 0 | L70: 0 | M70: =IF($C70>=RetAge,0,VLOOKUP($B70,Tables!$A$10:$T$126,16,FALSE)) -> 0 | N70: 0 | O70: =IF($C70>=RetAge,0,VLOOKUP($B70,Tables!$A$10:$T$126,18,FALSE)) -> 0 | P70: 0 | R70: 0 | S70: 0 | T70: 0 | U70: 0 | V70: 0 | W70: 0 | X70: 0 | Y70: 0 | AA70: 0 | AB70: 0 | AC70: =CHOOSE(TaxRates,Tables!Z113,Tables!AA113) -> 0.45 | AD70: 0 | AE70: 6.587368728e-11 | AF70: 1.712715869e-09 | AH70: 0 | AI70: 0 | AJ70: =CHOOSE(TaxRates,Tables!Z113,Tables!AA113) -> 0.45 | AK70: 0 | AL70: 1.646842182e-11 | AM70: 4.281789673e-10 | AO70: =IF(C70>=RetAge,0,IF(AP70<MIN($AP$13:AP69),MAX($AO$13:AO69)+1,0)) -> 0 | AP70: 0 | AQ70: 0 | AR70: =CHOOSE(TaxRates,Tables!Z113,Tables!AA113) -> 0.45 | AS70: 0 | AT70: 5.361811755e-11 | AU70: 1.394071056e-09 | AW70: =IF(C70>=RetAge,0,IF(AX70<MIN($AX$13:AX69),MAX($AW$13:AW69)+1,0)) -> 0 | AX70: 0 | AY70: =CHOOSE(TaxRates,Tables!Z113,Tables!AA113) -> 0.45 | AZ70: 0 | BA70: 0 | BB70: 3.464434935e-11 | BC70: 8.5950981e-10
A71: 59 | B71: 2072 | C71: 98 | E71: 0 | F71: 0 | G71: 0 | I71: =IF($C71>=RetAge,0,VLOOKUP($B71,Tables!$A$10:$T$126,18,FALSE)) -> 0 | J71: =IF($C71>=RetAge,0,IF(C71<CatchupAge,0,VLOOKUP($B71,Tables!$A$10:$T$126,20,FALSE))) -> 0 | K71: 0 | L71: 0 | M71: =IF($C71>=RetAge,0,VLOOKUP($B71,Tables!$A$10:$T$126,16,FALSE)) -> 0 | N71: 0 | O71: =IF($C71>=RetAge,0,VLOOKUP($B71,Tables!$A$10:$T$126,18,FALSE)) -> 0 | P71: 0 | R71: 0 | S71: 0 | T71: 0 | U71: 0 | V71: 0 | W71: 0 | X71: 0 | Y71: 0 | AA71: 0 | AB71: 0 | AC71: =CHOOSE(TaxRates,Tables!Z114,Tables!AA114) -> 0.45 | AD71: 0 | AE71: 6.850863477e-11 | AF71: 1.781224504e-09 | AH71: 0 | AI71: 0 | AJ71: =CHOOSE(TaxRates,Tables!Z114,Tables!AA114) -> 0.45 | AK71: 0 | AL71: 1.712715869e-11 | AM71: 4.45306126e-10 | AO71: =IF(C71>=RetAge,0,IF(AP71<MIN($AP$13:AP70),MAX($AO$13:AO70)+1,0)) -> 0 | AP71: 0 | AQ71: 0 | AR71: =CHOOSE(TaxRates,Tables!Z114,Tables!AA114) -> 0.45 | AS71: 0 | AT71: 5.576284226e-11 | AU71: 1.449833899e-09 | AW71: =IF(C71>=RetAge,0,IF(AX71<MIN($AX$13:AX70),MAX($AW$13:AW70)+1,0)) -> 0 | AX71: 0 | AY71: =CHOOSE(TaxRates,Tables!Z114,Tables!AA114) -> 0.45 | AZ71: 0 | BA71: 0 | BB71: 3.609941202e-11 | BC71: 8.95609222e-10
A72: 60 | B72: 2073 | C72: 99 | E72: 0 | F72: 0 | G72: 0 | I72: =IF($C72>=RetAge,0,VLOOKUP($B72,Tables!$A$10:$T$126,18,FALSE)) -> 0 | J72: =IF($C72>=RetAge,0,IF(C72<CatchupAge,0,VLOOKUP($B72,Tables!$A$10:$T$126,20,FALSE))) -> 0 | K72: 0 | L72: 0 | M72: =IF($C72>=RetAge,0,VLOOKUP($B72,Tables!$A$10:$T$126,16,FALSE)) -> 0 | N72: 0 | O72: =IF($C72>=RetAge,0,VLOOKUP($B72,Tables!$A$10:$T$126,18,FALSE)) -> 0 | P72: 0 | R72: 0 | S72: 0 | T72: 0 | U72: 0 | V72: 0 | W72: 0 | X72: 0 | Y72: 0 | AA72: 0 | AB72: 0 | AC72: =CHOOSE(TaxRates,Tables!Z115,Tables!AA115) -> 0.45 | AD72: 0 | AE72: 7.124898016e-11 | AF72: 1.852473484e-09 | AH72: 0 | AI72: 0 | AJ72: =CHOOSE(TaxRates,Tables!Z115,Tables!AA115) -> 0.45 | AK72: 0 | AL72: 1.781224504e-11 | AM72: 4.631183711e-10 | AO72: =IF(C72>=RetAge,0,IF(AP72<MIN($AP$13:AP71),MAX($AO$13:AO71)+1,0)) -> 0 | AP72: 0 | AQ72: 0 | AR72: =CHOOSE(TaxRates,Tables!Z115,Tables!AA115) -> 0.45 | AS72: 0 | AT72: 5.799335595e-11 | AU72: 1.507827255e-09 | AW72: =IF(C72>=RetAge,0,IF(AX72<MIN($AX$13:AX71),MAX($AW$13:AW71)+1,0)) -> 0 | AX72: 0 | AY72: =CHOOSE(TaxRates,Tables!Z115,Tables!AA115) -> 0.45 | AZ72: 0 | BA72: 0 | BB72: 3.761558732e-11 | BC72: 9.332248093e-10
A73: 61 | B73: 2074 | C73: 100 | E73: 0 | F73: 0 | G73: 0 | I73: =IF($C73>=RetAge,0,VLOOKUP($B73,Tables!$A$10:$T$126,18,FALSE)) -> 0 | J73: =IF($C73>=RetAge,0,IF(C73<CatchupAge,0,VLOOKUP($B73,Tables!$A$10:$T$126,20,FALSE))) -> 0 | K73: 0 | L73: 0 | M73: =IF($C73>=RetAge,0,VLOOKUP($B73,Tables!$A$10:$T$126,16,FALSE)) -> 0 | N73: 0 | O73: =IF($C73>=RetAge,0,VLOOKUP($B73,Tables!$A$10:$T$126,18,FALSE)) -> 0 | P73: 0 | R73: 0 | S73: 0 | T73: 0 | U73: 0 | V73: 0 | W73: 0 | X73: 0 | Y73: 0 | AA73: 0 | AB73: 0 | AC73: =CHOOSE(TaxRates,Tables!Z116,Tables!AA116) -> 0.45 | AD73: 0 | AE73: 7.409893937e-11 | AF73: 1.926572424e-09 | AH73: 0 | AI73: 0 | AJ73: =CHOOSE(TaxRates,Tables!Z116,Tables!AA116) -> 0.45 | AK73: 0 | AL73: 1.852473484e-11 | AM73: 4.816431059e-10 | AO73: =IF(C73>=RetAge,0,IF(AP73<MIN($AP$13:AP72),MAX($AO$13:AO72)+1,0)) -> 0 | AP73: 0 | AQ73: 0 | AR73: =CHOOSE(TaxRates,Tables!Z116,Tables!AA116) -> 0.45 | AS73: 0 | AT73: 6.031309018e-11 | AU73: 1.568140345e-09 | AW73: =IF(C73>=RetAge,0,IF(AX73<MIN($AX$13:AX72),MAX($AW$13:AW72)+1,0)) -> 0 | AX73: 0 | AY73: =CHOOSE(TaxRates,Tables!Z116,Tables!AA116) -> 0.45 | AZ73: 0 | BA73: 0 | BB73: 3.919544199e-11 | BC73: 9.724202513e-10
A74: 62 | B74: 2075 | C74: 101 | E74: 0 | F74: 0 | G74: 0 | I74: =IF($C74>=RetAge,0,VLOOKUP($B74,Tables!$A$10:$T$126,18,FALSE)) -> 0 | J74: =IF($C74>=RetAge,0,IF(C74<CatchupAge,0,VLOOKUP($B74,Tables!$A$10:$T$126,20,FALSE))) -> 0 | K74: 0 | L74: 0 | M74: =IF($C74>=RetAge,0,VLOOKUP($B74,Tables!$A$10:$T$126,16,FALSE)) -> 0 | N74: 0 | O74: =IF($C74>=RetAge,0,VLOOKUP($B74,Tables!$A$10:$T$126,18,FALSE)) -> 0 | P74: 0 | R74: 0 | S74: 0 | T74: 0 | U74: 0 | V74: 0 | W74: 0 | X74: 0 | Y74: 0 | AA74: 0 | AB74: 0 | AC74: =CHOOSE(TaxRates,Tables!Z117,Tables!AA117) -> 0.45 | AD74: 0 | AE74: 7.706289694e-11 | AF74: 2.003635321e-09 | AH74: 0 | AI74: 0 | AJ74: =CHOOSE(TaxRates,Tables!Z117,Tables!AA117) -> 0.45 | AK74: 0 | AL74: 1.926572424e-11 | AM74: 5.009088301e-10 | AO74: =IF(C74>=RetAge,0,IF(AP74<MIN($AP$13:AP73),MAX($AO$13:AO73)+1,0)) -> 0 | AP74: 0 | AQ74: 0 | AR74: =CHOOSE(TaxRates,Tables!Z117,Tables!AA117) -> 0.45 | AS74: 0 | AT74: 6.272561379e-11 | AU74: 1.630865959e-09 | AW74: =IF(C74>=RetAge,0,IF(AX74<MIN($AX$13:AX73),MAX($AW$13:AW73)+1,0)) -> 0 | AX74: 0 | AY74: =CHOOSE(TaxRates,Tables!Z117,Tables!AA117) -> 0.45 | AZ74: 0 | BA74: 0 | BB74: 4.084165056e-11 | BC74: 1.013261902e-09
A75: 63 | B75: 2076 | C75: 102 | E75: 0 | F75: 0 | G75: 0 | I75: =IF($C75>=RetAge,0,VLOOKUP($B75,Tables!$A$10:$T$126,18,FALSE)) -> 0 | J75: =IF($C75>=RetAge,0,IF(C75<CatchupAge,0,VLOOKUP($B75,Tables!$A$10:$T$126,20,FALSE))) -> 0 | K75: 0 | L75: 0 | M75: =IF($C75>=RetAge,0,VLOOKUP($B75,Tables!$A$10:$T$126,16,FALSE)) -> 0 | N75: 0 | O75: =IF($C75>=RetAge,0,VLOOKUP($B75,Tables!$A$10:$T$126,18,FALSE)) -> 0 | P75: 0 | R75: 0 | S75: 0 | T75: 0 | U75: 0 | V75: 0 | W75: 0 | X75: 0 | Y75: 0 | AA75: 0 | AB75: 0 | AC75: =CHOOSE(TaxRates,Tables!Z118,Tables!AA118) -> 0.45 | AD75: 0 | AE75: 8.014541282e-11 | AF75: 2.083780733e-09 | AH75: 0 | AI75: 0 | AJ75: =CHOOSE(TaxRates,Tables!Z118,Tables!AA118) -> 0.45 | AK75: 0 | AL75: 2.003635321e-11 | AM75: 5.209451833e-10 | AO75: =IF(C75>=RetAge,0,IF(AP75<MIN($AP$13:AP74),MAX($AO$13:AO74)+1,0)) -> 0 | AP75: 0 | AQ75: 0 | AR75: =CHOOSE(TaxRates,Tables!Z118,Tables!AA118) -> 0.45 | AS75: 0 | AT75: 6.523463834e-11 | AU75: 1.696100597e-09 | AW75: =IF(C75>=RetAge,0,IF(AX75<MIN($AX$13:AX74),MAX($AW$13:AW74)+1,0)) -> 0 | AX75: 0 | AY75: =CHOOSE(TaxRates,Tables!Z118,Tables!AA118) -> 0.45 | AZ75: 0 | BA75: 0 | BB75: 4.255699988e-11 | BC75: 1.055818902e-09
A76: 64 | B76: 2077 | C76: 103 | E76: 0 | F76: 0 | G76: 0 | I76: =IF($C76>=RetAge,0,VLOOKUP($B76,Tables!$A$10:$T$126,18,FALSE)) -> 0 | J76: =IF($C76>=RetAge,0,IF(C76<CatchupAge,0,VLOOKUP($B76,Tables!$A$10:$T$126,20,FALSE))) -> 0 | K76: 0 | L76: 0 | M76: =IF($C76>=RetAge,0,VLOOKUP($B76,Tables!$A$10:$T$126,16,FALSE)) -> 0 | N76: 0 | O76: =IF($C76>=RetAge,0,VLOOKUP($B76,Tables!$A$10:$T$126,18,FALSE)) -> 0 | P76: 0 | R76: 0 | S76: 0 | T76: 0 | U76: 0 | V76: 0 | W76: 0 | X76: 0 | Y76: 0 | AA76: 0 | AB76: 0 | AC76: =CHOOSE(TaxRates,Tables!Z119,Tables!AA119) -> 0.45 | AD76: 0 | AE76: 8.335122933e-11 | AF76: 2.167131963e-09 | AH76: 0 | AI76: 0 | AJ76: =CHOOSE(TaxRates,Tables!Z119,Tables!AA119) -> 0.45 | AK76: 0 | AL76: 2.083780733e-11 | AM76: 5.417829907e-10 | AO76: =IF(C76>=RetAge,0,IF(AP76<MIN($AP$13:AP75),MAX($AO$13:AO75)+1,0)) -> 0 | AP76: 0 | AQ76: 0 | AR76: =CHOOSE(TaxRates,Tables!Z119,Tables!AA119) -> 0.45 | AS76: 0 | AT76: 6.784402388e-11 | AU76: 1.763944621e-09 | AW76: =IF(C76>=RetAge,0,IF(AX76<MIN($AX$13:AX75),MAX($AW$13:AW75)+1,0)) -> 0 | AX76: 0 | AY76: =CHOOSE(TaxRates,Tables!Z119,Tables!AA119) -> 0.45 | AZ76: 0 | BA76: 0 | BB76: 4.434439387e-11 | BC76: 1.100163296e-09
A77: 65 | B77: 2078 | C77: 104 | E77: 0 | F77: 0 | G77: =IF(CompDefinition=1,E77,E77+F77) -> 0 | I77: =IF($C77>=RetAge,0,VLOOKUP($B77,Tables!$A$10:$T$126,18,FALSE)) -> 0 | J77: =IF($C77>=RetAge,0,IF(C77<CatchupAge,0,VLOOKUP($B77,Tables!$A$10:$T$126,20,FALSE))) -> 0 | K77: =IF($C77>=RetAge,0,(I77+J77)*MachtingERCont) -> 0 | L77: 0 | M77: =IF($C77>=RetAge,0,VLOOKUP($B77,Tables!$A$10:$T$126,16,FALSE)) -> 0 | N77: 0 | O77: =IF($C77>=RetAge,0,VLOOKUP($B77,Tables!$A$10:$T$126,18,FALSE)) -> 0 | P77: 0 | R77: =IF($C77>=RetAge,0,IF(TargetMethod1=1,TargetContribPercent*G77,IF(TargetMethod2=1,TargetContribDollarAmt,0))) -> 0 | S77: =MIN($R77,I77) -> 0 | T77: =MIN($R77-S77,J77) -> 0 | U77: =IF($C77>=RetAge,0,(S77+T77)*MachtingERCont) -> 0 | V77: 0 | W77: =MIN(R77-S77-T77,O77) -> 0 | X77: 0 | Y77: 0 | AA77: =IF(TargetMethod3=1,I77+J77,S77+T77) -> 0 | AB77: =IF($C77<RetAge,0,IF($C77<RetAge+RetDistYrs,AnnRet403b,0)) -> 0 | AC77: =CHOOSE(TaxRates,Tables!Z120,Tables!AA120) -> 0.45 | AD77: 0 | AE77: 8.668527851e-11 | AF77: 2.253817241e-09 | AH77: =IF(TargetMethod3=1,K77,U77) -> 0 | AI77: =IF($C77<RetAge,0,IF($C77<RetAge+RetDistYrs,AnnRet403bERMatch,0)) -> 0 | AJ77: =CHOOSE(TaxRates,Tables!Z120,Tables!AA120) -> 0.45 | AK77: 0 | AL77: 2.167131963e-11 | AM77: 5.634543103e-10 | AO77: =IF(C77>=RetAge,0,IF(AP77<MIN($AP$13:AP76),MAX($AO$13:AO76)+1,0)) -> 0 | AP77: =IF(TargetMethod3=1,O77,W77) -> 0 | AQ77: =IF($C77<RetAge,0,IF($C77<RetAge+RetDistYrs,AnnRet457b,0)) -> 0 | AR77: =CHOOSE(TaxRates,Tables!Z120,Tables!AA120) -> 0.45 | AS77: 0 | AT77: 7.055778483e-11 | AU77: 1.834502406e-09 | AW77: =IF(C77>=RetAge,0,IF(AX77<MIN($AX$13:AX76),MAX($AW$13:AW76)+1,0)) -> 0 | AX77: =IF(TargetMethod3=1,0,Y77) -> 0 | AY77: =CHOOSE(TaxRates,Tables!Z120,Tables!AA120) -> 0.45 | AZ77: 0 | BA77: =IF($C77<RetAge,0,IF($C77<RetAge+RetDistYrs,AnnRetATSavingsAT,0)) -> 0 | BB77: 4.620685842e-11 | BC77: 1.146370154e-09
A78: =A77+1 -> 66 | B78: 2079 | C78: 105 | E78: =IF($C78>=RetAge,0,E77*(1+CompGrowthRate)) -> 0 | F78: =IF($C78>=RetAge,0,F77*(1+CompGrowthRate)) -> 0 | G78: 0 | I78: =IF($C78>=RetAge,0,VLOOKUP($B78,Tables!$A$10:$T$126,18,FALSE)) -> 0 | J78: =IF($C78>=RetAge,0,IF(C78<CatchupAge,0,VLOOKUP($B78,Tables!$A$10:$T$126,20,FALSE))) -> 0 | K78: 0 | L78: =SUM(I78:K78) -> 0 | M78: =IF($C78>=RetAge,0,VLOOKUP($B78,Tables!$A$10:$T$126,16,FALSE)) -> 0 | N78: =MIN(L78:M78) -> 0 | O78: =IF($C78>=RetAge,0,VLOOKUP($B78,Tables!$A$10:$T$126,18,FALSE)) -> 0 | P78: =N78+O78 -> 0 | R78: 0 | S78: 0 | T78: 0 | U78: 0 | V78: =SUM(S78:U78) -> 0 | W78: 0 | X78: =V78+W78 -> 0 | Y78: =MAX(0,R78-S78-T78-W78) -> 0 | AA78: 0 | AB78: 0 | AC78: =CHOOSE(TaxRates,Tables!Z121,Tables!AA121) -> 0.45 | AD78: =AB78*(1-AC78) -> 0 | AE78: =(AA78+AB78+AF77)*IF(C78<RetAge,AcctBalGrowth,PostRetGrowth) -> 9.015268965e-11 | AF78: 2.343969931e-09 | AH78: 0 | AI78: 0 | AJ78: =CHOOSE(TaxRates,Tables!Z121,Tables!AA121) -> 0.45 | AK78: =AI78*(1-AJ78) -> 0 | AL78: =(AH78+AI78+AM77)*IF(C78<RetAge,AcctBalGrowth,PostRetGrowth) -> 2.253817241e-11 | AM78: 5.859924827e-10 | AO78: =IF(C78>=RetAge,0,IF(AP78<MIN($AP$13:AP77),MAX($AO$13:AO77)+1,0)) -> 0 | AP78: 0 | AQ78: 0 | AR78: =CHOOSE(TaxRates,Tables!Z121,Tables!AA121) -> 0.45 | AS78: =AQ78*(1-AR78) -> 0 | AT78: =(AP78+AQ78+AU77)*IF(C78<RetAge,AcctBalGrowth,PostRetGrowth) -> 7.338009623e-11 | AU78: 1.907882502e-09 | AW78: =IF(C78>=RetAge,0,IF(AX78<MIN($AX$13:AX77),MAX($AW$13:AW77)+1,0)) -> 0 | AX78: 0 | AY78: =CHOOSE(TaxRates,Tables!Z121,Tables!AA121) -> 0.45 | AZ78: =AX78*(1-AY78) -> 0 | BA78: 0 | BB78: =(AZ78+BA78+BC77)*AcctBalGrowth*(1-EEBlendedTaxRate) -> 4.814754647e-11 | BC78: 1.194517701e-09
A79: 67 | B79: 2080 | C79: 106 | E79: 0 | F79: 0 | G79: 0 | I79: =IF($C79>=RetAge,0,VLOOKUP($B79,Tables!$A$10:$T$126,18,FALSE)) -> 0 | J79: =IF($C79>=RetAge,0,IF(C79<CatchupAge,0,VLOOKUP($B79,Tables!$A$10:$T$126,20,FALSE))) -> 0 | K79: 0 | L79: 0 | M79: =IF($C79>=RetAge,0,VLOOKUP($B79,Tables!$A$10:$T$126,16,FALSE)) -> 0 | N79: 0 | O79: =IF($C79>=RetAge,0,VLOOKUP($B79,Tables!$A$10:$T$126,18,FALSE)) -> 0 | P79: 0 | R79: 0 | S79: 0 | T79: 0 | U79: 0 | V79: 0 | W79: 0 | X79: 0 | Y79: 0 | AA79: 0 | AB79: 0 | AC79: =CHOOSE(TaxRates,Tables!Z122,Tables!AA122) -> 0.45 | AD79: 0 | AE79: 9.375879723e-11 | AF79: =AA79+AB79+AE79+AF78 -> 2.437728728e-09 | AH79: 0 | AI79: 0 | AJ79: =CHOOSE(TaxRates,Tables!Z122,Tables!AA122) -> 0.45 | AK79: 0 | AL79: 2.343969931e-11 | AM79: =AH79+AI79+AL79+AM78 -> 6.09432182e-10 | AO79: =IF(C79>=RetAge,0,IF(AP79<MIN($AP$13:AP78),MAX($AO$13:AO78)+1,0)) -> 0 | AP79: 0 | AQ79: 0 | AR79: =CHOOSE(TaxRates,Tables!Z122,Tables!AA122) -> 0.45 | AS79: 0 | AT79: 7.631530007e-11 | AU79: =AP79+AQ79+AT79+AU78 -> 1.984197802e-09 | AW79: =IF(C79>=RetAge,0,IF(AX79<MIN($AX$13:AX78),MAX($AW$13:AW78)+1,0)) -> 0 | AX79: 0 | AY79: =CHOOSE(TaxRates,Tables!Z122,Tables!AA122) -> 0.45 | AZ79: 0 | BA79: 0 | BB79: 5.016974342e-11 | BC79: =AZ79+BA79+BB79+BC78 -> 1.244687444e-09
A80: 68 | B80: 2081 | C80: 107 | E80: 0 | F80: 0 | G80: 0 | I80: =IF($C80>=RetAge,0,VLOOKUP($B80,Tables!$A$10:$T$126,18,FALSE)) -> 0 | J80: =IF($C80>=RetAge,0,IF(C80<CatchupAge,0,VLOOKUP($B80,Tables!$A$10:$T$126,20,FALSE))) -> 0 | K80: 0 | L80: 0 | M80: =IF($C80>=RetAge,0,VLOOKUP($B80,Tables!$A$10:$T$126,16,FALSE)) -> 0 | N80: 0 | O80: =IF($C80>=RetAge,0,VLOOKUP($B80,Tables!$A$10:$T$126,18,FALSE)) -> 0 | P80: 0 | R80: 0 | S80: 0 | T80: 0 | U80: 0 | V80: 0 | W80: 0 | X80: 0 | Y80: 0 | AA80: 0 | AB80: 0 | AC80: =CHOOSE(TaxRates,Tables!Z123,Tables!AA123) -> 0.45 | AD80: 0 | AE80: 9.750914912e-11 | AF80: 2.535237877e-09 | AH80: 0 | AI80: 0 | AJ80: =CHOOSE(TaxRates,Tables!Z123,Tables!AA123) -> 0.45 | AK80: 0 | AL80: 2.437728728e-11 | AM80: 6.338094693e-10 | AO80: =IF(C80>=RetAge,0,IF(AP80<MIN($AP$13:AP79),MAX($AO$13:AO79)+1,0)) -> 0 | AP80: 0 | AQ80: 0 | AR80: =CHOOSE(TaxRates,Tables!Z123,Tables!AA123) -> 0.45 | AS80: 0 | AT80: 7.936791208e-11 | AU80: 2.063565714e-09 | AW80: =IF(C80>=RetAge,0,IF(AX80<MIN($AX$13:AX79),MAX($AW$13:AW79)+1,0)) -> 0 | AX80: 0 | AY80: =CHOOSE(TaxRates,Tables!Z123,Tables!AA123) -> 0.45 | AZ80: 0 | BA80: 0 | BB80: 5.227687265e-11 | BC80: 1.296964317e-09
A81: 69 | B81: 2082 | C81: 108 | E81: 0 | F81: 0 | G81: 0 | I81: =IF($C81>=RetAge,0,VLOOKUP($B81,Tables!$A$10:$T$126,18,FALSE)) -> 0 | J81: =IF($C81>=RetAge,0,IF(C81<CatchupAge,0,VLOOKUP($B81,Tables!$A$10:$T$126,20,FALSE))) -> 0 | K81: 0 | L81: 0 | M81: =IF($C81>=RetAge,0,VLOOKUP($B81,Tables!$A$10:$T$126,16,FALSE)) -> 0 | N81: 0 | O81: =IF($C81>=RetAge,0,VLOOKUP($B81,Tables!$A$10:$T$126,18,FALSE)) -> 0 | P81: 0 | R81: 0 | S81: 0 | T81: 0 | U81: 0 | V81: 0 | W81: 0 | X81: 0 | Y81: 0 | AA81: 0 | AB81: 0 | AC81: =CHOOSE(TaxRates,Tables!Z124,Tables!AA124) -> 0.45 | AD81: 0 | AE81: 1.014095151e-10 | AF81: 2.636647392e-09 | AH81: 0 | AI81: 0 | AJ81: =CHOOSE(TaxRates,Tables!Z124,Tables!AA124) -> 0.45 | AK81: 0 | AL81: 2.535237877e-11 | AM81: 6.591618481e-10 | AO81: =IF(C81>=RetAge,0,IF(AP81<MIN($AP$13:AP80),MAX($AO$13:AO80)+1,0)) -> 0 | AP81: 0 | AQ81: 0 | AR81: =CHOOSE(TaxRates,Tables!Z124,Tables!AA124) -> 0.45 | AS81: 0 | AT81: 8.254262856e-11 | AU81: 2.146108343e-09 | AW81: =IF(C81>=RetAge,0,IF(AX81<MIN($AX$13:AX80),MAX($AW$13:AW80)+1,0)) -> 0 | AX81: 0 | AY81: =CHOOSE(TaxRates,Tables!Z124,Tables!AA124) -> 0.45 | AZ81: 0 | BA81: 0 | BB81: 5.44725013e-11 | BC81: 1.351436818e-09
A82: 70 | B82: 2083 | C82: 109 | E82: 0 | F82: 0 | G82: 0 | I82: =IF($C82>=RetAge,0,VLOOKUP($B82,Tables!$A$10:$T$126,18,FALSE)) -> 0 | J82: =IF($C82>=RetAge,0,IF(C82<CatchupAge,0,VLOOKUP($B82,Tables!$A$10:$T$126,20,FALSE))) -> 0 | K82: 0 | L82: 0 | M82: =IF($C82>=RetAge,0,VLOOKUP($B82,Tables!$A$10:$T$126,16,FALSE)) -> 0 | N82: 0 | O82: =IF($C82>=RetAge,0,VLOOKUP($B82,Tables!$A$10:$T$126,18,FALSE)) -> 0 | P82: 0 | R82: 0 | S82: 0 | T82: 0 | U82: 0 | V82: 0 | W82: 0 | X82: 0 | Y82: 0 | AA82: 0 | AB82: 0 | AC82: =CHOOSE(TaxRates,Tables!Z125,Tables!AA125) -> 0.45 | AD82: 0 | AE82: 1.054658957e-10 | AF82: 2.742113288e-09 | AH82: 0 | AI82: 0 | AJ82: =CHOOSE(TaxRates,Tables!Z125,Tables!AA125) -> 0.45 | AK82: 0 | AL82: 2.636647392e-11 | AM82: 6.85528322e-10 | AO82: =IF(C82>=RetAge,0,IF(AP82<MIN($AP$13:AP81),MAX($AO$13:AO81)+1,0)) -> 0 | AP82: 0 | AQ82: 0 | AR82: =CHOOSE(TaxRates,Tables!Z125,Tables!AA125) -> 0.45 | AS82: 0 | AT82: 8.58443337e-11 | AU82: 2.231952676e-09 | AW82: =IF(C82>=RetAge,0,IF(AX82<MIN($AX$13:AX81),MAX($AW$13:AW81)+1,0)) -> 0 | AX82: 0 | AY82: =CHOOSE(TaxRates,Tables!Z125,Tables!AA125) -> 0.45 | AZ82: 0 | BA82: 0 | BB82: 5.676034635e-11 | BC82: 1.408197164e-09
A83: 71 | B83: 2084 | C83: 110 | E83: 0 | F83: 0 | G83: 0 | I83: =IF($C83>=RetAge,0,VLOOKUP($B83,Tables!$A$10:$T$126,18,FALSE)) -> 0 | J83: =IF($C83>=RetAge,0,IF(C83<CatchupAge,0,VLOOKUP($B83,Tables!$A$10:$T$126,20,FALSE))) -> 0 | K83: 0 | L83: 0 | M83: =IF($C83>=RetAge,0,VLOOKUP($B83,Tables!$A$10:$T$126,16,FALSE)) -> 0 | N83: 0 | O83: =IF($C83>=RetAge,0,VLOOKUP($B83,Tables!$A$10:$T$126,18,FALSE)) -> 0 | P83: 0 | R83: 0 | S83: 0 | T83: 0 | U83: 0 | V83: 0 | W83: 0 | X83: 0 | Y83: 0 | AA83: 0 | AB83: 0 | AC83: =CHOOSE(TaxRates,Tables!Z126,Tables!AA126) -> 0.45 | AD83: 0 | AE83: 1.096845315e-10 | AF83: 2.85179782e-09 | AH83: 0 | AI83: 0 | AJ83: =CHOOSE(TaxRates,Tables!Z126,Tables!AA126) -> 0.45 | AK83: 0 | AL83: 2.742113288e-11 | AM83: 7.129494549e-10 | AO83: =IF(C83>=RetAge,0,IF(AP83<MIN($AP$13:AP82),MAX($AO$13:AO82)+1,0)) -> 0 | AP83: 0 | AQ83: 0 | AR83: =CHOOSE(TaxRates,Tables!Z126,Tables!AA126) -> 0.45 | AS83: 0 | AT83: 8.927810705e-11 | AU83: 2.321230783e-09 | AW83: =IF(C83>=RetAge,0,IF(AX83<MIN($AX$13:AX82),MAX($AW$13:AW82)+1,0)) -> 0 | AX83: 0 | AY83: =CHOOSE(TaxRates,Tables!Z126,Tables!AA126) -> 0.45 | AZ83: 0 | BA83: 0 | BB83: 5.91442809e-11 | BC83: 1.467341445e-09
A84: 72 | B84: 2085 | C84: 111 | E84: 0 | F84: 0 | G84: 0 | I84: =IF($C84>=RetAge,0,VLOOKUP($B84,Tables!$A$10:$T$126,18,FALSE)) -> 0 | J84: =IF($C84>=RetAge,0,IF(C84<CatchupAge,0,VLOOKUP($B84,Tables!$A$10:$T$126,20,FALSE))) -> 0 | K84: 0 | L84: 0 | M84: =IF($C84>=RetAge,0,VLOOKUP($B84,Tables!$A$10:$T$126,16,FALSE)) -> 0 | N84: 0 | O84: =IF($C84>=RetAge,0,VLOOKUP($B84,Tables!$A$10:$T$126,18,FALSE)) -> 0 | P84: 0 | R84: 0 | S84: 0 | T84: 0 | U84: 0 | V84: 0 | W84: 0 | X84: 0 | Y84: 0 | AA84: 0 | AB84: 0 | AC84: =CHOOSE(TaxRates,Tables!Z127,Tables!AA127) -> 0.45 | AD84: 0 | AE84: 1.140719128e-10 | AF84: 2.965869732e-09 | AH84: 0 | AI84: 0 | AJ84: =CHOOSE(TaxRates,Tables!Z127,Tables!AA127) -> 0.45 | AK84: 0 | AL84: 2.85179782e-11 | AM84: 7.414674331e-10 | AO84: =IF(C84>=RetAge,0,IF(AP84<MIN($AP$13:AP83),MAX($AO$13:AO83)+1,0)) -> 0 | AP84: 0 | AQ84: 0 | AR84: =CHOOSE(TaxRates,Tables!Z127,Tables!AA127) -> 0.45 | AS84: 0 | AT84: 9.284923133e-11 | AU84: 2.414080015e-09 | AW84: =IF(C84>=RetAge,0,IF(AX84<MIN($AX$13:AX83),MAX($AW$13:AW83)+1,0)) -> 0 | AX84: 0 | AY84: =CHOOSE(TaxRates,Tables!Z127,Tables!AA127) -> 0.45 | AZ84: 0 | BA84: 0 | BB84: 6.16283407e-11 | BC84: 1.528969786e-09
A85: 73 | B85: 2086 | C85: 112 | E85: 0 | F85: 0 | G85: 0 | I85: =IF($C85>=RetAge,0,VLOOKUP($B85,Tables!$A$10:$T$126,18,FALSE)) -> 0 | J85: =IF($C85>=RetAge,0,IF(C85<CatchupAge,0,VLOOKUP($B85,Tables!$A$10:$T$126,20,FALSE))) -> 0 | K85: 0 | L85: 0 | M85: =IF($C85>=RetAge,0,VLOOKUP($B85,Tables!$A$10:$T$126,16,FALSE)) -> 0 | N85: 0 | O85: =IF($C85>=RetAge,0,VLOOKUP($B85,Tables!$A$10:$T$126,18,FALSE)) -> 0 | P85: 0 | R85: 0 | S85: 0 | T85: 0 | U85: 0 | V85: 0 | W85: 0 | X85: 0 | Y85: 0 | AA85: 0 | AB85: 0 | AC85: =CHOOSE(TaxRates,Tables!Z128,Tables!AA128) -> 0.45 | AD85: 0 | AE85: 1.186347893e-10 | AF85: 3.084504522e-09 | AH85: 0 | AI85: 0 | AJ85: =CHOOSE(TaxRates,Tables!Z128,Tables!AA128) -> 0.45 | AK85: 0 | AL85: 2.965869732e-11 | AM85: 7.711261304e-10 | AO85: =IF(C85>=RetAge,0,IF(AP85<MIN($AP$13:AP84),MAX($AO$13:AO84)+1,0)) -> 0 | AP85: 0 | AQ85: 0 | AR85: =CHOOSE(TaxRates,Tables!Z128,Tables!AA128) -> 0.45 | AS85: 0 | AT85: 9.656320059e-11 | AU85: 2.510643215e-09 | AW85: =IF(C85>=RetAge,0,IF(AX85<MIN($AX$13:AX84),MAX($AW$13:AW84)+1,0)) -> 0 | AX85: 0 | AY85: =CHOOSE(TaxRates,Tables!Z128,Tables!AA128) -> 0.45 | AZ85: 0 | BA85: 0 | BB85: 6.4216731e-11 | BC85: 1.593186517e-09
A86: 74 | B86: 2087 | C86: 113 | E86: 0 | F86: 0 | G86: 0 | I86: =IF($C86>=RetAge,0,VLOOKUP($B86,Tables!$A$10:$T$126,18,FALSE)) -> 0 | J86: =IF($C86>=RetAge,0,IF(C86<CatchupAge,0,VLOOKUP($B86,Tables!$A$10:$T$126,20,FALSE))) -> 0 | K86: 0 | L86: 0 | M86: =IF($C86>=RetAge,0,VLOOKUP($B86,Tables!$A$10:$T$126,16,FALSE)) -> 0 | N86: 0 | O86: =IF($C86>=RetAge,0,VLOOKUP($B86,Tables!$A$10:$T$126,18,FALSE)) -> 0 | P86: 0 | R86: 0 | S86: 0 | T86: 0 | U86: 0 | V86: 0 | W86: 0 | X86: 0 | Y86: 0 | AA86: 0 | AB86: 0 | AC86: =CHOOSE(TaxRates,Tables!Z129,Tables!AA129) -> 0.45 | AD86: 0 | AE86: 1.233801809e-10 | AF86: 3.207884702e-09 | AH86: 0 | AI86: 0 | AJ86: =CHOOSE(TaxRates,Tables!Z129,Tables!AA129) -> 0.45 | AK86: 0 | AL86: 3.084504522e-11 | AM86: 8.019711756e-10 | AO86: =IF(C86>=RetAge,0,IF(AP86<MIN($AP$13:AP85),MAX($AO$13:AO85)+1,0)) -> 0 | AP86: 0 | AQ86: 0 | AR86: =CHOOSE(TaxRates,Tables!Z129,Tables!AA129) -> 0.45 | AS86: 0 | AT86: 1.004257286e-10 | AU86: 2.611068944e-09 | AW86: =IF(C86>=RetAge,0,IF(AX86<MIN($AX$13:AX85),MAX($AW$13:AW85)+1,0)) -> 0 | AX86: 0 | AY86: =CHOOSE(TaxRates,Tables!Z129,Tables!AA129) -> 0.45 | AZ86: 0 | BA86: 0 | BB86: 6.691383371e-11 | BC86: 1.660100351e-09
A87: 75 | B87: 2088 | C87: 114 | E87: 0 | F87: 0 | G87: 0 | I87: =IF($C87>=RetAge,0,VLOOKUP($B87,Tables!$A$10:$T$126,18,FALSE)) -> 0 | J87: =IF($C87>=RetAge,0,IF(C87<CatchupAge,0,VLOOKUP($B87,Tables!$A$10:$T$126,20,FALSE))) -> 0 | K87: 0 | L87: 0 | M87: =IF($C87>=RetAge,0,VLOOKUP($B87,Tables!$A$10:$T$126,16,FALSE)) -> 0 | N87: 0 | O87: =IF($C87>=RetAge,0,VLOOKUP($B87,Tables!$A$10:$T$126,18,FALSE)) -> 0 | P87: 0 | R87: 0 | S87: 0 | T87: 0 | U87: 0 | V87: 0 | W87: 0 | X87: 0 | Y87: 0 | AA87: 0 | AB87: 0 | AC87: =CHOOSE(TaxRates,Tables!Z130,Tables!AA130) -> 0.45 | AD87: 0 | AE87: 1.283153881e-10 | AF87: 3.336200091e-09 | AH87: 0 | AI87: 0 | AJ87: =CHOOSE(TaxRates,Tables!Z130,Tables!AA130) -> 0.45 | AK87: 0 | AL87: 3.207884702e-11 | AM87: 8.340500226e-10 | AO87: =IF(C87>=RetAge,0,IF(AP87<MIN($AP$13:AP86),MAX($AO$13:AO86)+1,0)) -> 0 | AP87: 0 | AQ87: 0 | AR87: =CHOOSE(TaxRates,Tables!Z130,Tables!AA130) -> 0.45 | AS87: 0 | AT87: 1.044427578e-10 | AU87: 2.715511702e-09 | AW87: =IF(C87>=RetAge,0,IF(AX87<MIN($AX$13:AX86),MAX($AW$13:AW86)+1,0)) -> 0 | AX87: 0 | AY87: =CHOOSE(TaxRates,Tables!Z130,Tables!AA130) -> 0.45 | AZ87: 0 | BA87: 0 | BB87: 6.972421472e-11 | BC87: 1.729824565e-09
A88: 76 | B88: 2089 | C88: 115 | E88: 0 | F88: 0 | G88: 0 | I88: =IF($C88>=RetAge,0,VLOOKUP($B88,Tables!$A$10:$T$126,18,FALSE)) -> 0 | J88: =IF($C88>=RetAge,0,IF(C88<CatchupAge,0,VLOOKUP($B88,Tables!$A$10:$T$126,20,FALSE))) -> 0 | K88: 0 | L88: 0 | M88: =IF($C88>=RetAge,0,VLOOKUP($B88,Tables!$A$10:$T$126,16,FALSE)) -> 0 | N88: 0 | O88: =IF($C88>=RetAge,0,VLOOKUP($B88,Tables!$A$10:$T$126,18,FALSE)) -> 0 | P88: 0 | R88: 0 | S88: 0 | T88: 0 | U88: 0 | V88: 0 | W88: 0 | X88: 0 | Y88: 0 | AA88: 0 | AB88: 0 | AC88: =CHOOSE(TaxRates,Tables!Z131,Tables!AA131) -> 0.45 | AD88: 0 | AE88: 1.334480036e-10 | AF88: 3.469648094e-09 | AH88: 0 | AI88: 0 | AJ88: =CHOOSE(TaxRates,Tables!Z131,Tables!AA131) -> 0.45 | AK88: 0 | AL88: 3.336200091e-11 | AM88: 8.674120235e-10 | AO88: =IF(C88>=RetAge,0,IF(AP88<MIN($AP$13:AP87),MAX($AO$13:AO87)+1,0)) -> 0 | AP88: 0 | AQ88: 0 | AR88: =CHOOSE(TaxRates,Tables!Z131,Tables!AA131) -> 0.45 | AS88: 0 | AT88: 1.086204681e-10 | AU88: 2.82413217e-09 | AW88: =IF(C88>=RetAge,0,IF(AX88<MIN($AX$13:AX87),MAX($AW$13:AW87)+1,0)) -> 0 | AX88: 0 | AY88: =CHOOSE(TaxRates,Tables!Z131,Tables!AA131) -> 0.45 | AZ88: 0 | BA88: 0 | BB88: 7.265263174e-11 | BC88: 1.802477197e-09

Sheet SS Benefits (hidden)
H5: 50000 | I5: 100000 | J5: 250000 | K5: 500000 | L5: 750000
G6: Projected Monthly Benefit
G7: 40 | H7: 3894 | I7: 5654 | J7: 6243 | K7: 6243 | L7: 6243
G8: 50 | H8: 2491 | I8: 3693 | J8: 4228 | K8: 4228 | L8: 4228
G9: 60 | H9: 1573 | I9: 2351 | J9: 2877 | K9: 2877 | L9: 2877
G11: Projected Annual Benefit
G12: 40 | H12: =H7*12 -> 46728 | I12: 67848 | J12: 74916 | K12: 74916 | L12: 74916
G13: 50 | H13: 29892 | I13: 44316 | J13: 50736 | K13: 50736 | L13: 50736
G14: 60 | H14: 18876 | I14: 28212 | J14: 34524 | K14: 34524 | L14: 34524
G17: Projected Final Salary
G18: 40 | H18: 121800 | I18: 243600 | J18: 609000 | K18: 1218000 | L18: 1827000
G19: 50 | H19: 82400 | I19: 164800 | J19: 412000 | K19: 824000 | L19: 1236000
G20: 60 | H20: 59100 | I20: 118200 | J20: 295500 | K20: 591000 | L20: 886500
G22: SSBen as % FS
G23: 40 | H23: =(H7*12)/H18 -> 0.3836453202 | I23: 0.2785221675 | J23: 0.1230147783 | K23: 0.06150738916 | L23: 0.04100492611
G24: 50 | H24: 0.3627669903 | I24: 0.268907767 | J24: 0.1231456311 | K24: 0.06157281553 | L24: 0.04104854369
G25: 60 | H25: 0.3193908629 | I25: 0.238680203 | J25: 0.1168324873 | K25: 0.05841624365 | L25: 0.03894416244
G28: Income | H28: 40 | I28: 50 | J28: 60
G29: 50000 | H29: =H23 -> 0.3836453202 | I29: =H24 -> 0.3627669903 | J29: =H25 -> 0.3193908629 | O29: =M25 -> 0
G30: 100000 | H30: =I23 -> 0.2785221675 | I30: =I24 -> 0.268907767 | J30: =I25 -> 0.238680203
G31: 250000 | H31: =J23 -> 0.1230147783 | I31: =J24 -> 0.1231456311 | J31: =J25 -> 0.1168324873
G32: 500000 | H32: =K23 -> 0.06150738916 | I32: =K24 -> 0.06157281553 | J32: =K25 -> 0.05841624365
G33: 750000 | H33: =L23 -> 0.04100492611 | I33: =L24 -> 0.04104854369 | J33: =L25 -> 0.03894416244

Sheet Notes (hidden)
A1: Notes
B2: Development Notes
B3: Input Screen - add the ability to specify the Employer Match %
B5: PSP Amount - on the Contribution to PSP - perhaps don't redirect it? Just allow them to specify amount to contribute - then provide the following feedback:
B6: How much does that add to the retirement income?
B7: How does it compare to the alternatives?
B8: Allow them to specify the contribution as a pretax target or an after tax amount?
B10: 403(b) Plans
B11: For a participant who is 50 or older, the user can illustrate two catch-up options,
B12: - Age 50 catch-up contributios are based on the IRS Code - section 414(v)(2)(B)(i).
B13: > | C13: For 2011, the amount is $5,500 and adjusted for cost living thereafter.
B14: - Special catch-up - 15 Yr. Rule, allows a participant with at 15 years of service to contribute additional amount based on the following:
B15: > | C15: the lesser of $3,000,
B16: > | C16: $5,000 (an assumed average contribution) times years of service minus the total
C17: contributions including prior Age 50 and 15 Yr. Rule contribitions made into the plan.
B18: > | C18: Capped at $15,000 for life
B19: It's assumed that both catch-up options are allowed by the employer. Therefore, the 15 Yr. catch-up is used first.
B21: 457(b) Plans
B22: For a participant who is 50 or older, the user can illustrate one catch-up option,
B23: - Special catch-up - allows a participant with 3 years prior to retirement to contribute additional amount based on the following:
B24: > | C24: Normal basic annual limit (adjusted for the cost of living) plus
B25: > | C25: the underuntilized amounts from prior years or
B26: > | C26: 2 times the annual limit for the year
B28: Note that the Age 50 catch-up is not illustrated as it's only available to governmental plans.
B29: In addition, a participant is not permitted to use the Age 50 and Special catch-up simultaneously,
B30: but may utilize whichever is greater.

Sheet Tables (hidden)
A1: Col#
A2: =COLUMN() -> 1 | B2: =COLUMN() -> 2 | C2: =COLUMN() -> 3 | D2: =COLUMN() -> 4 | E2: =COLUMN() -> 5 | F2: =COLUMN() -> 6 | G2: =COLUMN() -> 7 | H2: =COLUMN() -> 8 | I2: =COLUMN() -> 9 | J2: =COLUMN() -> 10 | K2: =COLUMN() -> 11 | L2: =COLUMN() -> 12 | M2: =COLUMN() -> 13 | N2: =COLUMN() -> 14 | O2: =COLUMN() -> 15 | P2: =COLUMN() -> 16 | Q2: =COLUMN() -> 17 | R2: =COLUMN() -> 18 | S2: =COLUMN() -> 19 | T2: =COLUMN() -> 20 | U2: =COLUMN() -> 21 | V2: =COLUMN() -> 22 | W2: =COLUMN() -> 23
A3: Rounding Rule ==> | H3: 5000 | L3: 5000 | P3: 1000 | R3: 500 | T3: 500
C4: SSBenGrowth | G4: Section415LimitGrowth | K4: IRSCompLimitGrowth | O4: Defined Contrib Plan Limit | Q4: Annual Contrib | S4: Age 50+ Catch-up Contrib
C5: =SSBenGrowth -> 0.03 | G5: =Section415LimitGrowth -> 0.03 | K5: =IRSCompLimitGrowth -> 0.03 | O5: =IRS401kLimitGrowth -> 0.03 | Q5: =IRS401kLimitGrowth -> 0.03
B6: =COUNTBLANK(B10:B126) -> 44 | U6: 35 Yr Avg
C7: Social | E7: 3 Yr Avg | F7: 5 Yr Avg | G7: Section | I7: 3 Yr Avg | J7: 5 Yr Avg | K7: IRS | M7: 3 Yr Avg | N7: 5 Yr Avg | O7: Defined | P7: Defined | Q7: IRS 401(k), 403(b) & 457(b) (402(g)(1)) | S7: Age 50+ Catch-up | T7: Age 50+ | U7: Social | V7: 4 Yr Avg | W7: 4 Yr Avg
C8: Security | D8: With | E8: Soc Security | F8: Soc Security | G8: 415 Limit | H8: Section | I8: Section | J8: Section | K8: Comp Limit | L8: IRS | M8: IRS | N8: IRS | O8: Contrib Plan | P8: Contrib Plan | Q8: Contrib Limit | S8: Deferrals | T8: Catch-up | U8: Security | V8: Section | W8: IRS
A9: Year | B9: Age | C9: Wage Base | D9: Rounding | E9: Wage Base | F9: Wage Base | G9: Index | H9: 415 Limit | I9: 415 Limit | J9: 415 Limit | K9: Index | L9: Comp Limit | M9: Comp Limit | N9: Comp Limit | O9: Limit Index | P9: Limit | Q9: Index | R9: Contrib Limit | S9: Index | T9: Deferrals | U9: Wage Base | V9: 415 Limit | W9: Comp Limit
A10: 1970 | B10: =IF(A10<StartYr,"",IF(A10=StartYr,Age,B9+1)) ->  | C10: 7800 | D10: =INT(C10/100)*100 -> 7800
A11: =A10+1 -> 1971 | C11: 7800 | D11: 7800
A12: 1972 | C12: 9000 | D12: 9000 | E12: =SUM(D10:D12)/3 -> 8200
A13: 1973 | C13: 10800 | D13: 10800 | E13: 9200
A14: 1974 | C14: 13200 | D14: 13200 | E14: 11000 | F14: =SUM(D10:D14)/5 -> 9720
A15: 1975 | C15: 14100 | D15: 14100 | E15: 12700 | F15: 10980
A16: 1976 | C16: 15300 | D16: 15300 | E16: 14200 | F16: 12480
A17: 1977 | C17: 16500 | D17: 16500 | E17: 15300 | F17: 13980
A18: 1978 | C18: 17700 | D18: 17700 | E18: 16500 | F18: 15360
A19: 1979 | C19: 22900 | D19: 22900 | E19: 19033.33333 | F19: 17300
A20: 1980 | C20: 25900 | D20: 25900 | E20: 22166.66667 | F20: 19660
A21: 1981 | C21: 29700 | D21: 29700 | E21: 26166.66667 | F21: 22540
A22: 1982 | C22: 32400 | D22: 32400 | E22: 29333.33333 | F22: 25720
A23: 1983 | C23: 35700 | D23: 35700 | E23: 32600 | F23: 29320
A24: 1984 | C24: 37800 | D24: 37800 | E24: 35300 | F24: 32300
A25: 1985 | C25: 39600 | D25: 39600 | E25: 37700 | F25: 35040
A26: 1986 | C26: 42000 | D26: 42000 | E26: 39800 | F26: 37500
A27: 1987 | C27: 43800 | D27: 43800 | E27: 41800 | F27: 39780
A28: 1988 | C28: 45000 | D28: 45000 | E28: 43600 | F28: 41640
A29: 1989 | C29: 48000 | D29: 48000 | E29: 45600 | F29: 43680 | O29: 22881 | P29: 22000 | Q29: 7627 | R29: 7500 | T29: 0
A30: 1990 | C30: 51300 | D30: 51300 | E30: 48100 | F30: 46020 | O30: 23937 | P30: 23000 | Q30: 7979 | R30: 7500 | T30: 0 | U30: =(Q30-Q29)/Q29 -> 0.04615182903
A31: 1991 | C31: 53400 | D31: 53400 | E31: 50900 | F31: 48300 | O31: 25425 | P31: 25000 | Q31: 8475 | R31: 8000 | T31: 0 | U31: =(Q31-Q30)/Q30 -> 0.06216317834
A32: 1992 | C32: 55500 | D32: 55500 | E32: 53400 | F32: 50640 | O32: 26184 | P32: 26000 | Q32: 8728 | R32: 8500 | T32: 0 | U32: 0.02985250737
A33: 1993 | C33: 57600 | D33: 57600 | E33: 55500 | F33: 53160 | O33: 26982 | P33: 26000 | Q33: 8994 | R33: 8500 | T33: 0 | U33: 0.03047662695
A34: 1994 | C34: 60600 | D34: 60600 | E34: 57900 | F34: 55680 | O34: 27720 | P34: 27000 | Q34: 9240 | R34: 9000 | T34: 0 | U34: 0.02735156771
A35: 1995 | C35: 61200 | D35: 61200 | E35: 59800 | F35: 57660 | O35: 27720 | P35: 27000 | Q35: 9240 | R35: 9000 | T35: 0 | U35: 0
A36: 1996 | C36: 62700 | D36: 62700 | E36: 61500 | F36: 59520 | G36: 120000 | H36: 120000 | K36: 150000 | L36: 150000 | O36: 28500 | P36: 28000 | Q36: 9500 | R36: 9500 | T36: 0 | U36: 0.02813852814
A37: 1997 | C37: 65400 | D37: 65400 | E37: 63100 | F37: 61500 | G37: 125000 | H37: 125000 | K37: 160000 | L37: 160000 | O37: 28500 | P37: 28000 | Q37: 9500 | R37: 9500 | T37: 0 | U37: 0
A38: 1998 | C38: 68400 | D38: 68400 | E38: 65500 | F38: 63660 | G38: 130000 | H38: 130000 | I38: =SUM(H36:H38)/3 -> 125000 | K38: 160000 | L38: 160000 | M38: =SUM(L36:L38)/3 -> 156666.6667 | O38: 30000 | P38: 30000 | Q38: 10000 | R38: 10000 | T38: 0 | U38: 0.05263157895
A39: 1999 | C39: 72600 | D39: 72600 | E39: 68800 | F39: 66060 | G39: 130000 | H39: 130000 | I39: 128333.3333 | K39: 160000 | L39: 160000 | M39: 160000 | O39: 30000 | P39: 30000 | Q39: 10000 | R39: 10000 | T39: 0 | U39: 0 | V39: =SUM(H36:H39)/4 -> 126250 | W39: =SUM(L36:L39)/4 -> 157500
A40: 2000 | C40: 76200 | D40: 76200 | E40: 72400 | F40: 69060 | G40: 135000 | H40: 135000 | I40: 131666.6667 | J40: =SUM(H36:H40)/5 -> 128000 | K40: 170000 | L40: 170000 | M40: 163333.3333 | N40: =SUM(L36:L40)/5 -> 160000 | O40: 30000 | P40: 30000 | Q40: 10500 | R40: 10500 | T40: 0 | V40: 130000 | W40: =SUM(L37:L40)/4 -> 162500
A41: 2001 | C41: 80400 | D41: 80400 | E41: 76400 | F41: 72600 | G41: 140000 | H41: 140000 | I41: 135000 | J41: 132000 | K41: 170000 | L41: 170000 | M41: 166666.6667 | N41: 164000 | O41: 35000 | P41: 35000 | Q41: 10500 | R41: 10500 | T41: 0 | V41: 133750 | W41: 165000
A42: 2002 | B42: =IF(A42<StartYr,"",IF(A42=StartYr,Age,B41+1)) ->  | C42: 84900 | D42: 84900 | E42: 80500 | F42: 76500 | G42: 160000 | H42: 160000 | I42: 145000 | J42: 139000 | K42: 200000 | L42: 200000 | M42: 180000 | N42: 172000 | O42: 40000 | P42: 40000 | Q42: 11000 | R42: 11000 | S42: 1000 | T42: 1000 | V42: 141250 | W42: 175000
A43: 2003 | C43: 87000 | D43: 87000 | E43: 84100 | F43: 80220 | G43: 160000 | H43: 160000 | I43: 153333.3333 | J43: 145000 | K43: 200000 | L43: 200000 | M43: 190000 | N43: 180000 | O43: 40000 | P43: 40000 | Q43: 12000 | R43: 12000 | S43: 2000 | T43: 2000 | V43: 148750 | W43: 185000
A44: 2004 | C44: 87900 | D44: 87900 | E44: 86600 | F44: 83280 | G44: 165000 | H44: 165000 | I44: 161666.6667 | J44: 152000 | K44: 205000 | L44: 205000 | M44: 201666.6667 | N44: 189000 | O44: 41000 | P44: 41000 | Q44: 13000 | R44: 13000 | S44: 3000 | T44: 3000 | V44: 156250 | W44: 193750
A45: 2005 | C45: 90000 | D45: 90000 | E45: 88300 | F45: 86040 | G45: 170000 | H45: 170000 | I45: 165000 | J45: 159000 | K45: 210000 | L45: 210000 | M45: 205000 | N45: 197000 | O45: 42000 | P45: 42000 | Q45: 14000 | R45: 14000 | S45: 4000 | T45: =INT(S45/500)*500 -> 4000 | U45: =SUM(D11:D45)/35 -> 46351.42857 | V45: 163750 | W45: 203750
A46: 2006 | C46: 94200 | D46: 94200 | E46: 90700 | F46: 88800 | G46: 175000 | H46: 175000 | I46: 170000 | J46: 166000 | K46: 220000 | L46: 220000 | M46: 211666.6667 | N46: 207000 | O46: 44000 | P46: 44000 | Q46: 15000 | R46: 15000 | S46: 5000 | T46: =INT(S46/500)*500 -> 5000 | U46: =SUM(D12:D46)/35 -> 48820 | V46: 167500 | W46: 208750
A47: 2007 | C47: 97500 | D47: 97500 | E47: 93900 | F47: 91320 | G47: 180000 | H47: 180000 | I47: 175000 | J47: 170000 | K47: 225000 | L47: 225000 | M47: 218333.3333 | N47: 212000 | O47: 45000 | P47: 45000 | Q47: 15500 | R47: 15500 | S47: 5000 | T47: 5000 | U47: =SUM(D13:D47)/35 -> 51348.57143 | V47: 172500 | W47: 215000
A48: 2008 | C48: 102000 | D48: 102000 | E48: 97900 | F48: 94320 | G48: 185000 | H48: 185000 | I48: 180000 | J48: 175000 | K48: 230000 | L48: 230000 | M48: 225000 | N48: 218000 | O48: 46000 | P48: 46000 | Q48: 15500 | R48: 15500 | S48: 5000 | T48: 5000 | U48: 53954.28571 | V48: 177500 | W48: 221250
A49: 2009 | C49: 106000 | D49: 106000 | E49: 101833.3333 | F49: 97940 | G49: 195000 | H49: 195000 | I49: 186666.6667 | J49: 181000 | K49: 245000 | L49: 245000 | M49: 233333.3333 | N49: 226000 | O49: 49000 | P49: 49000 | Q49: 16500 | R49: 16500 | S49: 5500 | T49: 5500 | U49: 56605.71429 | V49: 183750 | W49: 230000
A50: 2010 | C50: 106000 | D50: 106000 | E50: 104666.6667 | F50: 101140 | G50: 195000 | H50: 195000 | I50: 191666.6667 | J50: 186000 | K50: 245000 | L50: 245000 | M50: 240000 | N50: 233000 | O50: 49000 | P50: 49000 | Q50: 16500 | R50: 16500 | S50: 5500 | T50: 5500 | U50: 59231.42857 | V50: 188750 | W50: 236250
A51: 2011 | C51: 106000 | D51: 106000 | E51: 106000 | F51: 103500 | G51: 195000 | H51: 195000 | I51: 195000 | J51: 190000 | K51: 245000 | L51: 245000 | M51: 245000 | N51: 238000 | O51: 49000 | P51: 49000 | Q51: 16500 | R51: 16500 | S51: 5500 | T51: 5500 | U51: 61822.85714 | V51: 192500 | W51: 241250
A52: 2012 | C52: =C51*(1+SSBenGrowth) -> 109180 | D52: 111100 | E52: 107700 | F52: 106220 | G52: =G51*(1+Section415LimitGrowth) -> 200850 | H52: =INT(G52/$H$3)*$H$3 -> 200000 | I52: 196666.6667 | J52: 194000 | K52: =K51*(1+IRSCompLimitGrowth) -> 252350 | L52: =INT(K52/$L$3)*$L$3 -> 250000 | M52: 246666.6667 | N52: 243000 | O52: =O51*(1+IRS401kLimitGrowth) -> 50470 | P52: =INT(O52/$P$3)*$P$3 -> 50000 | Q52: 17000 | R52: =INT(Q52/$R$3)*$R$3 -> 17000 | S52: =S51*(1+IRS401kLimitGrowth) -> 5665 | T52: =INT(S52/$T$3)*$T$3 -> 5500 | U52: 64525.71429 | V52: 196250 | W52: 246250 | Z52: Tax Rate Table
A53: 2013 | C53: 112455.4 | D53: 112400 | E53: 109833.3333 | F53: 108300 | G53: 206875.5 | H53: =INT(G53/$H$3)*$H$3 -> 205000 | I53: 200000 | J53: 198000 | K53: 259920.5 | L53: =INT(K53/$L$3)*$L$3 -> 255000 | M53: 250000 | N53: 248000 | O53: 51984.1 | P53: =INT(O53/$P$3)*$P$3 -> 51000 | Q53: =Q52*(1+IRS401kLimitGrowth) -> 17510 | R53: =INT(Q53/$R$3)*$R$3 -> 17500 | S53: 5834.95 | T53: =INT(S53/$T$3)*$T$3 -> 5500 | U53: 67231.42857 | V53: 198750 | W53: 248750 | Z53: 1 | AA53: 2 | AD53: 1
A54: 2014 | B54: 40 | C54: 117000 | D54: 117000 | E54: 113500 | F54: 110500 | G54: 210000 | H54: 210000 | I54: 205000 | J54: 201000 | K54: 260000 | L54: 260000 | M54: 255000 | N54: 251000 | O54: 52000 | P54: 52000 | Q54: 17500 | R54: 17500 | S54: 5500 | T54: 5500 | U54: 69920 | V54: 202500 | W54: 252500 | Z54: Flat Rate | AA54: Fluctating | AC54: Year | AD54: Loan Interest Rates
A55: 2015 | B55: 41 | C55: 120510 | D55: 120500 | E55: 116633.3333 | F55: 113400 | G55: 216300 | H55: 215000 | I55: 210000 | J55: 205000 | K55: 267800 | L55: 265000 | M55: 260000 | N55: 255000 | O55: 53560 | P55: 53000 | Q55: 18025 | R55: 18000 | S55: 5665 | T55: 5500 | U55: 72622.85714 | V55: 207500 | W55: 257500 | Y55: Year | Z55: =Ind_Tax_Rate -> 0.45 | AC55: 1 | AD55: 0.0325
A56: 2016 | B56: 42 | C56: 124125.3 | D56: 124100 | E56: 120533.3333 | F56: 117020 | G56: 222789 | H56: 220000 | I56: 215000 | J56: 210000 | K56: 275834 | L56: 275000 | M56: 266666.6667 | N56: 261000 | O56: 55166.8 | P56: 55000 | Q56: 18565.75 | R56: 18500 | S56: 5834.95 | T56: 5500 | U56: 75320 | V56: 212500 | W56: 263750 | Y56: 1 | Z56: =Z55 -> 0.45 | AA56: 0.4 | AC56: =+AC55+1 -> 2 | AD56: 0.035
A57: 2017 | B57: 43 | C57: 127849.059 | D57: 127800 | E57: 124133.3333 | F57: 120360 | G57: 229472.67 | H57: 225000 | I57: 220000 | J57: 215000 | K57: 284109.02 | L57: 280000 | M57: 273333.3333 | N57: 267000 | O57: 56821.804 | P57: 56000 | Q57: 19122.7225 | R57: 19000 | S57: 6009.9985 | T57: 6000 | U57: 78045.71429 | V57: 217500 | W57: 270000 | Y57: =+Y56+1 -> 2 | Z57: 0.45 | AA57: =AA56 -> 0.4 | AC57: 3 | AD57: 0.0375
A58: 2018 | B58: 44 | C58: 131684.5308 | D58: 131600 | E58: 127833.3333 | F58: 124200 | G58: 236356.8501 | H58: 235000 | I58: 226666.6667 | J58: 221000 | K58: 292632.2906 | L58: 290000 | M58: 281666.6667 | N58: 274000 | O58: 58526.45812 | P58: 58000 | Q58: 19696.40417 | R58: 19500 | S58: 6190.298455 | T58: 6000 | U58: 80785.71429 | V58: 223750 | W58: 277500 | Y58: 3 | Z58: 0.45 | AA58: =AA57 -> 0.4 | AC58: 4 | AD58: 0.04
A59: 2019 | B59: 45 | C59: 135635.0667 | D59: 135600 | E59: 131666.6667 | F59: 127920 | G59: 243447.5556 | H59: 240000 | I59: 233333.3333 | J59: 227000 | K59: 301411.2593 | L59: 300000 | M59: 290000 | N59: 282000 | O59: 60282.25186 | P59: 60000 | Q59: 20287.2963 | R59: 20000 | S59: 6376.007409 | T59: 6000 | U59: 83580 | V59: 230000 | W59: 286250 | Y59: 4 | Z59: 0.45 | AA59: =AA58 -> 0.4 | AC59: 5 | AD59: 0.0425
A60: 2020 | B60: 46 | C60: 139704.1187 | D60: 139700 | E60: 135633.3333 | F60: 131760 | G60: 250750.9823 | H60: 250000 | I60: 241666.6667 | J60: 234000 | K60: 310453.5971 | L60: 310000 | M60: 300000 | N60: 291000 | O60: 62090.71942 | P60: 62000 | Q60: 20895.91519 | R60: 20500 | S60: 6567.287631 | T60: 6500 | U60: 86440 | V60: 237500 | W60: 295000 | Y60: 5 | Z60: 0.45 | AA60: 0.45 | AC60: 6 | AD60: 0.045
A61: 2021 | B61: 47 | C61: 143895.2423 | D61: 143800 | E61: 139700 | F61: 135700 | G61: 258273.5117 | H61: 255000 | I61: 248333.3333 | J61: 241000 | K61: 319767.205 | L61: 315000 | M61: 308333.3333 | N61: 299000 | O61: 63953.441 | P61: 63000 | Q61: 21522.79264 | R61: 21500 | S61: 6764.30626 | T61: 6500 | U61: 89348.57143 | V61: 245000 | W61: 303750 | Y61: 6 | Z61: 0.45 | AA61: 0.45 | AC61: 7 | AD61: =AD60 -> 0.045
A62: 2022 | B62: 48 | C62: 148212.0995 | D62: 148200 | E62: 143900 | F62: 139780 | G62: 266021.7171 | H62: 265000 | I62: 256666.6667 | J62: 249000 | K62: 329360.2212 | L62: 325000 | M62: 316666.6667 | N62: 308000 | O62: 65872.04423 | P62: 65000 | Q62: 22168.47642 | R62: 22000 | S62: 6967.235448 | T62: 6500 | U62: 92331.42857 | V62: 252500 | W62: 312500 | Y62: 7 | Z62: 0.45 | AA62: 0.45 | AC62: 8 | AD62: =AD61 -> 0.045
A63: 2023 | B63: 49 | C63: 152658.4625 | D63: 152600 | E63: 148200 | F63: 143980 | G63: 274002.3686 | H63: 270000 | I63: 263333.3333 | J63: 256000 | K63: 339241.0278 | L63: 335000 | M63: 325000 | N63: 317000 | O63: 67848.20556 | P63: 67000 | Q63: 22833.53072 | R63: 22500 | S63: 7176.252511 | T63: 7000 | U63: 95405.71429 | V63: 260000 | W63: 321250 | Y63: 8 | Z63: 0.45 | AA63: 0.45 | AC63: 9 | AD63: 0.045
A64: 2024 | B64: 50 | C64: 157238.2164 | D64: 157200 | E64: 152666.6667 | F64: 148300 | G64: 282222.4397 | H64: 280000 | I64: 271666.6667 | J64: 264000 | K64: 349418.2586 | L64: 345000 | M64: 335000 | N64: 326000 | O64: 69883.65173 | P64: 69000 | Q64: 23518.53664 | R64: 23500 | S64: 7391.540086 | T64: 7000 | U64: 98525.71429 | V64: 267500 | W64: 330000 | Y64: 9 | Z64: 0.45 | AA64: 0.45 | AC64: 10 | AD64: 0.045
A65: 2025 | B65: 51 | C65: 161955.3629 | D65: 161900 | E65: 157233.3333 | F65: 152740 | G65: 290689.1129 | H65: 290000 | I65: 280000 | J65: 272000 | K65: 359900.8064 | L65: 355000 | M65: 345000 | N65: 335000 | O65: 71980.16128 | P65: 71000 | Q65: 24224.09274 | R65: 24000 | S65: 7613.286289 | T65: 7500 | U65: 101685.7143 | V65: 276250 | W65: 340000 | Y65: 10 | Z65: 0.45 | AA65: 0.5 | AC65: 11 | AD65: 0.045
A66: 2026 | B66: 52 | C66: 166814.0238 | D66: 166800 | E66: 161966.6667 | F66: 157340 | G66: 299409.7862 | H66: 295000 | I66: 288333.3333 | J66: 280000 | K66: 370697.8306 | L66: 370000 | M66: 356666.6667 | N66: 346000 | O66: 74139.56612 | P66: 74000 | Q66: 24950.81552 | R66: 24500 | S66: 7841.684878 | T66: 7500 | U66: 104925.7143 | V66: 283750 | W66: 351250 | Y66: 11 | Z66: 0.45 | AA66: 0.5 | AC66: 12 | AD66: 0.045
A67: 2027 | B67: 53 | C67: 171818.4445 | D67: 171800 | E67: 166833.3333 | F67: 162060 | G67: 308392.0798 | H67: 305000 | I67: 296666.6667 | J67: 288000 | K67: 381818.7655 | L67: 380000 | M67: 368333.3333 | N67: 357000 | O67: 76363.7531 | P67: 76000 | Q67: 25699.33999 | R67: 25500 | S67: 8076.935424 | T67: 8000 | U67: 108248.5714 | V67: 292500 | W67: 362500 | Y67: 12 | Z67: 0.45 | AA67: 0.5 | AC67: 13 | AD67: 0.045
A68: 2028 | B68: 54 | C68: 176972.9978 | D68: 176900 | E68: 171833.3333 | F68: 166920 | G68: 317643.8422 | H68: 315000 | I68: 305000 | J68: 297000 | K68: 393273.3285 | L68: 390000 | M68: 380000 | N68: 368000 | O68: 78654.66569 | P68: 78000 | Q68: 26470.32018 | R68: 26000 | S68: 8319.243487 | T68: 8000 | U68: 111657.1429 | V68: 301250 | W68: 373750 | Y68: 13 | Z68: 0.45 | AA68: 0.5 | AC68: 14 | AD68: 0.045
A69: 2029 | B69: 55 | C69: 182282.1877 | D69: 182200 | E69: 176966.6667 | F69: 171920 | G69: 327173.1575 | H69: 325000 | I69: 315000 | J69: 306000 | K69: 405071.5283 | L69: 405000 | M69: 391666.6667 | N69: 380000 | O69: 81014.30566 | P69: 81000 | Q69: 27264.42979 | R69: 27000 | S69: 8568.820791 | T69: 8500 | U69: 115131.4286 | V69: 310000 | W69: 386250 | Y69: 14 | Z69: 0.45 | AA69: 0.5 | AC69: 15 | AD69: 0.045
A70: 2030 | B70: 56 | C70: 187750.6534 | D70: 187700 | E70: 182266.6667 | F70: 177080 | G70: 336988.3522 | H70: 335000 | I70: 325000 | J70: 315000 | K70: 417223.6742 | L70: 415000 | M70: 403333.3333 | N70: 392000 | O70: 83444.73483 | P70: 83000 | Q70: 28082.36268 | R70: 28000 | S70: 8825.885415 | T70: 8500 | U70: 118745.7143 | V70: 320000 | W70: 397500 | Y70: 15 | Z70: 0.45 | AA70: 0.5 | AC70: 16 | AD70: 0.045
A71: 2031 | B71: 57 | C71: 193383.173 | D71: 193300 | E71: 187733.3333 | F71: 182380 | G71: 347098.0028 | H71: 345000 | I71: 335000 | J71: 325000 | K71: 429740.3844 | L71: 425000 | M71: 415000 | N71: 403000 | O71: 85948.07688 | P71: 85000 | Q71: 28924.83356 | R71: 28500 | S71: 9090.661977 | T71: 9000 | U71: 122477.1429 | V71: 330000 | W71: 408750 | Y71: 16 | Z71: 0.45 | AA71: 0.5 | AC71: 17 | AD71: 0.045
A72: 2032 | B72: 58 | C72: 199184.6682 | D72: 199100 | E72: 193366.6667 | F72: 187840 | G72: 357510.9429 | H72: 355000 | I72: 345000 | J72: 335000 | K72: 442632.5959 | L72: 440000 | M72: 426666.6667 | N72: 415000 | O72: 88526.51918 | P72: 88000 | Q72: 29792.57857 | R72: 29500 | S72: 9363.381837 | T72: 9000 | U72: 126297.1429 | V72: 340000 | W72: 421250 | Y72: 17 | Z72: 0.45 | AA72: 0.5 | AC72: 18 | AD72: 0.045
A73: 2033 | B73: 59 | C73: 205160.2082 | D73: 205100 | E73: 199166.6667 | F73: 193480 | G73: 368236.2711 | H73: 365000 | I73: 355000 | J73: 345000 | K73: 455911.5738 | L73: 455000 | M73: 440000 | N73: 428000 | O73: 91182.31476 | P73: 91000 | Q73: 30686.35593 | R73: 30500 | S73: 9644.283292 | T73: 9500 | U73: 130202.8571 | V73: 350000 | W73: 433750 | Y73: 18 | Z73: 0.45 | AA73: 0.5 | AC73: 19 | AD73: 0.045
A74: 2034 | B74: =IF(A74<StartYr,"",IF(A74=StartYr,Age,B73+1)) -> 60 | C74: 211315.0145 | D74: =INT(C74/100)*100 -> 211300 | E74: 205166.6667 | F74: 199300 | G74: 379283.3593 | H74: 375000 | I74: 365000 | J74: 355000 | K74: 469588.921 | L74: 465000 | M74: 453333.3333 | N74: 440000 | O74: 93917.7842 | P74: 93000 | Q74: 31606.94661 | R74: 31500 | S74: 9933.611791 | T74: 9500 | U74: 134165.7143 | V74: 360000 | W74: 446250 | Y74: 19 | Z74: 0.45 | AA74: 0.5 | AC74: 20 | AD74: 0.045
A75: =A74+1 -> 2035 | B75: 61 | C75: 217654.4649 | D75: 217600 | E75: 211333.3333 | F75: 205280 | G75: 390661.8601 | H75: 390000 | I75: 376666.6667 | J75: 366000 | K75: 483676.5886 | L75: 480000 | M75: 466666.6667 | N75: 453000 | O75: 96735.31773 | P75: 96000 | Q75: 32555.155 | R75: 32500 | S75: 10231.62014 | T75: 10000 | U75: 138205.7143 | V75: 371250 | W75: 460000 | Y75: 20 | Z75: 0.45 | AA75: 0.5 | AC75: 21 | AD75: 0.045
A76: 2036 | B76: 62 | C76: 224184.0988 | D76: 224100 | E76: =SUM(D74:D76)/3 -> 217666.6667 | F76: 211440 | G76: 402381.7159 | H76: 400000 | I76: 388333.3333 | J76: 377000 | K76: 498186.8863 | L76: 495000 | M76: 480000 | N76: 467000 | O76: 99637.37726 | P76: 99000 | Q76: 33531.80966 | R76: 33500 | S76: 10538.56875 | T76: 10500 | U76: 142311.4286 | V76: 382500 | W76: 473750 | Y76: 21 | Z76: 0.45 | AA76: 0.5 | AC76: 22 | AD76: 0.045
A77: 2037 | B77: 63 | C77: 230909.6218 | D77: 230900 | E77: 224200 | F77: 217800 | G77: 414453.1673 | H77: 410000 | I77: 400000 | J77: 388000 | K77: 513132.4929 | L77: 510000 | M77: 495000 | N77: 481000 | O77: 102626.4986 | P77: 102000 | Q77: 34537.76394 | R77: 34500 | S77: 10854.72581 | T77: 10500 | U77: 146482.8571 | V77: 393750 | W77: 487500 | Y77: 22 | Z77: 0.45 | AA77: 0.5 | AC77: 23 | AD77: 0.045
A78: 2038 | B78: 64 | C78: 237836.9105 | D78: 237800 | E78: 230933.3333 | F78: =SUM(D74:D78)/5 -> 224340 | G78: 426886.7624 | H78: 425000 | I78: 411666.6667 | J78: 400000 | K78: 528526.4677 | L78: 525000 | M78: 510000 | N78: 495000 | O78: 105705.2935 | P78: 105000 | Q78: 35573.89686 | R78: 35500 | S78: 11180.36759 | T78: 11000 | U78: 150791.4286 | V78: 406250 | W78: 502500 | Y78: 23 | Z78: 0.45 | AA78: 0.5 | AC78: 24 | AD78: 0.045
A79: 2039 | B79: 65 | C79: =C78*(1+SSBenGrowth) -> 244972.0178 | D79: 244900 | E79: 237866.6667 | F79: 231060 | G79: =G78*(1+Section415LimitGrowth) -> 439693.3652 | H79: 435000 | I79: 423333.3333 | J79: 412000 | K79: =K78*(1+IRSCompLimitGrowth) -> 544382.2617 | L79: 540000 | M79: 525000 | N79: 510000 | O79: =O78*(1+IRS401kLimitGrowth) -> 108876.4523 | P79: 108000 | Q79: =Q78*(1+IRS401kLimitGrowth) -> 36641.11377 | R79: 36500 | S79: =S78*(1+IRS401kLimitGrowth) -> 11515.77861 | T79: 11500 | U79: 155277.1429 | V79: 417500 | W79: 517500 | Y79: 24 | Z79: 0.45 | AA79: 0.5 | AC79: 25 | AD79: 0.045
A80: 2040 | B80: 66 | C80: 252321.1783 | D80: 252300 | E80: 245000 | F80: 238000 | G80: 452884.1662 | H80: 450000 | I80: 436666.6667 | J80: 424000 | K80: 560713.7296 | L80: 560000 | M80: 541666.6667 | N80: 526000 | O80: 112142.7459 | P80: 112000 | Q80: 37740.34718 | R80: 37500 | S80: 11861.25197 | T80: 11500 | U80: 159914.2857 | V80: 430000 | W80: 533750 | Y80: 25 | Z80: 0.45 | AA80: 0.5 | AC80: 26 | AD80: 0.045
A81: 2041 | B81: 67 | C81: 259890.8137 | D81: 259800 | E81: 252333.3333 | F81: 245140 | G81: 466470.6912 | H81: 465000 | I81: 450000 | J81: 437000 | K81: 577535.1414 | L81: 575000 | M81: 558333.3333 | N81: 542000 | O81: 115507.0283 | P81: 115000 | Q81: 38872.5576 | R81: 38500 | S81: 12217.08953 | T81: 12000 | U81: 164645.7143 | V81: 443750 | W81: 550000 | Y81: 26 | Z81: 0.45 | AA81: 0.5 | AC81: 27 | AD81: 0.045
A82: 2042 | B82: 68 | C82: 267687.5381 | D82: 267600 | E82: 259900 | F82: 252480 | G82: 480464.8119 | H82: 480000 | I82: 465000 | J82: 451000 | K82: 594861.1957 | L82: 590000 | M82: 575000 | N82: 558000 | O82: 118972.2391 | P82: 118000 | Q82: 40038.73433 | R82: 40000 | S82: 12583.60222 | T82: 12500 | U82: 169505.7143 | V82: 457500 | W82: 566250 | Y82: 27 | Z82: 0.45 | AA82: 0.5 | AC82: 28 | AD82: 0.045
A83: 2043 | B83: 69 | C83: 275718.1642 | D83: 275700 | E83: 267700 | F83: 260060 | G83: 494878.7563 | H83: 490000 | I83: 478333.3333 | J83: 464000 | K83: 612707.0316 | L83: 610000 | M83: 591666.6667 | N83: 575000 | O83: 122541.4063 | P83: 122000 | Q83: 41239.89636 | R83: 41000 | S83: 12961.11028 | T83: 12500 | U83: 174468.5714 | V83: 471250 | W83: 583750 | Y83: 28 | Z83: 0.45 | AA83: 0.5 | AC83: 29 | AD83: 0.045
A84: 2044 | B84: 70 | C84: 283989.7091 | D84: 283900 | E84: 275733.3333 | F84: 267860 | G84: 509725.1189 | H84: 505000 | I84: 491666.6667 | J84: 478000 | K84: 631088.2425 | L84: 630000 | M84: 610000 | N84: 593000 | O84: 126217.6485 | P84: 126000 | Q84: 42477.09325 | R84: 42000 | S84: 13349.94359 | T84: 13000 | U84: 179551.4286 | V84: 485000 | W84: 601250 | Y84: 29 | Z84: 0.45 | AA84: 0.5 | AC84: 30 | AD84: 0.045
A85: 2045 | B85: 71 | C85: 292509.4004 | D85: 292500 | E85: 284033.3333 | F85: 275900 | G85: 525016.8725 | H85: 525000 | I85: 506666.6667 | J85: 493000 | K85: 650020.8898 | L85: 650000 | M85: 630000 | N85: 611000 | O85: 130004.178 | P85: 130000 | Q85: 43751.40604 | R85: 43500 | S85: 13750.4419 | T85: 13500 | U85: 184880 | V85: 500000 | W85: 620000 | Y85: 30 | Z85: 0.45 | AA85: 0.5 | AC85: 31 | AD85: 0.045
A86: 2046 | B86: 72 | C86: 301284.6824 | D86: 301200 | E86: 292533.3333 | F86: 284180 | G86: 540767.3787 | H86: 540000 | I86: 523333.3333 | J86: 508000 | K86: 669521.5165 | L86: 665000 | M86: 648333.3333 | N86: 629000 | O86: 133904.3033 | P86: 133000 | Q86: 45063.94822 | R86: 45000 | S86: 14162.95516 | T86: 14000 | U86: 190457.1429 | V86: 515000 | W86: 638750 | Y86: 31 | Z86: 0.45 | AA86: 0.5 | AC86: 32 | AD86: 0.045
A87: 2047 | B87: 73 | C87: 310323.2229 | D87: 310300 | E87: 301333.3333 | F87: 292720 | G87: 556990.4001 | H87: 555000 | I87: 540000 | J87: 523000 | K87: 689607.162 | L87: 685000 | M87: 666666.6667 | N87: 648000 | O87: 137921.4324 | P87: 137000 | Q87: 46415.86667 | R87: 46000 | S87: 14587.84381 | T87: 14500 | U87: 196148.5714 | V87: 531250 | W87: 657500 | Y87: 32 | Z87: 0.45 | AA87: 0.5 | AC87: 33 | AD87: 0.045
A88: 2048 | B88: 74 | C88: 319632.9196 | D88: 319600 | E88: 310366.6667 | F88: 301500 | G88: 573700.1121 | H88: 570000 | I88: 555000 | J88: 539000 | K88: 710295.3768 | L88: 710000 | M88: 686666.6667 | N88: 668000 | O88: 142059.0754 | P88: 142000 | Q88: 47808.34267 | R88: 47500 | S88: 15025.47913 | T88: 15000 | U88: 202068.5714 | V88: 547500 | W88: 677500 | Y88: 33 | Z88: =Z87 -> 0.45 | AA88: 0.5 | AC88: 34 | AD88: 0.045
A89: 2049 | B89: 75 | C89: 329221.9072 | D89: 329200 | E89: 319700 | F89: 310560 | G89: 590911.1154 | H89: 590000 | I89: 571666.6667 | J89: 556000 | K89: 731604.2381 | L89: 730000 | M89: 708333.3333 | N89: 688000 | O89: 146320.8476 | P89: 146000 | Q89: 49242.59295 | R89: 49000 | S89: 15476.2435 | T89: 15000 | U89: 208131.4286 | V89: 563750 | W89: 697500 | Y89: =+Y88+1 -> 34 | Z89: 0.45 | AA89: 0.5 | AC89: 35 | AD89: 0.045
A90: 2050 | B90: 76 | C90: 339098.5644 | D90: 339000 | E90: 329266.6667 | F90: 319860 | G90: 608638.4489 | H90: 605000 | I90: 588333.3333 | J90: 572000 | K90: 753552.3653 | L90: 750000 | M90: 730000 | N90: 708000 | O90: 150710.4731 | P90: 150000 | Q90: 50719.87074 | R90: 50500 | S90: 15940.5308 | T90: 15500 | U90: 214374.2857 | V90: 580000 | W90: 718750 | Y90: 35 | Z90: 0.45 | AA90: 0.5 | AC90: 36 | AD90: 0.045
A91: 2051 | B91: 77 | C91: 349271.5213 | D91: 349200 | E91: 339133.3333 | F91: 329460 | G91: 626897.6023 | H91: 625000 | I91: 606666.6667 | J91: 589000 | K91: 776158.9362 | L91: 775000 | M91: 751666.6667 | N91: 730000 | O91: 155231.7872 | P91: 155000 | Q91: 52241.46686 | R91: 52000 | S91: 16418.74673 | T91: 16000 | U91: 220805.7143 | V91: 597500 | W91: 741250 | Y91: 36 | Z91: 0.45 | AA91: 0.5 | AC91: 37 | AD91: 0.045
A92: 2052 | B92: 78 | C92: 359749.6669 | D92: 359700 | E92: 349300 | F92: 339340 | G92: 645704.5304 | H92: 645000 | I92: 625000 | J92: 607000 | K92: 799443.7043 | L92: 795000 | M92: 773333.3333 | N92: 752000 | O92: 159888.7409 | P92: 159000 | Q92: 53808.71087 | R92: 53500 | S92: 16911.30913 | T92: 16500 | U92: 227431.4286 | V92: 616250 | W92: 762500 | Y92: 37 | Z92: 0.45 | AA92: 0.5 | AC92: 38 | AD92: 0.045
A93: 2053 | B93: 79 | C93: 370542.157 | D93: 370500 | E93: 359800 | F93: 349520 | G93: 665075.6663 | H93: 665000 | I93: 645000 | J93: 626000 | K93: 823427.0155 | L93: 820000 | M93: 796666.6667 | N93: 774000 | O93: 164685.4031 | P93: 164000 | Q93: 55422.97219 | R93: 55000 | S93: 17418.6484 | T93: 17000 | U93: 234257.1429 | V93: 635000 | W93: 785000 | Y93: 38 | Z93: 0.45 | AA93: 0.5 | AC93: 39 | AD93: 0.045
A94: 2054 | B94: 80 | C94: 381658.4217 | D94: 381600 | E94: 370600 | F94: 360000 | G94: 685027.9363 | H94: 685000 | I94: 665000 | J94: 645000 | K94: 848129.8259 | L94: 845000 | M94: 820000 | N94: 797000 | O94: 169625.9652 | P94: 169000 | Q94: 57085.66136 | R94: 57000 | S94: 17941.20786 | T94: 17500 | U94: 241285.7143 | V94: 655000 | W94: 808750 | Y94: 39 | Z94: 0.45 | AA94: 0.5 | AC94: 40 | AD94: 0.045
A95: 2055 | B95: 81 | C95: 393108.1743 | D95: 393100 | E95: 381733.3333 | F95: 370820 | G95: 705578.7744 | H95: 705000 | I95: 685000 | J95: 665000 | K95: 873573.7207 | L95: 870000 | M95: 845000 | N95: 821000 | O95: 174714.7441 | P95: 174000 | Q95: 58798.2312 | R95: 58500 | S95: 18479.44409 | T95: 18000 | U95: 248525.7143 | V95: 675000 | W95: 832500 | Y95: 40 | Z95: 0.45 | AA95: 0.5 | AC95: 41 | AD95: 0.045
A96: 2056 | B96: 82 | C96: 404901.4195 | D96: 404900 | E96: 393200 | F96: 381960 | G96: 726746.1376 | H96: 725000 | I96: 705000 | J96: 685000 | K96: 899780.9323 | L96: 895000 | M96: 870000 | N96: 845000 | O96: 179956.1865 | P96: 179000 | Q96: 60562.17814 | R96: 60500 | S96: 19033.82741 | T96: 19000 | U96: 255985.7143 | V96: 695000 | W96: 857500 | Y96: 41 | Z96: 0.45 | AA96: 0.5 | AC96: 42 | AD96: 0.045
A97: 2057 | B97: 83 | C97: 417048.4621 | D97: 417000 | E97: 405000 | F97: 393420 | G97: 748548.5218 | H97: 745000 | I97: 725000 | J97: 705000 | K97: 926774.3603 | L97: 925000 | M97: 896666.6667 | N97: 871000 | O97: 185354.8721 | P97: 185000 | Q97: 62379.04348 | R97: 62000 | S97: 19604.84224 | T97: 19500 | U97: 263665.7143 | V97: 715000 | W97: 883750 | Y97: 42 | Z97: 0.45 | AA97: 0.5 | AC97: 43 | AD97: 0.045
A98: 2058 | B98: 84 | C98: 429559.916 | D98: 429500 | E98: 417133.3333 | F98: 405220 | G98: 771004.9774 | H98: 770000 | I98: 746666.6667 | J98: 726000 | K98: 954577.5911 | L98: 950000 | M98: 923333.3333 | N98: 897000 | O98: 190915.5182 | P98: 190000 | Q98: 64250.41479 | R98: 64000 | S98: 20192.9875 | T98: 20000 | U98: 271577.1429 | V98: 736250 | W98: 910000 | Y98: 43 | Z98: 0.45 | AA98: 0.5 | AC98: 44 | AD98: 0.045
A99: 2059 | B99: 85 | C99: 442446.7135 | D99: 442400 | E99: 429633.3333 | F99: 417380 | G99: 794135.1267 | H99: 790000 | I99: 768333.3333 | J99: 747000 | K99: 983214.9188 | L99: 980000 | M99: 951666.6667 | N99: 924000 | O99: 196642.9838 | P99: 196000 | Q99: 66177.92723 | R99: 66000 | S99: 20798.77713 | T99: 20500 | U99: 279725.7143 | V99: 757500 | W99: 937500 | Y99: 44 | Z99: 0.45 | AA99: 0.5 | AC99: 45 | AD99: 0.045
A100: 2060 | B100: 86 | C100: 455720.1149 | D100: 455700 | E100: 442533.3333 | F100: 429900 | G100: 817959.1805 | H100: 815000 | I100: 791666.6667 | J100: 769000 | K100: 1012711.366 | L100: 1010000 | M100: 980000 | N100: 952000 | O100: 202542.2733 | P100: 202000 | Q100: 68163.26505 | R100: 68000 | S100: 21422.74044 | T100: 21000 | U100: 288120 | V100: 780000 | W100: 966250 | Y100: 45 | Z100: 0.45 | AA100: 0.5 | AC100: 46 | AD100: 0.045
A101: 2061 | B101: 87 | C101: 469391.7183 | D101: 469300 | E101: 455800 | F101: 442780 | G101: 842497.956 | H101: 840000 | I101: 815000 | J101: 792000 | K101: 1043092.707 | L101: 1040000 | M101: 1010000 | N101: 981000 | O101: 208618.5415 | P101: 208000 | Q101: 70208.163 | R101: 70000 | S101: 22065.42266 | T101: 22000 | U101: 296762.8571 | V101: 803750 | W101: 995000 | Y101: 46 | Z101: 0.45 | AA101: 0.5 | AC101: 47 | AD101: 0.045
A102: 2062 | B102: 88 | C102: 483473.4699 | D102: 483400 | E102: 469466.6667 | F102: 456060 | G102: 867772.8946 | H102: 865000 | I102: =SUM(H100:H102)/3 -> 840000 | J102: 816000 | K102: 1074385.489 | L102: 1070000 | M102: =SUM(L100:L102)/3 -> 1040000 | N102: 1010000 | O102: 214877.0977 | P102: 214000 | Q102: 72314.40789 | R102: 72000 | S102: 22727.38534 | T102: 22500 | U102: 305665.7143 | V102: 827500 | W102: 1025000 | Y102: 47 | Z102: 0.45 | AA102: 0.5 | AC102: 48 | AD102: 0.045
A103: 2063 | B103: 89 | C103: 497977.674 | D103: 497900 | E103: 483533.3333 | F103: 469740 | G103: 893806.0815 | H103: 890000 | I103: 865000 | J103: 840000 | K103: 1106617.053 | L103: 1105000 | M103: 1071666.667 | N103: 1041000 | O103: 221323.4107 | P103: 221000 | Q103: 74483.84012 | R103: 74000 | S103: 23409.2069 | T103: 23000 | U103: 314837.1429 | V103: =SUM(H100:H103)/4 -> 852500 | W103: 1056250 | Y103: 48 | Z103: 0.45 | AA103: 0.5 | AC103: 49 | AD103: 0.045
A104: 2064 | B104: 90 | C104: 512917.0042 | D104: 512900 | E104: 498066.6667 | F104: 483840 | G104: 920620.2639 | H104: 920000 | I104: 891666.6667 | J104: =SUM(H100:H104)/5 -> 866000 | K104: 1139815.565 | L104: 1135000 | M104: 1103333.333 | N104: =SUM(L100:L104)/5 -> 1072000 | O104: 227963.113 | P104: 227000 | Q104: 76718.35533 | R104: 76500 | S104: 24111.4831 | T104: 24000 | U104: 324285.7143 | V104: 878750 | W104: =SUM(L101:L104)/4 -> 1087500 | Y104: 49 | Z104: 0.45 | AA104: 0.5 | AC104: 50 | AD104: 0.045
A105: 2065 | B105: 91 | C105: 528304.5143 | D105: 528300 | E105: 513033.3333 | F105: 498360 | G105: 948238.8718 | H105: 945000 | I105: 918333.3333 | J105: 892000 | K105: 1174010.032 | L105: 1170000 | M105: 1136666.667 | N105: 1104000 | O105: 234802.0064 | P105: 234000 | Q105: 79019.90599 | R105: 79000 | S105: 24834.8276 | T105: 24500 | U105: 334017.1429 | V105: 905000 | W105: 1120000 | Y105: 50 | Z105: 0.45 | AA105: 0.5 | AC105: 51 | AD105: 0.045
A106: 2066 | B106: =IF(A106<StartYr,"",IF(A106=StartYr,Age,B105+1)) -> 92 | C106: 544153.6497 | D106: 544100 | E106: 528433.3333 | F106: 513320 | G106: 976686.038 | H106: 975000 | I106: 946666.6667 | J106: 919000 | K106: 1209230.333 | L106: 1205000 | M106: 1170000 | N106: 1137000 | O106: 241846.0666 | P106: 241000 | Q106: 81390.50317 | R106: 81000 | S106: 25579.87242 | T106: 25500 | U106: 344040 | V106: 932500 | W106: 1153750 | Y106: 51 | Z106: 0.45 | AA106: 0.5 | AC106: 52 | AD106: 0.045
A107: 2067 | B107: 93 | C107: 560478.2592 | D107: 560400 | E107: 544266.6667 | F107: 528720 | G107: 1005986.619 | H107: 1005000 | I107: 975000 | J107: 947000 | K107: 1245507.243 | L107: 1245000 | M107: 1206666.667 | N107: 1172000 | O107: 249101.4485 | P107: 249000 | Q107: 83832.21826 | R107: 83500 | S107: 26347.2686 | T107: 26000 | U107: 354362.8571 | V107: 961250 | W107: 1188750 | Y107: 52 | Z107: 0.45 | AA107: 0.5 | AC107: 53 | AD107: 0.045
A108: 2068 | B108: 94 | C108: 577292.607 | D108: 577200 | E108: 560566.6667 | F108: 544580 | G108: 1036166.218 | H108: 1035000 | I108: 1005000 | J108: 976000 | K108: 1282872.46 | L108: 1280000 | M108: 1243333.333 | N108: 1207000 | O108: 256574.492 | P108: 256000 | Q108: 86347.18481 | R108: 86000 | S108: 27137.68665 | T108: 27000 | U108: 364994.2857 | V108: 990000 | W108: 1225000 | Y108: 53 | Z108: 0.45 | AA108: 0.5 | AC108: 54 | AD108: 0.045
A109: 2069 | B109: 95 | C109: 594611.3852 | D109: 594600 | E109: 577400 | F109: 560920 | G109: 1067251.204 | H109: 1065000 | I109: 1035000 | J109: 1005000 | K109: 1321358.634 | L109: 1320000 | M109: 1281666.667 | N109: 1244000 | O109: 264271.7268 | P109: 264000 | Q109: 88937.60035 | R109: 88500 | S109: 27951.81725 | T109: 27500 | U109: 375945.7143 | V109: 1020000 | W109: 1262500 | Y109: 54 | Z109: 0.45 | AA109: 0.5 | AC109: 55 | AD109: 0.045
A110: 2070 | B110: 96 | C110: 612449.7268 | D110: 612400 | E110: 594733.3333 | F110: 577740 | G110: 1099268.74 | H110: 1095000 | I110: 1065000 | J110: 1035000 | K110: 1360999.393 | L110: 1360000 | M110: 1320000 | N110: 1282000 | O110: 272199.8786 | P110: 272000 | Q110: 91605.72836 | R110: 91500 | S110: 28790.37177 | T110: 28500 | U110: 387225.7143 | V110: 1050000 | W110: 1301250 | Y110: 55 | Z110: 0.45 | AA110: 0.5 | AC110: 56 | AD110: 0.045
A111: 2071 | B111: 97 | C111: =C110*(1+SSBenGrowth) -> 630823.2186 | D111: 630800 | E111: 612600 | F111: 595080 | G111: =G110*(1+Section415LimitGrowth) -> 1132246.803 | H111: 1130000 | I111: 1096666.667 | J111: 1066000 | K111: =K110*(1+IRSCompLimitGrowth) -> 1401829.375 | L111: 1400000 | M111: 1360000 | N111: 1321000 | O111: =O110*(1+IRS401kLimitGrowth) -> 280365.8749 | P111: 280000 | Q111: =Q110*(1+IRS401kLimitGrowth) -> 94353.90022 | R111: 94000 | S111: =S110*(1+IRS401kLimitGrowth) -> 29654.08292 | T111: 29500 | U111: =SUM(D77:D111)/35 -> 398845.7143 | V111: 1081250 | W111: 1340000 | Y111: 56 | Z111: 0.45 | AA111: 0.5 | AC111: 57 | AD111: 0.045
A112: 2072 | B112: 98 | C112: 649747.9151 | D112: 649700 | E112: 630966.6667 | F112: 612940 | G112: 1166214.207 | H112: 1165000 | I112: 1130000 | J112: 1098000 | K112: 1443884.256 | L112: 1440000 | M112: 1400000 | N112: 1360000 | O112: 288776.8512 | P112: 288000 | Q112: 97184.51722 | R112: 97000 | S112: 30543.70541 | T112: 30500 | U112: 410811.4286 | V112: 1113750 | W112: 1380000 | Y112: 57 | Z112: 0.45 | AA112: 0.5 | AC112: 58 | AD112: 0.045
A113: 2073 | B113: 99 | C113: 669240.3526 | D113: 669200 | E113: 649900 | F113: 631340 | G113: 1201200.633 | H113: 1200000 | I113: 1165000 | J113: 1131000 | K113: 1487200.784 | L113: 1485000 | M113: 1441666.667 | N113: 1401000 | O113: 297440.1567 | P113: 297000 | Q113: 100100.0527 | R113: 100000 | S113: 31460.01658 | T113: 31000 | U113: 423137.1429 | V113: 1147500 | W113: 1421250 | Y113: 58 | Z113: 0.45 | AA113: 0.5 | AC113: 59 | AD113: 0.045
A114: 2074 | B114: 100 | C114: 689317.5632 | D114: 689300 | E114: 669400 | F114: 650280 | G114: 1237236.652 | H114: 1235000 | I114: 1200000 | J114: 1165000 | K114: 1531816.807 | L114: 1530000 | M114: 1485000 | N114: 1443000 | O114: 306363.3614 | P114: 306000 | Q114: 103103.0543 | R114: 103000 | S114: 32403.81707 | T114: 32000 | U114: 435834.2857 | V114: 1182500 | W114: 1463750 | Y114: 59 | Z114: 0.45 | AA114: 0.5 | AC114: 60 | AD114: 0.045
A115: 2075 | B115: 101 | C115: 709997.0901 | D115: 709900 | E115: 689466.6667 | F115: 669780 | G115: 1274353.751 | H115: 1270000 | I115: 1235000 | J115: 1200000 | K115: 1577771.311 | L115: 1575000 | M115: 1530000 | N115: 1486000 | O115: 315554.2623 | P115: 315000 | Q115: 106196.146 | R115: 106000 | S115: 33375.93158 | T115: 33000 | U115: 448908.5714 | V115: 1217500 | W115: 1507500 | Y115: 60 | Z115: 0.45 | AA115: 0.5 | AC115: 61 | AD115: 0.045
A116: 2076 | B116: 102 | C116: 731297.0028 | D116: 731200 | E116: 710133.3333 | F116: 689860 | G116: 1312584.364 | H116: 1310000 | I116: 1271666.667 | J116: 1236000 | K116: 1625104.451 | L116: 1625000 | M116: 1576666.667 | N116: 1531000 | O116: 325020.8901 | P116: 325000 | Q116: 109382.0303 | R116: 109000 | S116: 34377.20953 | T116: 34000 | U116: 462377.1429 | V116: 1253750 | W116: 1553750 | Y116: 61 | Z116: 0.45 | AA116: 0.5 | AC116: 62 | AD116: 0.045
A117: 2077 | B117: 103 | C117: 753235.9129 | D117: 753200 | E117: 731433.3333 | F117: 710560 | G117: 1351961.895 | H117: =INT(G117/$H$3)*$H$3 -> 1350000 | I117: 1310000 | J117: 1273000 | K117: 1673857.584 | L117: =INT(K117/$L$3)*$L$3 -> 1670000 | M117: 1623333.333 | N117: 1577000 | O117: 334771.5168 | P117: =INT(O117/$P$3)*$P$3 -> 334000 | Q117: 112663.4912 | R117: =INT(Q117/$R$3)*$R$3 -> 112500 | S117: 35408.52582 | T117: =INT(S117/$T$3)*$T$3 -> 35000 | U117: 476251.4286 | V117: 1291250 | W117: 1600000 | Y117: 62 | Z117: 0.45 | AA117: 0.5 | AC117: 63 | AD117: 0.045
A118: 2078 | B118: 104 | C118: 775832.9902 | D118: 775800 | E118: 753400 | F118: 731880 | G118: 1392520.752 | H118: 1390000 | I118: 1350000 | J118: 1311000 | K118: 1724073.312 | L118: 1720000 | M118: 1671666.667 | N118: 1624000 | O118: 344814.6623 | P118: 344000 | Q118: 116043.396 | R118: 116000 | S118: 36470.78159 | T118: 36000 | U118: 490540 | V118: 1330000 | W118: 1647500 | Y118: 63 | Z118: 0.45 | AA118: 0.5 | AC118: 64 | AD118: 0.045
A119: 2079 | B119: 105 | C119: 799107.9799 | D119: 799100 | E119: 776033.3333 | F119: 753840 | G119: 1434296.374 | H119: 1430000 | I119: 1390000 | J119: 1350000 | K119: 1775795.511 | L119: 1775000 | M119: 1721666.667 | N119: 1673000 | O119: 355159.1022 | P119: 355000 | Q119: 119524.6979 | R119: 119500 | S119: 37564.90504 | T119: 37500 | U119: 505260 | V119: 1370000 | W119: 1697500 | Y119: 64 | Z119: 0.45 | AA119: 0.5 | AC119: 65 | AD119: 0.045
A120: 2080 | B120: 106 | C120: 823081.2193 | D120: 823000 | E120: 799300 | F120: 776460 | G120: 1477325.265 | H120: 1475000 | I120: 1431666.667 | J120: 1391000 | K120: 1829069.376 | L120: 1825000 | M120: 1773333.333 | N120: 1723000 | O120: 365813.8753 | P120: 365000 | Q120: 123110.4388 | R120: 123000 | S120: 38691.85219 | T120: 38500 | U120: 520417.1429 | V120: 1411250 | W120: 1747500 | Y120: 65 | Z120: =Z119 -> 0.45 | AA120: 0.5 | AC120: =+AC119+1 -> 66 | AD120: 0.045
A121: 2081 | B121: 107 | C121: 847773.6559 | D121: 847700 | E121: 823266.6667 | F121: 799760 | G121: 1521645.023 | H121: 1520000 | I121: 1475000 | J121: 1433000 | K121: 1883941.458 | L121: 1880000 | M121: 1826666.667 | N121: 1774000 | O121: 376788.2915 | P121: 376000 | Q121: 126803.752 | R121: 126500 | S121: 39852.60776 | T121: 39500 | U121: 536031.4286 | V121: 1453750 | W121: 1800000 | Y121: =+Y120+1 -> 66 | Z121: 0.45 | AA121: 0.5 | AC121: 67 | AD121: 0.045
A122: 2082 | B122: 108 | C122: 873206.8656 | D122: 873200 | E122: 847966.6667 | F122: 823760 | G122: 1567294.374 | H122: 1565000 | I122: 1520000 | J122: 1476000 | K122: 1940459.701 | L122: 1940000 | M122: 1881666.667 | N122: 1828000 | O122: 388091.9403 | P122: 388000 | Q122: 130607.8645 | R122: 130500 | S122: 41048.18599 | T122: 41000 | U122: 552114.2857 | V122: 1497500 | W122: 1855000 | Y122: 67 | Z122: 0.45 | AA122: 0.5 | AC122: 68 | AD122: 0.045
A123: 2083 | B123: 109 | C123: 899403.0716 | D123: 899400 | E123: 873433.3333 | F123: 848480 | G123: 1614313.205 | H123: 1610000 | I123: 1565000 | J123: 1520000 | K123: 1998673.492 | L123: 1995000 | M123: 1938333.333 | N123: 1883000 | O123: 399734.6985 | P123: 399000 | Q123: 134526.1004 | R123: 134500 | S123: 42279.63157 | T123: 42000 | U123: 568680 | V123: 1542500 | W123: 1910000 | Y123: 68 | Z123: 0.45 | AA123: 0.5 | AC123: 69 | AD123: 0.045
A124: 2084 | B124: 110 | C124: 926385.1637 | D124: 926300 | E124: 899633.3333 | F124: 873920 | G124: 1662742.602 | H124: 1660000 | I124: 1611666.667 | J124: 1566000 | K124: 2058633.697 | L124: 2055000 | M124: 1996666.667 | N124: 1939000 | O124: 411726.7394 | P124: 411000 | Q124: 138561.8835 | R124: 138500 | S124: 43548.02052 | T124: 43500 | U124: 585740 | V124: 1588750 | W124: 1967500 | Y124: 69 | Z124: 0.45 | AA124: 0.5 | AC124: 70 | AD124: 0.045
A125: 2085 | B125: 111 | C125: 954176.7186 | D125: 954100 | E125: 926600 | F125: 900140 | G125: 1712624.88 | H125: 1710000 | I125: 1660000 | J125: 1613000 | K125: 2120392.708 | L125: 2120000 | M125: 2056666.667 | N125: 1998000 | O125: 424078.5416 | P125: 424000 | Q125: 142718.74 | R125: 142500 | S125: 44854.46113 | T125: 44500 | U125: 603314.2857 | V125: 1636250 | W125: 2027500 | Y125: 70 | Z125: 0.45 | AA125: 0.5 | AC125: 71 | AD125: 0.045
A126: 2086 | B126: 112 | C126: 982802.0202 | D126: 982800 | E126: 954400 | F126: 927160 | G126: 1764003.626 | H126: 1760000 | I126: 1710000 | J126: 1661000 | K126: 2184004.489 | L126: 2180000 | M126: 2118333.333 | N126: 2058000 | O126: 436800.8979 | P126: 436000 | Q126: 147000.3022 | R126: 147000 | S126: 46200.09497 | T126: 46000 | U126: 621417.1429 | V126: 1685000 | W126: 2087500 | Y126: 71 | Z126: 0.45 | AA126: 0.5 | AC126: 72 | AD126: =AD125 -> 0.045
Y127: 72 | Z127: 0.45 | AA127: 0.5 | AC127: 73 | AD127: =AD126 -> 0.045
Y128: 73 | Z128: 0.45 | AA128: 0.5 | AC128: 74 | AD128: =AD127 -> 0.045
Y129: 74 | Z129: 0.45 | AA129: 0.5 | AC129: 75 | AD129: =AD128 -> 0.045
Y130: 75 | Z130: 0.45 | AA130: 0.5
Y131: 76 | Z131: 0.45 | AA131: 0.5
